Department family,Entity,Date,Expense type,Expense area ,Supplier,Supplier type,Description,Transaction number,Amount
DEPARTMENT FOR EDUCATION,DEPARTMENT FOR EDUCATION,03/06/2013,Office Solutions,Chief Information Officer Group,IRON MOUNTAIN (UK) LTD,Commercial,Document Storage,4000129609,"24,223"
DEPARTMENT FOR EDUCATION,DEPARTMENT FOR EDUCATION,06/06/2013,ICT,Chief Information Officer Group,CAPGEMINI UK PLC,Commercial,ICT Services,4000130101,"61,453"
DEPARTMENT FOR EDUCATION,DEPARTMENT FOR EDUCATION,06/06/2013,"CHECK 
Miscellaneous Expenditure",Chief Information Officer Group,CAPGEMINI UK PLC,Commercial,Capital licences and intangible work in progress,4000130101,"88,569"
DEPARTMENT FOR EDUCATION,DEPARTMENT FOR EDUCATION,07/06/2013,Professional Services Consultancy and Contingent Labour,Chief Information Officer Group,CAPITA RESOURCING LTD,Commercial,Costs related to temporary workers,4000130273,229
DEPARTMENT FOR EDUCATION,DEPARTMENT FOR EDUCATION,07/06/2013,Professional Services Consultancy and Contingent Labour,Chief Information Officer Group,CAPITA RESOURCING LTD,Commercial,Costs related to temporary workers,4000130273,"2,290"
DEPARTMENT FOR EDUCATION,DEPARTMENT FOR EDUCATION,07/06/2013,Professional Services Consultancy and Contingent Labour,Chief Information Officer Group,CAPITA RESOURCING LTD,Commercial,Costs related to temporary workers,4000130273,"37,995"
DEPARTMENT FOR EDUCATION,DEPARTMENT FOR EDUCATION,07/06/2013,ICT,Chief Information Officer Group,BT,Commercial,Telecoms Facilities and Services,4000130274,973
DEPARTMENT FOR EDUCATION,DEPARTMENT FOR EDUCATION,07/06/2013,ICT,Chief Information Officer Group,BT,Commercial,Telecoms Facilities and Services,4000130274,"10,584"
DEPARTMENT FOR EDUCATION,DEPARTMENT FOR EDUCATION,07/06/2013,ICT,Chief Information Officer Group,BT,Commercial,Telecoms Facilities and Services,4000130274,81
DEPARTMENT FOR EDUCATION,DEPARTMENT FOR EDUCATION,07/06/2013,Office Solutions,Chief Information Officer Group,THE DANWOOD GROUP LTD,Commercial,Office machines,4000130365,"-7,422"
DEPARTMENT FOR EDUCATION,DEPARTMENT FOR EDUCATION,07/06/2013,Office Solutions,Chief Information Officer Group,THE DANWOOD GROUP LTD,Commercial,Office Supplies,4000130365,848
DEPARTMENT FOR EDUCATION,DEPARTMENT FOR EDUCATION,10/06/2013,ICT,Chief Information Officer Group,EVOLVE BUSINESS CONSULTANCY,Commercial,ICT Services,4000130514,"54,840"
DEPARTMENT FOR EDUCATION,DEPARTMENT FOR EDUCATION,12/06/2013,Office Solutions,Chief Information Officer Group,IRON MOUNTAIN (UK) LTD,Commercial,Document Storage,4000130663,"61,023"
DEPARTMENT FOR EDUCATION,DEPARTMENT FOR EDUCATION,12/06/2013,Travel,Chief Information Officer Group,REDFERN TRAVEL LTD,Commercial,"Staff business travel including air, coach, ferry, rail and taxi",4000130694,"5,170"
DEPARTMENT FOR EDUCATION,DEPARTMENT FOR EDUCATION,12/06/2013,Travel,Chief Information Officer Group,REDFERN TRAVEL LTD,Commercial,"Staff business travel including air, coach, ferry, rail and taxi",4000130694,970
DEPARTMENT FOR EDUCATION,DEPARTMENT FOR EDUCATION,12/06/2013,Personnel Related,Chief Information Officer Group,REDFERN TRAVEL LTD,Commercial,Subsistence and lodging allowances for official duty,4000130694,0
DEPARTMENT FOR EDUCATION,DEPARTMENT FOR EDUCATION,12/06/2013,Travel,Chief Information Officer Group,REDFERN TRAVEL LTD,Commercial,"Staff business travel including air, coach, ferry, rail and taxi",4000130694,529
DEPARTMENT FOR EDUCATION,DEPARTMENT FOR EDUCATION,12/06/2013,Travel,Chief Information Officer Group,REDFERN TRAVEL LTD,Commercial,"Staff business travel including air, coach, ferry, rail and taxi",4000130694,"2,621"
DEPARTMENT FOR EDUCATION,DEPARTMENT FOR EDUCATION,12/06/2013,Travel,Chief Information Officer Group,REDFERN TRAVEL LTD,Commercial,"Staff business travel including air, coach, ferry, rail and taxi",4000130694,818
DEPARTMENT FOR EDUCATION,DEPARTMENT FOR EDUCATION,12/06/2013,Travel,Chief Information Officer Group,REDFERN TRAVEL LTD,Commercial,"Staff business travel including air, coach, ferry, rail and taxi",4000130694,"4,455"
DEPARTMENT FOR EDUCATION,DEPARTMENT FOR EDUCATION,12/06/2013,Travel,Chief Information Officer Group,REDFERN TRAVEL LTD,Commercial,"Staff business travel including air, coach, ferry, rail and taxi",4000130694,"3,987"
DEPARTMENT FOR EDUCATION,DEPARTMENT FOR EDUCATION,12/06/2013,Personnel Related,Chief Information Officer Group,REDFERN TRAVEL LTD,Commercial,Subsistence and lodging allowances for official duty,4000130694,2
DEPARTMENT FOR EDUCATION,DEPARTMENT FOR EDUCATION,12/06/2013,Travel,Chief Information Officer Group,REDFERN TRAVEL LTD,Commercial,"Staff business travel including air, coach, ferry, rail and taxi",4000130694,122
DEPARTMENT FOR EDUCATION,DEPARTMENT FOR EDUCATION,12/06/2013,Travel,Chief Information Officer Group,REDFERN TRAVEL LTD,Commercial,"Staff business travel including air, coach, ferry, rail and taxi",4000130694,"2,741"
DEPARTMENT FOR EDUCATION,DEPARTMENT FOR EDUCATION,12/06/2013,Travel,Chief Information Officer Group,REDFERN TRAVEL LTD,Commercial,"Staff business travel including air, coach, ferry, rail and taxi to attend training events",4000130694,1
DEPARTMENT FOR EDUCATION,DEPARTMENT FOR EDUCATION,12/06/2013,Travel,Chief Information Officer Group,REDFERN TRAVEL LTD,Commercial,"Staff business travel including air, coach, ferry, rail and taxi",4000130694,"2,659"
DEPARTMENT FOR EDUCATION,DEPARTMENT FOR EDUCATION,12/06/2013,Travel,Chief Information Officer Group,REDFERN TRAVEL LTD,Commercial,"Staff business travel including air, coach, ferry, rail and taxi",4000130694,"1,848"
DEPARTMENT FOR EDUCATION,DEPARTMENT FOR EDUCATION,12/06/2013,Travel,Chief Information Officer Group,REDFERN TRAVEL LTD,Commercial,"Staff business travel including air, coach, ferry, rail and taxi",4000130694,-135
DEPARTMENT FOR EDUCATION,DEPARTMENT FOR EDUCATION,12/06/2013,Travel,Chief Information Officer Group,REDFERN TRAVEL LTD,Commercial,"Staff business travel including air, coach, ferry, rail and taxi",4000130694,487
DEPARTMENT FOR EDUCATION,DEPARTMENT FOR EDUCATION,12/06/2013,Travel,Chief Information Officer Group,REDFERN TRAVEL LTD,Commercial,"Staff business travel including air, coach, ferry, rail and taxi",4000130694,"1,269"
DEPARTMENT FOR EDUCATION,DEPARTMENT FOR EDUCATION,12/06/2013,Travel,Chief Information Officer Group,REDFERN TRAVEL LTD,Commercial,"Staff business travel including air, coach, ferry, rail and taxi",4000130694,12
DEPARTMENT FOR EDUCATION,DEPARTMENT FOR EDUCATION,12/06/2013,Travel,Chief Information Officer Group,REDFERN TRAVEL LTD,Commercial,"Staff business travel including air, coach, ferry, rail and taxi",4000130694,"1,844"
DEPARTMENT FOR EDUCATION,DEPARTMENT FOR EDUCATION,12/06/2013,Travel,Chief Information Officer Group,REDFERN TRAVEL LTD,Commercial,"Staff business travel including air, coach, ferry, rail and taxi",4000130694,"2,249"
DEPARTMENT FOR EDUCATION,DEPARTMENT FOR EDUCATION,12/06/2013,Travel,Chief Information Officer Group,REDFERN TRAVEL LTD,Commercial,"Staff business travel including air, coach, ferry, rail and taxi to attend training events",4000130694,6
DEPARTMENT FOR EDUCATION,DEPARTMENT FOR EDUCATION,12/06/2013,Travel,Chief Information Officer Group,REDFERN TRAVEL LTD,Commercial,"Staff business travel including air, coach, ferry, rail and taxi",4000130694,560
DEPARTMENT FOR EDUCATION,DEPARTMENT FOR EDUCATION,12/06/2013,ICT,Chief Information Officer Group,EDUSERV,Public Sector,ICT Services,4000130776,"188,621"
DEPARTMENT FOR EDUCATION,DEPARTMENT FOR EDUCATION,13/06/2013,ICT,Chief Information Officer Group,CAPGEMINI UK PLC,Commercial,ICT Services,4000130839,"139,537"
DEPARTMENT FOR EDUCATION,DEPARTMENT FOR EDUCATION,13/06/2013,ICT,Chief Information Officer Group,ATKINS LTD,Commercial,ICT Services,4000130852,"27,200"
DEPARTMENT FOR EDUCATION,DEPARTMENT FOR EDUCATION,14/06/2013,"CHECK 
Miscellaneous Expenditure",Chief Information Officer Group,CAPGEMINI UK PLC,Commercial,Capital licences and intangible work in progress,4000131017,"17,810"
DEPARTMENT FOR EDUCATION,DEPARTMENT FOR EDUCATION,14/06/2013,ICT,Chief Information Officer Group,CAPGEMINI UK PLC,Commercial,ICT Services,4000131017,"4,650"
DEPARTMENT FOR EDUCATION,DEPARTMENT FOR EDUCATION,18/06/2013,Communications,Chief Information Officer Group,PROLOG,Commercial,Digital media and web production,4000131314,"38,032"
DEPARTMENT FOR EDUCATION,DEPARTMENT FOR EDUCATION,18/06/2013,Communications,Chief Information Officer Group,PROLOG,Commercial,Digital media and web production,4000131314,"34,060"
DEPARTMENT FOR EDUCATION,DEPARTMENT FOR EDUCATION,18/06/2013,Communications,Chief Information Officer Group,PROLOG,Commercial,Digital media and web production,4000131314,"59,790"
DEPARTMENT FOR EDUCATION,DEPARTMENT FOR EDUCATION,18/06/2013,Communications,Chief Information Officer Group,PROLOG,Commercial,Digital media and web production,4000131314,"47,707"
DEPARTMENT FOR EDUCATION,DEPARTMENT FOR EDUCATION,18/06/2013,ICT,Chief Information Officer Group,ATKINS MANTIX LTD,Commercial,ICT Services,4000131333,"27,125"
DEPARTMENT FOR EDUCATION,DEPARTMENT FOR EDUCATION,18/06/2013,"CHECK 
Miscellaneous Expenditure",Chief Information Officer Group,ATKINS MANTIX LTD,Commercial,"
CHECK 
Intangible work in progress",4000131333,"35,495"
DEPARTMENT FOR EDUCATION,DEPARTMENT FOR EDUCATION,18/06/2013,ICT,Chief Information Officer Group,SPECIALIST COMPUTER CENTRES PLC,Commercial,ICT Software,4000131335,"37,453"
DEPARTMENT FOR EDUCATION,DEPARTMENT FOR EDUCATION,18/06/2013,ICT,Chief Information Officer Group,SPECIALIST COMPUTER CENTRES PLC,Commercial,ICT Hardware,4000131335,"-2,669"
DEPARTMENT FOR EDUCATION,DEPARTMENT FOR EDUCATION,18/06/2013,ICT,Chief Information Officer Group,SPECIALIST COMPUTER CENTRES PLC,Commercial,ICT Hardware,4000131335,-900
DEPARTMENT FOR EDUCATION,DEPARTMENT FOR EDUCATION,18/06/2013,ICT,Chief Information Officer Group,SPECIALIST COMPUTER CENTRES PLC,Commercial,ICT Hardware,4000131335,-66
DEPARTMENT FOR EDUCATION,DEPARTMENT FOR EDUCATION,19/06/2013,ICT,Chief Information Officer Group,REDWEB,Commercial,ICT Services,4000131438,"98,116"
DEPARTMENT FOR EDUCATION,DEPARTMENT FOR EDUCATION,20/06/2013,"CHECK 
Miscellaneous Expenditure",Chief Information Officer Group,CAPGEMINI UK PLC,Commercial,Capital licences and intangible work in progress,4000131646,"92,958"
DEPARTMENT FOR EDUCATION,DEPARTMENT FOR EDUCATION,20/06/2013,Office Solutions,Chief Information Officer Group,IRON MOUNTAIN (UK) LTD,Commercial,Document Storage,4000131822,"26,462"
DEPARTMENT FOR EDUCATION,DEPARTMENT FOR EDUCATION,20/06/2013,ICT,Chief Information Officer Group,ACTICA CONSULTING LTD,Commercial,ICT Hardware,4000131857,"39,939"
DEPARTMENT FOR EDUCATION,DEPARTMENT FOR EDUCATION,21/06/2013,ICT,Chief Information Officer Group,MOUCHEL MANAGEMENT CONSULTING LTD,Commercial,ICT Services,4000131882,"40,622"
DEPARTMENT FOR EDUCATION,DEPARTMENT FOR EDUCATION,21/06/2013,Professional Services Consultancy and Contingent Labour,Chief Information Officer Group,CAPITA RESOURCING LTD,Commercial,Costs related to temporary workers,4000131991,382
DEPARTMENT FOR EDUCATION,DEPARTMENT FOR EDUCATION,21/06/2013,Professional Services Consultancy and Contingent Labour,Chief Information Officer Group,CAPITA RESOURCING LTD,Commercial,Costs related to temporary workers,4000131991,"7,428"
DEPARTMENT FOR EDUCATION,DEPARTMENT FOR EDUCATION,21/06/2013,Professional Services Consultancy and Contingent Labour,Chief Information Officer Group,CAPITA RESOURCING LTD,Commercial,Costs related to temporary workers,4000131991,"78,550"
DEPARTMENT FOR EDUCATION,DEPARTMENT FOR EDUCATION,21/06/2013,ICT,Chief Information Officer Group,IRAS SOLUTIONS LTD,Commercial,ICT Services,4000131996,"31,425"
DEPARTMENT FOR EDUCATION,DEPARTMENT FOR EDUCATION,27/06/2013,ICT,Chief Information Officer Group,CAPGEMINI UK PLC,Commercial,ICT Services,4000132515,"2,572"
DEPARTMENT FOR EDUCATION,DEPARTMENT FOR EDUCATION,27/06/2013,"CHECK 
Miscellaneous Expenditure",Chief Information Officer Group,CAPGEMINI UK PLC,Commercial,Capital licences and intangible work in progress,4000132515,"59,703"
DEPARTMENT FOR EDUCATION,DEPARTMENT FOR EDUCATION,28/06/2013,Professional Services Consultancy and Contingent Labour,Chief Information Officer Group,CAPITA RESOURCING LTD,Commercial,Costs related to temporary workers,4000132808,"3,333"
DEPARTMENT FOR EDUCATION,DEPARTMENT FOR EDUCATION,28/06/2013,Professional Services Consultancy and Contingent Labour,Chief Information Officer Group,CAPITA RESOURCING LTD,Commercial,Costs related to temporary workers,4000132808,"39,259"
DEPARTMENT FOR EDUCATION,DEPARTMENT FOR EDUCATION,18/06/2013,Grants,Families Group,FAMILY RIGHTS GROUP LTD,VCS,Grants to third sector organisations / not for profit organisations,1001154,"45,494"
DEPARTMENT FOR EDUCATION,DEPARTMENT FOR EDUCATION,04/06/2013,Grants,Families Group,CAFCASS,Central Government,Current grant funding to arms length bodies for DfE's contribution to fund activity,2000791,"10,740,013"
DEPARTMENT FOR EDUCATION,DEPARTMENT FOR EDUCATION,25/06/2013,Grants,Supporting Delivery Group,OFFICE OF THE CHILDRENS COMMISSIONER,Central Government,Current grant funding to arms length bodies for DfE's contribution to fund activity,2000798,"86,669"
DEPARTMENT FOR EDUCATION,DEPARTMENT FOR EDUCATION,04/06/2013,Grants,Families Group,PARTNERS OF PRISONERS & FAMILIES SUPPORT,VCS,Grants to third sector organisations / not for profit organisations,4000129683,"91,702"
DEPARTMENT FOR EDUCATION,DEPARTMENT FOR EDUCATION,04/06/2013,Grants,Families Group,THE SHARE FOUNDATION 3RD PARTY TRUST,Public Sector,Grants to third sector organisations / not for profit organisations,4000129700,"44,400"
DEPARTMENT FOR EDUCATION,DEPARTMENT FOR EDUCATION,04/06/2013,Programme costs,Children's Services and Departmental Strategy Early Years Extended Schools and Special Needs Group,CONTACT A FAMILY,VCS,Funding to deliver policies (excluding consultancy) paid to third parties via a service delivery contract,4000129708,"156,822"
DEPARTMENT FOR EDUCATION,DEPARTMENT FOR EDUCATION,04/06/2013,Grants,Families Group,BARNARDOS,VCS,Grants to third sector organisations / not for profit organisations,4000129713,"65,767"
DEPARTMENT FOR EDUCATION,DEPARTMENT FOR EDUCATION,04/06/2013,Grants,Children's Services and Departmental Strategy Early Years Extended Schools and Special Needs Group,THE ACE CENTRE NORTH,VCS,Grants to third sector organisations / not for profit organisations,4000129775,"72,356"
DEPARTMENT FOR EDUCATION,DEPARTMENT FOR EDUCATION,05/06/2013,Programme costs,Families Group,CORAM,VCS,Funding to deliver policies (excluding consultancy) paid to third parties via a service delivery contract,4000129813,"28,967"
DEPARTMENT FOR EDUCATION,DEPARTMENT FOR EDUCATION,06/06/2013,Programme costs,Children's Services and Departmental Strategy Early Years Extended Schools and Special Needs Group,NDTI,VCS,Funding to deliver policies (excluding consultancy) paid to third parties via a service delivery contract,4000130175,"50,868"
DEPARTMENT FOR EDUCATION,DEPARTMENT FOR EDUCATION,06/06/2013,Grants,Families Group,SCHOOL HOME SUPPORT SERVICES UK,VCS,Grants to third sector organisations / not for profit organisations,4000130179,"77,090"
DEPARTMENT FOR EDUCATION,DEPARTMENT FOR EDUCATION,06/06/2013,Grants,Children's Services and Departmental Strategy Early Years Extended Schools and Special Needs Group,THE FAMILY FUND TRUST,VCS,Grants to third sector organisations / not for profit organisations,4000130186,"2,043,000"
DEPARTMENT FOR EDUCATION,DEPARTMENT FOR EDUCATION,06/06/2013,Professional Services Other,Strategic Analysis and Research and Policy Impact Group,NFER TRADING LIMITED INV T,Commercial,Research and evaluation activities,4000130189,"144,573"
DEPARTMENT FOR EDUCATION,DEPARTMENT FOR EDUCATION,06/06/2013,Grants,Supporting Delivery Group,KEEPING KIDS COMPANY,VCS,Grants to third sector organisations / not for profit organisations,4000130236,"332,000"
DEPARTMENT FOR EDUCATION,DEPARTMENT FOR EDUCATION,07/06/2013,ICT,Children's Services and Departmental Strategy Directorate Support,BT,Commercial,Telecoms Facilities and Services,4000130274,39
DEPARTMENT FOR EDUCATION,DEPARTMENT FOR EDUCATION,07/06/2013,ICT,Families Group,BT,Commercial,Telecoms Facilities and Services,4000130274,93
DEPARTMENT FOR EDUCATION,DEPARTMENT FOR EDUCATION,07/06/2013,ICT,Families Group,BT,Commercial,Telecoms Facilities and Services,4000130274,245
DEPARTMENT FOR EDUCATION,DEPARTMENT FOR EDUCATION,07/06/2013,ICT,Families Group,BT,Commercial,Telecoms Facilities and Services,4000130274,45
DEPARTMENT FOR EDUCATION,DEPARTMENT FOR EDUCATION,07/06/2013,ICT,Children's Services and Departmental Strategy Safeguarding Group,BT,Commercial,Telecoms Facilities and Services,4000130274,10
DEPARTMENT FOR EDUCATION,DEPARTMENT FOR EDUCATION,07/06/2013,ICT,Children's Services and Departmental Strategy Supporting Delivery Group,BT,Commercial,Telecoms Facilities and Services,4000130274,8
DEPARTMENT FOR EDUCATION,DEPARTMENT FOR EDUCATION,07/06/2013,ICT,Children's Services and Departmental Strategy Supporting Delivery Group,BT,Commercial,Telecoms Facilities and Services,4000130274,45
DEPARTMENT FOR EDUCATION,DEPARTMENT FOR EDUCATION,07/06/2013,ICT,Supporting Delivery Group,BT,Commercial,Telecoms Facilities and Services,4000130274,66
DEPARTMENT FOR EDUCATION,DEPARTMENT FOR EDUCATION,07/06/2013,ICT,Children's Services and Departmental Strategy Safeguarding Group,BT,Commercial,Telecoms Facilities and Services,4000130274,45
DEPARTMENT FOR EDUCATION,DEPARTMENT FOR EDUCATION,07/06/2013,ICT,Children's Services and Departmental Strategy Safeguarding Group,BT,Commercial,Telecoms Facilities and Services,4000130274,186
DEPARTMENT FOR EDUCATION,DEPARTMENT FOR EDUCATION,07/06/2013,ICT,Children's Services and Departmental Strategy Early Years Extended Schools and Special Needs Group,BT,Commercial,Telecoms Facilities and Services,4000130274,91
DEPARTMENT FOR EDUCATION,DEPARTMENT FOR EDUCATION,07/06/2013,ICT,Children's Services and Departmental Strategy Early Years Extended Schools and Special Needs Group,BT,Commercial,Telecoms Facilities and Services,4000130274,18
DEPARTMENT FOR EDUCATION,DEPARTMENT FOR EDUCATION,07/06/2013,ICT,Children's Services and Departmental Strategy Early Years Extended Schools and Special Needs Group,BT,Commercial,Telecoms Facilities and Services,4000130274,82
DEPARTMENT FOR EDUCATION,DEPARTMENT FOR EDUCATION,07/06/2013,ICT,People and Change,BT,Commercial,Telecoms Facilities and Services,4000130274,45
DEPARTMENT FOR EDUCATION,DEPARTMENT FOR EDUCATION,07/06/2013,ICT,People and Change,BT,Commercial,Telecoms Facilities and Services,4000130274,922
DEPARTMENT FOR EDUCATION,DEPARTMENT FOR EDUCATION,07/06/2013,ICT,People and Change,BT,Commercial,Telecoms Facilities and Services,4000130274,193
DEPARTMENT FOR EDUCATION,DEPARTMENT FOR EDUCATION,07/06/2013,ICT,People and Change,BT,Commercial,Telecoms Facilities and Services,4000130274,36
DEPARTMENT FOR EDUCATION,DEPARTMENT FOR EDUCATION,07/06/2013,ICT,School Standards Group,BT,Commercial,Telecoms Facilities and Services,4000130274,6
DEPARTMENT FOR EDUCATION,DEPARTMENT FOR EDUCATION,07/06/2013,ICT,Communications Group,BT,Commercial,Telecoms Facilities and Services,4000130274,45
DEPARTMENT FOR EDUCATION,DEPARTMENT FOR EDUCATION,07/06/2013,ICT,Communications Group,BT,Commercial,Telecoms Facilities and Services,4000130274,185
DEPARTMENT FOR EDUCATION,DEPARTMENT FOR EDUCATION,07/06/2013,ICT,Communications Group,BT,Commercial,Telecoms Facilities and Services,4000130274,239
DEPARTMENT FOR EDUCATION,DEPARTMENT FOR EDUCATION,07/06/2013,ICT,Communications Group,BT,Commercial,Telecoms Facilities and Services,4000130274,99
DEPARTMENT FOR EDUCATION,DEPARTMENT FOR EDUCATION,07/06/2013,ICT,Communications Group,BT,Commercial,Telecoms Facilities and Services,4000130274,91
DEPARTMENT FOR EDUCATION,DEPARTMENT FOR EDUCATION,07/06/2013,Programme costs,Families Group,MARTIN NAREY LTD,Commercial,Funding to deliver policies (excluding consultancy) paid to third parties via a service delivery contract,4000130311,"25,244"
DEPARTMENT FOR EDUCATION,DEPARTMENT FOR EDUCATION,10/06/2013,Professional Services Other,Children's Services and Departmental Strategy Early Years Extended Schools and Special Needs Group,THE MEDIA GROUP TMG TV LTD,Commercial,"Fees / expenses of professionals from the private sector, for example to implement advice or changes",4000130487,"211,775"
DEPARTMENT FOR EDUCATION,DEPARTMENT FOR EDUCATION,10/06/2013,Programme costs,Children's Services and Departmental Strategy Early Years Extended Schools and Special Needs Group,MOTT MACDONALD LTD,Commercial,Funding to deliver policies (excluding consultancy) paid to third parties via a service delivery contract,4000130515,"36,785"
DEPARTMENT FOR EDUCATION,DEPARTMENT FOR EDUCATION,12/06/2013,Programme costs,Children's Services and Departmental Strategy Early Years Extended Schools and Special Needs Group,SERCO LTD,Commercial,Funding to deliver policies (excluding consultancy) paid to third parties via a service delivery contract,4000130661,"80,510"
DEPARTMENT FOR EDUCATION,DEPARTMENT FOR EDUCATION,12/06/2013,Travel,Children's Services and Departmental Strategy Directorate Support,REDFERN TRAVEL LTD,Commercial,"Staff business travel including air, coach, ferry, rail and taxi",4000130694,965
DEPARTMENT FOR EDUCATION,DEPARTMENT FOR EDUCATION,12/06/2013,Travel,Children's Services and Departmental Strategy Directorate Support,REDFERN TRAVEL LTD,Commercial,"Staff business travel including air, coach, ferry, rail and taxi to attend training events",4000130694,1
DEPARTMENT FOR EDUCATION,DEPARTMENT FOR EDUCATION,12/06/2013,Travel,Families Group,REDFERN TRAVEL LTD,Commercial,"Staff business travel including air, coach, ferry, rail and taxi",4000130694,183
DEPARTMENT FOR EDUCATION,DEPARTMENT FOR EDUCATION,12/06/2013,Travel,Families Group,REDFERN TRAVEL LTD,Commercial,"Staff business travel including air, coach, ferry, rail and taxi",4000130694,52
DEPARTMENT FOR EDUCATION,DEPARTMENT FOR EDUCATION,12/06/2013,Travel,Families Group,REDFERN TRAVEL LTD,Commercial,"Staff business travel including air, coach, ferry, rail and taxi",4000130694,344
DEPARTMENT FOR EDUCATION,DEPARTMENT FOR EDUCATION,12/06/2013,Travel,Families Group,REDFERN TRAVEL LTD,Commercial,"Staff business travel including air, coach, ferry, rail and taxi",4000130694,"1,057"
DEPARTMENT FOR EDUCATION,DEPARTMENT FOR EDUCATION,12/06/2013,Travel,Families Group,REDFERN TRAVEL LTD,Commercial,"Staff business travel including air, coach, ferry, rail and taxi",4000130694,"5,158"
DEPARTMENT FOR EDUCATION,DEPARTMENT FOR EDUCATION,12/06/2013,Travel,Children's Services and Departmental Strategy Supporting Delivery Group,REDFERN TRAVEL LTD,Commercial,"Staff business travel including air, coach, ferry, rail and taxi",4000130694,"2,994"
DEPARTMENT FOR EDUCATION,DEPARTMENT FOR EDUCATION,12/06/2013,Travel,Children's Services and Departmental Strategy Supporting Delivery Group,REDFERN TRAVEL LTD,Commercial,"Staff business travel including air, coach, ferry, rail and taxi",4000130694,"3,394"
DEPARTMENT FOR EDUCATION,DEPARTMENT FOR EDUCATION,12/06/2013,Travel,Children's Services and Departmental Strategy Supporting Delivery Group,REDFERN TRAVEL LTD,Commercial,"Staff business travel including air, coach, ferry, rail and taxi",4000130694,42
DEPARTMENT FOR EDUCATION,DEPARTMENT FOR EDUCATION,12/06/2013,Travel,Families Group,REDFERN TRAVEL LTD,Commercial,"Staff business travel including air, coach, ferry, rail and taxi",4000130694,869
DEPARTMENT FOR EDUCATION,DEPARTMENT FOR EDUCATION,12/06/2013,Travel,Supporting Delivery Group,REDFERN TRAVEL LTD,Commercial,"Staff business travel including air, coach, ferry, rail and taxi",4000130694,"2,587"
DEPARTMENT FOR EDUCATION,DEPARTMENT FOR EDUCATION,12/06/2013,Travel,Children's Services and Departmental Strategy Safeguarding Group,REDFERN TRAVEL LTD,Commercial,"Staff business travel including air, coach, ferry, rail and taxi",4000130694,"12,175"
DEPARTMENT FOR EDUCATION,DEPARTMENT FOR EDUCATION,12/06/2013,Travel,Children's Services and Departmental Strategy Early Years Extended Schools and Special Needs Group,REDFERN TRAVEL LTD,Commercial,"Staff business travel including air, coach, ferry, rail and taxi",4000130694,793
DEPARTMENT FOR EDUCATION,DEPARTMENT FOR EDUCATION,12/06/2013,Travel,Children's Services and Departmental Strategy Early Years Extended Schools and Special Needs Group,REDFERN TRAVEL LTD,Commercial,"Staff business travel including air, coach, ferry, rail and taxi",4000130694,851
DEPARTMENT FOR EDUCATION,DEPARTMENT FOR EDUCATION,12/06/2013,Travel,Children's Services and Departmental Strategy Early Years Extended Schools and Special Needs Group,REDFERN TRAVEL LTD,Commercial,"Staff business travel including air, coach, ferry, rail and taxi",4000130694,769
DEPARTMENT FOR EDUCATION,DEPARTMENT FOR EDUCATION,12/06/2013,Travel,Children's Services and Departmental Strategy Early Years Extended Schools and Special Needs Group,REDFERN TRAVEL LTD,Commercial,"Staff business travel including air, coach, ferry, rail and taxi",4000130694,"2,065"
DEPARTMENT FOR EDUCATION,DEPARTMENT FOR EDUCATION,12/06/2013,Travel,Children's Services and Departmental Strategy Early Years Extended Schools and Special Needs Group,REDFERN TRAVEL LTD,Commercial,"Staff business travel including air, coach, ferry, rail and taxi",4000130694,"2,021"
DEPARTMENT FOR EDUCATION,DEPARTMENT FOR EDUCATION,12/06/2013,Travel,Children's Services and Departmental Strategy Early Years Extended Schools and Special Needs Group,REDFERN TRAVEL LTD,Commercial,"Staff business travel including air, coach, ferry, rail and taxi",4000130694,89
DEPARTMENT FOR EDUCATION,DEPARTMENT FOR EDUCATION,12/06/2013,Travel,Children's Services and Departmental Strategy Early Years Extended Schools and Special Needs Group,REDFERN TRAVEL LTD,Commercial,"Staff business travel including air, coach, ferry, rail and taxi",4000130694,76
DEPARTMENT FOR EDUCATION,DEPARTMENT FOR EDUCATION,12/06/2013,Travel,Strategic Analysis and Research and Policy Impact Group,REDFERN TRAVEL LTD,Commercial,"Staff business travel including air, coach, ferry, rail and taxi",4000130694,35
DEPARTMENT FOR EDUCATION,DEPARTMENT FOR EDUCATION,12/06/2013,Travel,Strategic Analysis and Research and Policy Impact Group,REDFERN TRAVEL LTD,Commercial,"Staff business travel including air, coach, ferry, rail and taxi",4000130694,"3,175"
DEPARTMENT FOR EDUCATION,DEPARTMENT FOR EDUCATION,12/06/2013,Travel,Strategy and Performance Group,REDFERN TRAVEL LTD,Commercial,"Staff business travel including air, coach, ferry, rail and taxi",4000130694,"1,900"
DEPARTMENT FOR EDUCATION,DEPARTMENT FOR EDUCATION,12/06/2013,Travel,Strategy and Performance Group,REDFERN TRAVEL LTD,Commercial,"Staff business travel including air, coach, ferry, rail and taxi",4000130694,526
DEPARTMENT FOR EDUCATION,DEPARTMENT FOR EDUCATION,12/06/2013,Personnel Related,Strategy and Performance Group,REDFERN TRAVEL LTD,Commercial,Subsistence and lodging allowances for official duty,4000130694,0
DEPARTMENT FOR EDUCATION,DEPARTMENT FOR EDUCATION,12/06/2013,Travel,People and Change,REDFERN TRAVEL LTD,Commercial,"Staff business travel including air, coach, ferry, rail and taxi",4000130694,"16,440"
DEPARTMENT FOR EDUCATION,DEPARTMENT FOR EDUCATION,12/06/2013,Personnel Related,People and Change,REDFERN TRAVEL LTD,Commercial,Subsistence and lodging allowances for official duty,4000130694,3
DEPARTMENT FOR EDUCATION,DEPARTMENT FOR EDUCATION,12/06/2013,Travel,People and Change,REDFERN TRAVEL LTD,Commercial,"Staff business travel including air, coach, ferry, rail and taxi",4000130694,273
DEPARTMENT FOR EDUCATION,DEPARTMENT FOR EDUCATION,12/06/2013,Travel,People and Change,REDFERN TRAVEL LTD,Commercial,"Staff business travel including air, coach, ferry, rail and taxi",4000130694,195
DEPARTMENT FOR EDUCATION,DEPARTMENT FOR EDUCATION,12/06/2013,Personnel Related,People and Change,REDFERN TRAVEL LTD,Commercial,Subsistence and lodging allowances for official duty,4000130694,1
DEPARTMENT FOR EDUCATION,DEPARTMENT FOR EDUCATION,12/06/2013,Travel,People and Change,REDFERN TRAVEL LTD,Commercial,"Staff business travel including air, coach, ferry, rail and taxi",4000130694,108
DEPARTMENT FOR EDUCATION,DEPARTMENT FOR EDUCATION,12/06/2013,Travel,People and Change,REDFERN TRAVEL LTD,Commercial,"Staff business travel including air, coach, ferry, rail and taxi",4000130694,85
DEPARTMENT FOR EDUCATION,DEPARTMENT FOR EDUCATION,12/06/2013,Travel,People and Change,REDFERN TRAVEL LTD,Commercial,"Staff business travel including air, coach, ferry, rail and taxi",4000130694,29
DEPARTMENT FOR EDUCATION,DEPARTMENT FOR EDUCATION,12/06/2013,Travel,School Standards Group,REDFERN TRAVEL LTD,Commercial,"Staff business travel including air, coach, ferry, rail and taxi",4000130694,"3,814"
DEPARTMENT FOR EDUCATION,DEPARTMENT FOR EDUCATION,12/06/2013,Travel,School Standards Group,REDFERN TRAVEL LTD,Commercial,Non contractor's travel & expenses,4000130694,3
DEPARTMENT FOR EDUCATION,DEPARTMENT FOR EDUCATION,12/06/2013,Travel,Communications Group,REDFERN TRAVEL LTD,Commercial,"Staff business travel including air, coach, ferry, rail and taxi",4000130694,"4,909"
DEPARTMENT FOR EDUCATION,DEPARTMENT FOR EDUCATION,12/06/2013,Travel,Communications Group,REDFERN TRAVEL LTD,Commercial,"Staff business travel including air, coach, ferry, rail and taxi",4000130694,"7,014"
DEPARTMENT FOR EDUCATION,DEPARTMENT FOR EDUCATION,12/06/2013,Personnel Related,Communications Group,REDFERN TRAVEL LTD,Commercial,Subsistence and lodging allowances for official duty,4000130694,3
DEPARTMENT FOR EDUCATION,DEPARTMENT FOR EDUCATION,12/06/2013,Travel,Communications Group,REDFERN TRAVEL LTD,Commercial,"Staff business travel including air, coach, ferry, rail and taxi",4000130694,237
DEPARTMENT FOR EDUCATION,DEPARTMENT FOR EDUCATION,12/06/2013,Programme costs,Children's Services and Departmental Strategy Early Years Extended Schools and Special Needs Group,4 CHILDREN EARLY INTERVENTION,VCS,Funding to deliver policies (excluding consultancy) paid to third parties via a service delivery contract,4000130742,"83,357"
DEPARTMENT FOR EDUCATION,DEPARTMENT FOR EDUCATION,12/06/2013,Professional Services Other,Children's Services and Departmental Strategy Early Years Extended Schools and Special Needs Group,ATLANTIC DATA LTD,Commercial,"Fees / expenses of professionals from the private sector, for example to implement advice or changes",4000130751,"48,997"
DEPARTMENT FOR EDUCATION,DEPARTMENT FOR EDUCATION,12/06/2013,Programme costs,Children's Services and Departmental Strategy Early Years Extended Schools and Special Needs Group,CONTACT A FAMILY,VCS,Funding to deliver policies (excluding consultancy) paid to third parties via a service delivery contract,4000130775,"46,501"
DEPARTMENT FOR EDUCATION,DEPARTMENT FOR EDUCATION,12/06/2013,Programme costs,Families Group,FAMILY LIVES,VCS,Funding to deliver policies (excluding consultancy) paid to third parties via a service delivery contract,4000130812,"123,564"
DEPARTMENT FOR EDUCATION,DEPARTMENT FOR EDUCATION,12/06/2013,Programme costs,Children's Services and Departmental Strategy Early Years Extended Schools and Special Needs Group,ACHIEVEMENT FOR ALL 3AS LTD,VCS,Funding to deliver policies (excluding consultancy) paid to third parties via a service delivery contract,4000130816,"370,097"
DEPARTMENT FOR EDUCATION,DEPARTMENT FOR EDUCATION,12/06/2013,Programme costs,Families Group,FAMILY RIGHTS GROUP LTD,VCS,Funding to deliver policies (excluding consultancy) paid to third parties via a service delivery contract,4000130830,"28,949"
DEPARTMENT FOR EDUCATION,DEPARTMENT FOR EDUCATION,12/06/2013,Communications,Communications Group,M4C,Commercial,Digital media and web production,4000130833,"2,904"
DEPARTMENT FOR EDUCATION,DEPARTMENT FOR EDUCATION,13/06/2013,Programme costs,Families Group,RELATE,VCS,Funding to deliver policies (excluding consultancy) paid to third parties via a service delivery contract,4000130856,"155,347"
DEPARTMENT FOR EDUCATION,DEPARTMENT FOR EDUCATION,13/06/2013,Professional Services Other,Strategic Analysis and Research and Policy Impact Group,ETC VENUES LTD,Commercial,Research and evaluation activities,4000130987,"23,086"
DEPARTMENT FOR EDUCATION,DEPARTMENT FOR EDUCATION,14/06/2013,Grants,Families Group,FAMILY LIVES,VCS,Grants to third sector organisations / not for profit organisations,4000131030,"82,302"
DEPARTMENT FOR EDUCATION,DEPARTMENT FOR EDUCATION,14/06/2013,Grants,Children's Services and Departmental Strategy Safeguarding Group,ARK UK PROGRAMMES,Public Sector,Grants to third sector organisations / not for profit organisations,4000131066,"59,231"
DEPARTMENT FOR EDUCATION,DEPARTMENT FOR EDUCATION,14/06/2013,Grants,Families Group,INSTITUTE OF WELLBEING LTD,Commercial,Grants to third sector organisations / not for profit organisations,4000131079,"31,500"
DEPARTMENT FOR EDUCATION,DEPARTMENT FOR EDUCATION,17/06/2013,Programme costs,Families Group,UNIVERSITY OF ESSEX,Public Sector,Funding to deliver policies (excluding consultancy) paid to third parties via a service delivery contract,4000131086,"30,950"
DEPARTMENT FOR EDUCATION,DEPARTMENT FOR EDUCATION,17/06/2013,Grants,Children's Services and Departmental Strategy Safeguarding Group,THE COLLEGE OF SOCIAL WORK,VCS,Grants to third sector organisations / not for profit organisations,4000131092,"100,000"
DEPARTMENT FOR EDUCATION,DEPARTMENT FOR EDUCATION,17/06/2013,Programme costs,Families Group,FAMILY LIVES,VCS,Funding to deliver policies (excluding consultancy) paid to third parties via a service delivery contract,4000131105,"73,644"
DEPARTMENT FOR EDUCATION,DEPARTMENT FOR EDUCATION,17/06/2013,Professional Services Other,Strategic Analysis and Research and Policy Impact Group,INSTITUTE OF EDUCATION,Public Sector,Research and evaluation activities,4000131168,"144,315"
DEPARTMENT FOR EDUCATION,DEPARTMENT FOR EDUCATION,17/06/2013,Professional Services Other,Children's Services and Departmental Strategy Early Years Extended Schools and Special Needs Group,THE MEDIA GROUP TMG TV LTD,Commercial,"Fees / expenses of professionals from the private sector, for example to implement advice or changes",4000131216,"242,857"
DEPARTMENT FOR EDUCATION,DEPARTMENT FOR EDUCATION,18/06/2013,Professional Services Other,Children's Services and Departmental Strategy Early Years Extended Schools and Special Needs Group,CAPITA EDUCATION RESOURCING,Commercial,"Fees / expenses of professionals from the private sector, for example to implement advice or changes",4000131229,"272,569"
DEPARTMENT FOR EDUCATION,DEPARTMENT FOR EDUCATION,18/06/2013,Grants,Families Group,THE SHARE FOUNDATION 3RD PARTY TRUST,Public Sector,Grants to third sector organisations / not for profit organisations,4000131245,"37,400"
DEPARTMENT FOR EDUCATION,DEPARTMENT FOR EDUCATION,18/06/2013,Grants,Families Group,CARERS TRUST,VCS,Grants to third sector organisations / not for profit organisations,4000131247,"236,724"
DEPARTMENT FOR EDUCATION,DEPARTMENT FOR EDUCATION,18/06/2013,Programme costs,Families Group,CONTACT A FAMILY,VCS,Funding to deliver policies (excluding consultancy) paid to third parties via a service delivery contract,4000131255,"41,065"
DEPARTMENT FOR EDUCATION,DEPARTMENT FOR EDUCATION,18/06/2013,Grants,Families Group,THE CHILDRENS SOCIETY,VCS,Grants to third sector organisations / not for profit organisations,4000131280,"106,359"
DEPARTMENT FOR EDUCATION,DEPARTMENT FOR EDUCATION,18/06/2013,Programme costs,Families Group,FAMILY LIVES,VCS,Funding to deliver policies (excluding consultancy) paid to third parties via a service delivery contract,4000131283,"78,094"
DEPARTMENT FOR EDUCATION,DEPARTMENT FOR EDUCATION,18/06/2013,Communications,Children's Services and Departmental Strategy Early Years Extended Schools and Special Needs Group,PROLOG,Commercial,Marketing services,4000131314,"3,486"
DEPARTMENT FOR EDUCATION,DEPARTMENT FOR EDUCATION,18/06/2013,Communications,Children's Services and Departmental Strategy Safeguarding Group,PROLOG,Commercial,Marketing services,4000131314,"4,432"
DEPARTMENT FOR EDUCATION,DEPARTMENT FOR EDUCATION,18/06/2013,Communications,Communications Group,PROLOG,Commercial,Marketing services,4000131314,"15,360"
DEPARTMENT FOR EDUCATION,DEPARTMENT FOR EDUCATION,18/06/2013,Programme costs,Families Group,THE FOSTERING NETWORK,VCS,Funding to deliver policies (excluding consultancy) paid to third parties via a service delivery contract,4000131325,"29,577"
DEPARTMENT FOR EDUCATION,DEPARTMENT FOR EDUCATION,18/06/2013,ICT,Children's Services and Departmental Strategy Safeguarding Group,SPECIALIST COMPUTER CENTRES PLC,Commercial,ICT Hardware,4000131335,"-1,999"
DEPARTMENT FOR EDUCATION,DEPARTMENT FOR EDUCATION,18/06/2013,Grants,Children's Services and Departmental Strategy Supporting Delivery Group,VIRTUAL STAFF COLLEGE,Commercial,Grants to third sector organisations / not for profit organisations,4000131341,"211,253"
DEPARTMENT FOR EDUCATION,DEPARTMENT FOR EDUCATION,18/06/2013,Grants,Children's Services and Departmental Strategy Early Years Extended Schools and Special Needs Group,BRITISH DYSLEXIA ASSOCIATION,VCS,Grants to third sector organisations / not for profit organisations,4000131373,"28,724"
DEPARTMENT FOR EDUCATION,DEPARTMENT FOR EDUCATION,19/06/2013,Programme costs,Families Group,GINGERBREAD,VCS,Funding to deliver policies (excluding consultancy) paid to third parties via a service delivery contract,4000131486,"27,426"
DEPARTMENT FOR EDUCATION,DEPARTMENT FOR EDUCATION,19/06/2013,Grants,Families Group,CAFCASS,Central Government,"Grants paid to organisations including agencies, arms length bodies and educational establishments",4000131550,"285,850"
DEPARTMENT FOR EDUCATION,DEPARTMENT FOR EDUCATION,19/06/2013,Professional Services Other,Families Group,THE TAVISTOCK INSTITUTE OF HUMAN RELATIONS,VCS,Research and evaluation activities,4000131554,"38,080"
DEPARTMENT FOR EDUCATION,DEPARTMENT FOR EDUCATION,20/06/2013,Professional Services Other,Strategic Analysis and Research and Policy Impact Group,OFFICE FOR NATIONAL STATISTICS,Commercial,Research and evaluation activities,4000131639,"297,750"
DEPARTMENT FOR EDUCATION,DEPARTMENT FOR EDUCATION,20/06/2013,Operational Goods,Families Group,CAPGEMINI UK PLC,Commercial,Learning and Development Materials,4000131646,"10,328"
DEPARTMENT FOR EDUCATION,DEPARTMENT FOR EDUCATION,20/06/2013,Programme costs,Families Group,RELATE,VCS,Funding to deliver policies (excluding consultancy) paid to third parties via a service delivery contract,4000131712,"163,727"
DEPARTMENT FOR EDUCATION,DEPARTMENT FOR EDUCATION,20/06/2013,Programme costs,Families Group,ECORYS UK LTD,Commercial,Funding to deliver policies (excluding consultancy) paid to third parties via a service delivery contract,4000131762,"36,006"
DEPARTMENT FOR EDUCATION,DEPARTMENT FOR EDUCATION,20/06/2013,Programme costs,Children's Services and Departmental Strategy Early Years Extended Schools and Special Needs Group,YOUNG MINDS,VCS,Funding to deliver policies (excluding consultancy) paid to third parties via a service delivery contract,4000131764,"163,063"
DEPARTMENT FOR EDUCATION,DEPARTMENT FOR EDUCATION,20/06/2013,Programme costs,Families Group,YOUNG MINDS,VCS,Funding to deliver policies (excluding consultancy) paid to third parties via a service delivery contract,4000131764,"51,482"
DEPARTMENT FOR EDUCATION,DEPARTMENT FOR EDUCATION,21/06/2013,Professional Services Consultancy and Contingent Labour,Communications Group,CAPITA RESOURCING LTD,Commercial,Costs related to temporary workers,4000131991,"1,996"
DEPARTMENT FOR EDUCATION,DEPARTMENT FOR EDUCATION,21/06/2013,Programme costs,Families Group,GINGERBREAD,VCS,Funding to deliver policies (excluding consultancy) paid to third parties via a service delivery contract,4000132022,"27,426"
DEPARTMENT FOR EDUCATION,DEPARTMENT FOR EDUCATION,24/06/2013,Personnel Related,People and Change,EDENRED,Commercial,Childcare services provided for staff including the management fee and subsidy costs,4000132095,"94,419"
DEPARTMENT FOR EDUCATION,DEPARTMENT FOR EDUCATION,24/06/2013,Grants,Families Group,CONSORTIUM OF VOLUNTARY ADOPTION AGENCIES UK LTD,VCS,Grants to third sector organisations / not for profit organisations,4000132124,"58,333"
DEPARTMENT FOR EDUCATION,DEPARTMENT FOR EDUCATION,24/06/2013,Programme costs,Families Group,BRITISH ASSOCIATION FOR ADOPTION & FOSTERING,VCS,Funding to deliver policies (excluding consultancy) paid to third parties via a service delivery contract,4000132155,"75,145"
DEPARTMENT FOR EDUCATION,DEPARTMENT FOR EDUCATION,24/06/2013,Professional Services Other,Children's Services and Departmental Strategy Early Years Extended Schools and Special Needs Group,DISCLOSURE & BARRING SERVICE,Central Government,"Fees / expenses of professionals from the private sector, for example to implement advice or changes",4000132180,"146,344"
DEPARTMENT FOR EDUCATION,DEPARTMENT FOR EDUCATION,25/06/2013,Learning and Development,Children's Services and Departmental Strategy Supporting Delivery Group,CIVIL SERVICE LEARNING,Public Sector,Staff training and development including materials and courses,4000132245,148
DEPARTMENT FOR EDUCATION,DEPARTMENT FOR EDUCATION,25/06/2013,Learning and Development,People and Change,CIVIL SERVICE LEARNING,Public Sector,Staff training and development including materials and courses,4000132245,"52,956"
DEPARTMENT FOR EDUCATION,DEPARTMENT FOR EDUCATION,26/06/2013,Programme costs,Families Group,BRITISH ASSOCIATION FOR ADOPTION & FOSTERING,VCS,Funding to deliver policies (excluding consultancy) paid to third parties via a service delivery contract,4000132312,"76,372"
DEPARTMENT FOR EDUCATION,DEPARTMENT FOR EDUCATION,28/06/2013,Grants,Families Group,LONDON BOROUGH OF LEWISHAM,Public Sector,Grants to local authorities within AEF/AEG (aggregate external funding/aggregate exchequer grant),4000132568,"72,201"
DEPARTMENT FOR EDUCATION,DEPARTMENT FOR EDUCATION,28/06/2013,Grants,Families Group,LONDON BOROUGH OF GREENWICH,Public Sector,Grants to local authorities within AEF/AEG (aggregate external funding/aggregate exchequer grant),4000132607,"106,997"
DEPARTMENT FOR EDUCATION,DEPARTMENT FOR EDUCATION,28/06/2013,Programme costs,Families Group,BRITISH ASSOCIATION FOR ADOPTION & FOSTERING,VCS,Funding to deliver policies (excluding consultancy) paid to third parties via a service delivery contract,4000132608,"74,572"
DEPARTMENT FOR EDUCATION,DEPARTMENT FOR EDUCATION,28/06/2013,Professional Services Other,Children's Services and Departmental Strategy Early Years Extended Schools and Special Needs Group,MOTT MACDONALD LTD,Commercial,"Fees / expenses of professionals from the private sector, for example to implement advice or changes",4000132728,"89,379"
DEPARTMENT FOR EDUCATION,DEPARTMENT FOR EDUCATION,28/06/2013,Programme costs,Families Group,NETMUMS COM,VCS,Funding to deliver policies (excluding consultancy) paid to third parties via a service delivery contract,4000132795,"64,000"
DEPARTMENT FOR EDUCATION,DEPARTMENT FOR EDUCATION,28/06/2013,Professional Services Consultancy and Contingent Labour,Communications Group,CAPITA RESOURCING LTD,Commercial,Costs related to temporary workers,4000132808,"1,996"
DEPARTMENT FOR EDUCATION,DEPARTMENT FOR EDUCATION,28/06/2013,Grants,Families Group,LEICESTER CITY COUNCIL,Public Sector,Grants to local authorities within AEF/AEG (aggregate external funding/aggregate exchequer grant),4000132842,"125,548"
DEPARTMENT FOR EDUCATION,DEPARTMENT FOR EDUCATION,28/06/2013,Professional Services Other,Strategic Analysis and Research and Policy Impact Group,ISOS PARTNERSHIP LLP,Commercial,Research and evaluation activities,4000132877,"46,075"
DEPARTMENT FOR EDUCATION,DEPARTMENT FOR EDUCATION,28/06/2013,Programme costs,Families Group,THE FOSTERING NETWORK,VCS,Funding to deliver policies (excluding consultancy) paid to third parties via a service delivery contract,4000133043,"29,577"
DEPARTMENT FOR EDUCATION,DEPARTMENT FOR EDUCATION,28/06/2013,Grants,Families Group,MANCHESTER CITY COUNCIL,Public Sector,Grants to local authorities within AEF/AEG (aggregate external funding/aggregate exchequer grant),4000133125,"34,454"
DEPARTMENT FOR EDUCATION,DEPARTMENT FOR EDUCATION,28/06/2013,Grants,Families Group,THE SHARE FOUNDATION 3RD PARTY TRUST,Public Sector,Grants to third sector organisations / not for profit organisations,4000133130,"264,600"
DEPARTMENT FOR EDUCATION,DEPARTMENT FOR EDUCATION,28/06/2013,Programme costs,Families Group,ONE PLUS ONE,VCS,Funding to deliver policies (excluding consultancy) paid to third parties via a service delivery contract,4000133166,"79,031"
DEPARTMENT FOR EDUCATION,DEPARTMENT FOR EDUCATION,28/06/2013,Grants,Families Group,SCHOOL HOME SUPPORT SERVICES UK,VCS,Grants to third sector organisations / not for profit organisations,4000133169,"61,300"
DEPARTMENT FOR EDUCATION,DEPARTMENT FOR EDUCATION,30/06/2013,Redactions,Various,Various,Various,"The total redacted transactions, including funding payment to Education Funding Agency and payments to JP Morgan. See Technical Notes for further information.",2000790,"4,465,551,000"
DEPARTMENT FOR EDUCATION,EDUCATION FUNDING AGENCY,07/06/2013,ICT,Educational Funding Agency Admin,BT,Commercial,Telecoms Facilities and Services,4000130274,485
DEPARTMENT FOR EDUCATION,EDUCATION FUNDING AGENCY,07/06/2013,ICT,Academies Group,BT,Commercial,Telecoms Facilities and Services,4000130274,943
DEPARTMENT FOR EDUCATION,EDUCATION FUNDING AGENCY,07/06/2013,ICT,Capital Group,BT,Commercial,Telecoms Facilities and Services,4000130274,"1,244"
DEPARTMENT FOR EDUCATION,EDUCATION FUNDING AGENCY,07/06/2013,ICT,School Funding Division,BT,Commercial,Telecoms Facilities and Services,4000130274,128
DEPARTMENT FOR EDUCATION,EDUCATION FUNDING AGENCY,07/06/2013,ICT,Education Funding Agency Admin,BT,Commercial,Telecoms Facilities and Services,4000130274,467
DEPARTMENT FOR EDUCATION,EDUCATION FUNDING AGENCY,07/06/2013,ICT,Young People Group,BT,Commercial,Telecoms Facilities and Services,4000130274,753
DEPARTMENT FOR EDUCATION,TEACHERS PENSION SCHEME,04/06/2013,Funding to Pay Teachers' Pensions,Workforce Group,CAPITA TP HSBC,Commercial,Funding to pay Teachers' Pensions,1001600,"271,686"
DEPARTMENT FOR EDUCATION,TEACHERS PENSION SCHEME,04/06/2013,Funding to Pay Teachers' Pensions,Workforce Group,CAPITA TP NATWEST,Commercial,Funding to pay Teachers' Pensions,1001601,"28,598,934"
DEPARTMENT FOR EDUCATION,TEACHERS PENSION SCHEME,05/06/2013,Funding to Pay Teachers' Pensions,Workforce Group,CAPITA TP HSBC,Commercial,Funding to pay Teachers' Pensions,1001602,"147,526"
DEPARTMENT FOR EDUCATION,TEACHERS PENSION SCHEME,05/06/2013,Funding to Pay Teachers' Pensions,Workforce Group,CAPITA TP NATWEST,Commercial,Funding to pay Teachers' Pensions,1001603,"18,556,908"
DEPARTMENT FOR EDUCATION,TEACHERS PENSION SCHEME,07/06/2013,Funding to Pay Teachers' Pensions,Workforce Group,CAPITA TP NATWEST,Commercial,Funding to pay Teachers' Pensions,1001604,"19,876,720"
DEPARTMENT FOR EDUCATION,TEACHERS PENSION SCHEME,07/06/2013,Funding to Pay Teachers' Pensions,Workforce Group,CAPITA TP HSBC,Commercial,Funding to pay Teachers' Pensions,1001605,"56,831"
DEPARTMENT FOR EDUCATION,TEACHERS PENSION SCHEME,07/06/2013,Funding to Pay Teachers' Pensions,Workforce Group,CAPITA TP HSBC,Commercial,Funding to pay Teachers' Pensions,1001606,"98,767"
DEPARTMENT FOR EDUCATION,TEACHERS PENSION SCHEME,07/06/2013,Funding to Pay Teachers' Pensions,Workforce Group,CAPITA TP NATWEST,Commercial,Funding to pay Teachers' Pensions,1001607,"18,308,021"
DEPARTMENT FOR EDUCATION,TEACHERS PENSION SCHEME,11/06/2013,Funding to Pay Teachers' Pensions,Workforce Group,CAPITA TP HSBC,Commercial,Funding to pay Teachers' Pensions,1001608,"110,763"
DEPARTMENT FOR EDUCATION,TEACHERS PENSION SCHEME,11/06/2013,Funding to Pay Teachers' Pensions,Workforce Group,CAPITA TP NATWEST,Commercial,Funding to pay Teachers' Pensions,1001609,"51,472,852"
DEPARTMENT FOR EDUCATION,TEACHERS PENSION SCHEME,12/06/2013,Funding to Pay Teachers' Pensions,Workforce Group,CAPITA TP HSBC,Commercial,Funding to pay Teachers' Pensions,1001610,"749,775"
DEPARTMENT FOR EDUCATION,TEACHERS PENSION SCHEME,12/06/2013,Funding to Pay Teachers' Pensions,Workforce Group,CAPITA TP HSBC,Commercial,Funding to pay Teachers' Pensions,1001611,"69,658"
DEPARTMENT FOR EDUCATION,TEACHERS PENSION SCHEME,12/06/2013,Funding to Pay Teachers' Pensions,Workforce Group,CAPITA TP NATWEST,Commercial,Funding to pay Teachers' Pensions,1001612,"18,919,751"
DEPARTMENT FOR EDUCATION,TEACHERS PENSION SCHEME,12/06/2013,Funding to Pay Teachers' Pensions,Workforce Group,CAPITA TP NATWEST,Commercial,Funding to pay Teachers' Pensions,1001613,"20,148,072"
DEPARTMENT FOR EDUCATION,TEACHERS PENSION SCHEME,13/06/2013,Funding to Pay Teachers' Pensions,Workforce Group,CAPITA TP HSBC,Commercial,Funding to pay Teachers' Pensions,1001614,"70,555"
DEPARTMENT FOR EDUCATION,TEACHERS PENSION SCHEME,13/06/2013,Funding to Pay Teachers' Pensions,Workforce Group,CAPITA TP NATWEST,Commercial,Funding to pay Teachers' Pensions,1001615,"18,507,818"
DEPARTMENT FOR EDUCATION,TEACHERS PENSION SCHEME,18/06/2013,Funding to Pay Teachers' Pensions,Workforce Group,CAPITA TP HSBC,Commercial,Funding to pay Teachers' Pensions,1001616,"26,055"
DEPARTMENT FOR EDUCATION,TEACHERS PENSION SCHEME,18/06/2013,Funding to Pay Teachers' Pensions,Workforce Group,CAPITA TP HSBC,Commercial,Funding to pay Teachers' Pensions,1001617,"204,677"
DEPARTMENT FOR EDUCATION,TEACHERS PENSION SCHEME,18/06/2013,Funding to Pay Teachers' Pensions,Workforce Group,CAPITA TP NATWEST,Commercial,Funding to pay Teachers' Pensions,1001618,"19,538,846"
DEPARTMENT FOR EDUCATION,TEACHERS PENSION SCHEME,18/06/2013,Funding to Pay Teachers' Pensions,Workforce Group,CAPITA TP NATWEST,Commercial,Funding to pay Teachers' Pensions,1001619,"51,161,140"
DEPARTMENT FOR EDUCATION,TEACHERS PENSION SCHEME,18/06/2013,Funding to Pay Teachers' Pensions,Workforce Group,CAPITA TP NATWEST,Commercial,Funding to pay Teachers' Pensions,1001620,"19,246,087"
DEPARTMENT FOR EDUCATION,TEACHERS PENSION SCHEME,19/06/2013,Funding to Pay Teachers' Pensions,Workforce Group,CAPITA TP HSBC,Commercial,Funding to pay Teachers' Pensions,1001622,"225,273"
DEPARTMENT FOR EDUCATION,TEACHERS PENSION SCHEME,19/06/2013,Funding to Pay Teachers' Pensions,Workforce Group,CAPITA TP NATWEST,Commercial,Funding to pay Teachers' Pensions,1001623,"18,325,865"
DEPARTMENT FOR EDUCATION,TEACHERS PENSION SCHEME,20/06/2013,Funding to Pay Teachers' Pensions,Workforce Group,CAPITA TP HSBC,Commercial,Funding to pay Teachers' Pensions,1001624,"411,743"
DEPARTMENT FOR EDUCATION,TEACHERS PENSION SCHEME,20/06/2013,Funding to Pay Teachers' Pensions,Workforce Group,CAPITA TP NATWEST,Commercial,Funding to pay Teachers' Pensions,1001625,"18,347,044"
DEPARTMENT FOR EDUCATION,TEACHERS PENSION SCHEME,24/06/2013,Funding to Pay Teachers' Pensions,Workforce Group,CAPITA TP HSBC,Commercial,Funding to pay Teachers' Pensions,1001626,"60,487"
DEPARTMENT FOR EDUCATION,TEACHERS PENSION SCHEME,24/06/2013,Funding to Pay Teachers' Pensions,Workforce Group,CAPITA TP NATWEST,Commercial,Funding to pay Teachers' Pensions,1001627,"18,261,585"
DEPARTMENT FOR EDUCATION,TEACHERS PENSION SCHEME,27/06/2013,Funding to Pay Teachers' Pensions,Workforce Group,CAPITA TP HSBC,Commercial,Funding to pay Teachers' Pensions,1001628,"148,611"
DEPARTMENT FOR EDUCATION,TEACHERS PENSION SCHEME,27/06/2013,Funding to Pay Teachers' Pensions,Workforce Group,CAPITA TP NATWEST,Commercial,Funding to pay Teachers' Pensions,1001629,"134,947,530"
DEPARTMENT FOR EDUCATION,TEACHERS PENSION SCHEME,27/06/2013,Funding to Pay Teachers' Pensions,Workforce Group,CAPITA TP HSBC,Commercial,Funding to pay Teachers' Pensions,1001630,"446,958"
DEPARTMENT FOR EDUCATION,TEACHERS PENSION SCHEME,27/06/2013,Funding to Pay Teachers' Pensions,Workforce Group,CAPITA TP HSBC,Commercial,Funding to pay Teachers' Pensions,1001631,"28,462"
DEPARTMENT FOR EDUCATION,TEACHERS PENSION SCHEME,27/06/2013,Funding to Pay Teachers' Pensions,Workforce Group,CAPITA TP HSBC,Commercial,Funding to pay Teachers' Pensions,1001632,"68,859"
DEPARTMENT FOR EDUCATION,TEACHERS PENSION SCHEME,27/06/2013,Funding to Pay Teachers' Pensions,Workforce Group,CAPITA TP NATWEST,Commercial,Funding to pay Teachers' Pensions,1001633,"18,762,224"
DEPARTMENT FOR EDUCATION,TEACHERS PENSION SCHEME,27/06/2013,Funding to Pay Teachers' Pensions,Workforce Group,CAPITA TP NATWEST,Commercial,Funding to pay Teachers' Pensions,1001634,"17,420,601"
DEPARTMENT FOR EDUCATION,TEACHERS PENSION SCHEME,27/06/2013,Funding to Pay Teachers' Pensions,Workforce Group,CAPITA TP NATWEST,Commercial,Funding to pay Teachers' Pensions,1001635,"20,269,776"
DEPARTMENT FOR EDUCATION,DEPARTMENT FOR EDUCATION,25/06/2013,Facilities,Teachers Group,TEACHERS SUPERANN,Public Sector,Accomodation Services,2000799,"308,283"
DEPARTMENT FOR EDUCATION,DEPARTMENT FOR EDUCATION,25/06/2013,Facilities,Teachers Group,TEACHERS SUPERANN,Public Sector,Accomodation Services,2000799,"8,629"
DEPARTMENT FOR EDUCATION,DEPARTMENT FOR EDUCATION,25/06/2013,Facilities,Teachers Group,TEACHERS SUPERANN,Public Sector,Accomodation Services,2000799,"719,045"
DEPARTMENT FOR EDUCATION,DEPARTMENT FOR EDUCATION,04/06/2013,Grants,Participation and Vocational Education Group,SKILL FORCE DEVELOPMENT,VCS,Grants to third sector organisations / not for profit organisations,4000129682,"65,601"
DEPARTMENT FOR EDUCATION,DEPARTMENT FOR EDUCATION,06/06/2013,Programme costs,Curriculum and General Qualifications Reform Group,TRIBAL EDUCATION LIMITED,Commercial,Funding to deliver policies (excluding consultancy) paid to third parties via a service delivery contract,4000130235,"295,875"
DEPARTMENT FOR EDUCATION,DEPARTMENT FOR EDUCATION,07/06/2013,ICT,Education Strategy Performance Analysis Group,BT,Commercial,Telecoms Facilities and Services,4000130274,45
DEPARTMENT FOR EDUCATION,DEPARTMENT FOR EDUCATION,07/06/2013,ICT,Teachers Group,BT,Commercial,Telecoms Facilities and Services,4000130274,35
DEPARTMENT FOR EDUCATION,DEPARTMENT FOR EDUCATION,07/06/2013,ICT,Education Standards Directorate,BT,Commercial,Telecoms Facilities and Services,4000130274,23
DEPARTMENT FOR EDUCATION,DEPARTMENT FOR EDUCATION,07/06/2013,ICT,Curriculum and General Qualifications Reform Group,BT,Commercial,Telecoms Facilities and Services,4000130274,65
DEPARTMENT FOR EDUCATION,DEPARTMENT FOR EDUCATION,07/06/2013,ICT,Participation and Vocational Education Group,BT,Commercial,Telecoms Facilities and Services,4000130274,22
DEPARTMENT FOR EDUCATION,DEPARTMENT FOR EDUCATION,07/06/2013,ICT,Education Strategy Performance Analysis Group,BT,Commercial,Telecoms Facilities and Services,4000130274,205
DEPARTMENT FOR EDUCATION,DEPARTMENT FOR EDUCATION,07/06/2013,ICT,Curriculum and General Qualifications Reform Group,BT,Commercial,Telecoms Facilities and Services,4000130274,45
DEPARTMENT FOR EDUCATION,DEPARTMENT FOR EDUCATION,07/06/2013,ICT,Participation and Vocational Education Group,BT,Commercial,Telecoms Facilities and Services,4000130274,45
DEPARTMENT FOR EDUCATION,DEPARTMENT FOR EDUCATION,07/06/2013,ICT,Participation and Vocational Education Group,BT,Commercial,Telecoms Facilities and Services,4000130274,2
DEPARTMENT FOR EDUCATION,DEPARTMENT FOR EDUCATION,07/06/2013,ICT,Education Strategy Performance Analysis Group,BT,Commercial,Telecoms Facilities and Services,4000130274,16
DEPARTMENT FOR EDUCATION,DEPARTMENT FOR EDUCATION,07/06/2013,ICT,Curriculum and General Qualifications Reform Group,BT,Commercial,Telecoms Facilities and Services,4000130274,41
DEPARTMENT FOR EDUCATION,DEPARTMENT FOR EDUCATION,07/06/2013,ICT,Participation and Vocational Education Group,BT,Commercial,Telecoms Facilities and Services,4000130274,40
DEPARTMENT FOR EDUCATION,DEPARTMENT FOR EDUCATION,07/06/2013,ICT,Participation and Vocational Education Group,BT,Commercial,Telecoms Facilities and Services,4000130274,45
DEPARTMENT FOR EDUCATION,DEPARTMENT FOR EDUCATION,07/06/2013,ICT,Participation and Vocational Education Group,BT,Commercial,Telecoms Facilities and Services,4000130274,27
DEPARTMENT FOR EDUCATION,DEPARTMENT FOR EDUCATION,07/06/2013,ICT,Participation and Vocational Education Group,BT,Commercial,Telecoms Facilities and Services,4000130274,45
DEPARTMENT FOR EDUCATION,DEPARTMENT FOR EDUCATION,07/06/2013,ICT,Participation and Vocational Education Group,BT,Commercial,Telecoms Facilities and Services,4000130274,20
DEPARTMENT FOR EDUCATION,DEPARTMENT FOR EDUCATION,07/06/2013,ICT,Teachers Group,BT,Commercial,Telecoms Facilities and Services,4000130274,91
DEPARTMENT FOR EDUCATION,DEPARTMENT FOR EDUCATION,07/06/2013,ICT,Teachers Group,BT,Commercial,Telecoms Facilities and Services,4000130274,27
DEPARTMENT FOR EDUCATION,DEPARTMENT FOR EDUCATION,07/06/2013,ICT,Teachers Group,BT,Commercial,Telecoms Facilities and Services,4000130274,11
DEPARTMENT FOR EDUCATION,DEPARTMENT FOR EDUCATION,07/06/2013,ICT,Teachers Group,BT,Commercial,Telecoms Facilities and Services,4000130274,18
DEPARTMENT FOR EDUCATION,DEPARTMENT FOR EDUCATION,07/06/2013,ICT,Teachers Group,BT,Commercial,Telecoms Facilities and Services,4000130274,12
DEPARTMENT FOR EDUCATION,DEPARTMENT FOR EDUCATION,10/06/2013,Programme costs,Education Strategy Performance Analysis Group,RESEARCH MACHINES PLC,Commercial,Funding to deliver policies (excluding consultancy) paid to third parties via a service delivery contract,4000130457,"475,642"
DEPARTMENT FOR EDUCATION,DEPARTMENT FOR EDUCATION,10/06/2013,Programme costs,Curriculum and General Qualifications Reform Group,TRIBAL EDUCATION LIMITED,Commercial,Funding to deliver policies (excluding consultancy) paid to third parties via a service delivery contract,4000130489,"255,912"
DEPARTMENT FOR EDUCATION,DEPARTMENT FOR EDUCATION,10/06/2013,Communications,Education Strategy Performance Analysis Group,RM EDUCATION,Commercial,Marketing services,4000130511,"40,957"
DEPARTMENT FOR EDUCATION,DEPARTMENT FOR EDUCATION,10/06/2013,ICT,Participation and Vocational Education Group,STERIA LTD,Commercial,ICT Services,4000130525,"206,545"
DEPARTMENT FOR EDUCATION,DEPARTMENT FOR EDUCATION,11/06/2013,Communications,Education Strategy Performance Analysis Group,SCISYS UK LTD,Commercial,Marketing services,4000130565,"25,000"
DEPARTMENT FOR EDUCATION,DEPARTMENT FOR EDUCATION,11/06/2013,Programme costs,Teachers Group,BABCOCK 4S LTD,Commercial,Funding to deliver policies (excluding consultancy) paid to third parties via a service delivery contract,4000130566,"36,285"
DEPARTMENT FOR EDUCATION,DEPARTMENT FOR EDUCATION,12/06/2013,Travel,Education Strategy Performance Analysis Group,REDFERN TRAVEL LTD,Commercial,"Staff business travel including air, coach, ferry, rail and taxi",4000130694,"7,447"
DEPARTMENT FOR EDUCATION,DEPARTMENT FOR EDUCATION,12/06/2013,Travel,Teachers Group,REDFERN TRAVEL LTD,Commercial,"Staff business travel including air, coach, ferry, rail and taxi",4000130694,"2,610"
DEPARTMENT FOR EDUCATION,DEPARTMENT FOR EDUCATION,12/06/2013,Personnel Related,Teachers Group,REDFERN TRAVEL LTD,Commercial,Subsistence and lodging allowances for official duty,4000130694,2
DEPARTMENT FOR EDUCATION,DEPARTMENT FOR EDUCATION,12/06/2013,Travel,Education Strategy Performance Analysis Group,REDFERN TRAVEL LTD,Commercial,"Staff business travel including air, coach, ferry, rail and taxi",4000130694,90
DEPARTMENT FOR EDUCATION,DEPARTMENT FOR EDUCATION,12/06/2013,Travel,Education Standards Directorate,REDFERN TRAVEL LTD,Commercial,"Staff business travel including air, coach, ferry, rail and taxi",4000130694,74
DEPARTMENT FOR EDUCATION,DEPARTMENT FOR EDUCATION,12/06/2013,Travel,Education Strategy Performance Analysis Group,REDFERN TRAVEL LTD,Commercial,"Staff business travel including air, coach, ferry, rail and taxi",4000130694,232
DEPARTMENT FOR EDUCATION,DEPARTMENT FOR EDUCATION,12/06/2013,Travel,Education Strategy Performance Analysis Group,REDFERN TRAVEL LTD,Commercial,"Staff business travel including air, coach, ferry, rail and taxi",4000130694,381
DEPARTMENT FOR EDUCATION,DEPARTMENT FOR EDUCATION,12/06/2013,Travel,Education Strategy Performance Analysis Group,REDFERN TRAVEL LTD,Commercial,"Staff business travel including air, coach, ferry, rail and taxi",4000130694,961
DEPARTMENT FOR EDUCATION,DEPARTMENT FOR EDUCATION,12/06/2013,Travel,Education Strategy Performance Analysis Group,REDFERN TRAVEL LTD,Commercial,"Staff business travel including air, coach, ferry, rail and taxi",4000130694,81
DEPARTMENT FOR EDUCATION,DEPARTMENT FOR EDUCATION,12/06/2013,Travel,Education Strategy Performance Analysis Group,REDFERN TRAVEL LTD,Commercial,"Staff business travel including air, coach, ferry, rail and taxi",4000130694,-61
DEPARTMENT FOR EDUCATION,DEPARTMENT FOR EDUCATION,12/06/2013,Travel,Education Strategy Performance Analysis Group,REDFERN TRAVEL LTD,Commercial,"Staff business travel including air, coach, ferry, rail and taxi",4000130694,599
DEPARTMENT FOR EDUCATION,DEPARTMENT FOR EDUCATION,12/06/2013,Travel,Education Strategy Performance Analysis Group,REDFERN TRAVEL LTD,Commercial,"Staff business travel including air, coach, ferry, rail and taxi",4000130694,-78
DEPARTMENT FOR EDUCATION,DEPARTMENT FOR EDUCATION,12/06/2013,Travel,Curriculum and General Qualifications Reform Group,REDFERN TRAVEL LTD,Commercial,"Staff business travel including air, coach, ferry, rail and taxi",4000130694,215
DEPARTMENT FOR EDUCATION,DEPARTMENT FOR EDUCATION,12/06/2013,Travel,Curriculum and General Qualifications Reform Group,REDFERN TRAVEL LTD,Commercial,"Staff business travel including air, coach, ferry, rail and taxi",4000130694,765
DEPARTMENT FOR EDUCATION,DEPARTMENT FOR EDUCATION,12/06/2013,Travel,Curriculum and General Qualifications Reform Group,REDFERN TRAVEL LTD,Commercial,"Staff business travel including air, coach, ferry, rail and taxi",4000130694,"3,652"
DEPARTMENT FOR EDUCATION,DEPARTMENT FOR EDUCATION,12/06/2013,Travel,Curriculum and General Qualifications Reform Group,REDFERN TRAVEL LTD,Commercial,"Staff business travel including air, coach, ferry, rail and taxi",4000130694,393
DEPARTMENT FOR EDUCATION,DEPARTMENT FOR EDUCATION,12/06/2013,Travel,Participation and Vocational Education Group,REDFERN TRAVEL LTD,Commercial,"Staff business travel including air, coach, ferry, rail and taxi",4000130694,"1,599"
DEPARTMENT FOR EDUCATION,DEPARTMENT FOR EDUCATION,12/06/2013,Travel,Education Strategy Performance Analysis Group,REDFERN TRAVEL LTD,Commercial,"Staff business travel including air, coach, ferry, rail and taxi",4000130694,"4,207"
DEPARTMENT FOR EDUCATION,DEPARTMENT FOR EDUCATION,12/06/2013,Travel,Curriculum and General Qualifications Reform Group,REDFERN TRAVEL LTD,Commercial,"Staff business travel including air, coach, ferry, rail and taxi",4000130694,"2,767"
DEPARTMENT FOR EDUCATION,DEPARTMENT FOR EDUCATION,12/06/2013,Travel,Education Strategy Performance Analysis Group,REDFERN TRAVEL LTD,Commercial,"Staff business travel including air, coach, ferry, rail and taxi",4000130694,839
DEPARTMENT FOR EDUCATION,DEPARTMENT FOR EDUCATION,12/06/2013,Travel,Participation and Vocational Education Group,REDFERN TRAVEL LTD,Commercial,"Staff business travel including air, coach, ferry, rail and taxi",4000130694,"1,836"
DEPARTMENT FOR EDUCATION,DEPARTMENT FOR EDUCATION,12/06/2013,Travel,Education Strategy Performance Analysis Group,REDFERN TRAVEL LTD,Commercial,"Staff business travel including air, coach, ferry, rail and taxi",4000130694,-93
DEPARTMENT FOR EDUCATION,DEPARTMENT FOR EDUCATION,12/06/2013,Travel,Education Strategy Performance Analysis Group,REDFERN TRAVEL LTD,Commercial,"Staff business travel including air, coach, ferry, rail and taxi",4000130694,"1,118"
DEPARTMENT FOR EDUCATION,DEPARTMENT FOR EDUCATION,12/06/2013,Travel,Participation and Vocational Education Group,REDFERN TRAVEL LTD,Commercial,"Staff business travel including air, coach, ferry, rail and taxi",4000130694,174
DEPARTMENT FOR EDUCATION,DEPARTMENT FOR EDUCATION,12/06/2013,Travel,Curriculum and General Qualifications Reform Group,REDFERN TRAVEL LTD,Commercial,"Staff business travel including air, coach, ferry, rail and taxi",4000130694,440
DEPARTMENT FOR EDUCATION,DEPARTMENT FOR EDUCATION,12/06/2013,Travel,Participation and Vocational Education Group,REDFERN TRAVEL LTD,Commercial,"Staff business travel including air, coach, ferry, rail and taxi",4000130694,-26
DEPARTMENT FOR EDUCATION,DEPARTMENT FOR EDUCATION,12/06/2013,Travel,Participation and Vocational Education Group,REDFERN TRAVEL LTD,Commercial,"Staff business travel including air, coach, ferry, rail and taxi",4000130694,"2,715"
DEPARTMENT FOR EDUCATION,DEPARTMENT FOR EDUCATION,12/06/2013,Travel,Participation and Vocational Education Group,REDFERN TRAVEL LTD,Commercial,"Staff business travel including air, coach, ferry, rail and taxi",4000130694,"2,798"
DEPARTMENT FOR EDUCATION,DEPARTMENT FOR EDUCATION,12/06/2013,Travel,Participation and Vocational Education Group,REDFERN TRAVEL LTD,Commercial,"Staff business travel including air, coach, ferry, rail and taxi",4000130694,"1,913"
DEPARTMENT FOR EDUCATION,DEPARTMENT FOR EDUCATION,12/06/2013,Travel,Participation and Vocational Education Group,REDFERN TRAVEL LTD,Commercial,"Staff business travel including air, coach, ferry, rail and taxi to attend training events",4000130694,0
DEPARTMENT FOR EDUCATION,DEPARTMENT FOR EDUCATION,12/06/2013,Travel,Teachers Group,REDFERN TRAVEL LTD,Commercial,"Staff business travel including air, coach, ferry, rail and taxi",4000130694,655
DEPARTMENT FOR EDUCATION,DEPARTMENT FOR EDUCATION,12/06/2013,Travel,Teachers Group,REDFERN TRAVEL LTD,Commercial,"Staff business travel including air, coach, ferry, rail and taxi",4000130694,"3,395"
DEPARTMENT FOR EDUCATION,DEPARTMENT FOR EDUCATION,12/06/2013,Travel,Teachers Group,REDFERN TRAVEL LTD,Commercial,"Staff business travel including air, coach, ferry, rail and taxi",4000130694,"3,087"
DEPARTMENT FOR EDUCATION,DEPARTMENT FOR EDUCATION,12/06/2013,Personnel Related,Teachers Group,REDFERN TRAVEL LTD,Commercial,Subsistence and lodging allowances for official duty,4000130694,1
DEPARTMENT FOR EDUCATION,DEPARTMENT FOR EDUCATION,12/06/2013,Travel,Teachers Group,REDFERN TRAVEL LTD,Commercial,"Staff business travel including air, coach, ferry, rail and taxi",4000130694,"1,917"
DEPARTMENT FOR EDUCATION,DEPARTMENT FOR EDUCATION,12/06/2013,Travel,Curriculum and General Qualifications Reform Group,REDFERN TRAVEL LTD,Commercial,"Staff business travel including air, coach, ferry, rail and taxi",4000130694,69
DEPARTMENT FOR EDUCATION,DEPARTMENT FOR EDUCATION,12/06/2013,Programme costs,Teachers Group,CAPITA LIFE & PENSIONS SERVICES LTD,Commercial,Funding to deliver policies (excluding consultancy) paid to third parties via a service delivery contract,4000130771,"1,051,867"
DEPARTMENT FOR EDUCATION,DEPARTMENT FOR EDUCATION,12/06/2013,Programme costs,Curriculum and General Qualifications Reform Group,IOP INSTITUTE OF PHYSICS,Public Sector,Funding to deliver policies (excluding consultancy) paid to third parties via a service delivery contract,4000130819,"517,941"
DEPARTMENT FOR EDUCATION,DEPARTMENT FOR EDUCATION,12/06/2013,Professional Services Other,Participation and Vocational Education Group,NFER TRADING LIMITED INV T,Commercial,Research and evaluation activities,4000130832,"-10,646"
DEPARTMENT FOR EDUCATION,DEPARTMENT FOR EDUCATION,12/06/2013,Professional Services Other,Participation and Vocational Education Group,NFER TRADING LIMITED INV T,Commercial,Research and evaluation activities,4000130832,"5,000"
DEPARTMENT FOR EDUCATION,DEPARTMENT FOR EDUCATION,13/06/2013,ICT,Education Strategy Performance Analysis Group,CAPGEMINI UK PLC,Commercial,ICT Services,4000130839,"118,632"
DEPARTMENT FOR EDUCATION,DEPARTMENT FOR EDUCATION,13/06/2013,Programme costs,Teachers Group,CAPITA LIFE & PENSIONS SERVICES LTD,Commercial,Funding to deliver policies (excluding consultancy) paid to third parties via a service delivery contract,4000130875,"116,874"
DEPARTMENT FOR EDUCATION,DEPARTMENT FOR EDUCATION,13/06/2013,Grants,Curriculum and General Qualifications Reform Group,SHAKESPEARE SCHOOLS FESTIVAL,Public Sector,Grants to third sector organisations / not for profit organisations,4000130888,"83,564"
DEPARTMENT FOR EDUCATION,DEPARTMENT FOR EDUCATION,13/06/2013,Programme costs,Teachers Group,GOVERNMENT ACTUARYS DEPARTMENT GAD,Central Government,Funding to deliver policies (excluding consultancy) paid to third parties via a service delivery contract,4000130904,"37,020"
DEPARTMENT FOR EDUCATION,DEPARTMENT FOR EDUCATION,13/06/2013,Programme costs,Teachers Group,BABCOCK 4S LTD,Commercial,Funding to deliver policies (excluding consultancy) paid to third parties via a service delivery contract,4000130912,"37,653"
DEPARTMENT FOR EDUCATION,DEPARTMENT FOR EDUCATION,14/06/2013,ICT,Education Strategy Performance Analysis Group,CAPGEMINI UK PLC,Commercial,ICT Services,4000131017,"8,520"
DEPARTMENT FOR EDUCATION,DEPARTMENT FOR EDUCATION,14/06/2013,ICT,Education Strategy Performance Analysis Group,CAPGEMINI UK PLC,Commercial,ICT Services,4000131017,"5,512"
DEPARTMENT FOR EDUCATION,DEPARTMENT FOR EDUCATION,18/06/2013,Travel,Participation and Vocational Education Group,CREATIVE CHOICE,Public Sector,Hosting conferences including programme activity such as conferences for teachers,4000131291,"37,733"
DEPARTMENT FOR EDUCATION,DEPARTMENT FOR EDUCATION,18/06/2013,Communications,Curriculum and General Qualifications Reform Group,PROLOG,Commercial,Marketing services,4000131314,"1,333"
DEPARTMENT FOR EDUCATION,DEPARTMENT FOR EDUCATION,18/06/2013,Communications,Curriculum and General Qualifications Reform Group,PROLOG,Commercial,Marketing services,4000131314,"4,056"
DEPARTMENT FOR EDUCATION,DEPARTMENT FOR EDUCATION,18/06/2013,Communications,Curriculum and General Qualifications Reform Group,PROLOG,Commercial,Marketing services,4000131314,"1,085"
DEPARTMENT FOR EDUCATION,DEPARTMENT FOR EDUCATION,18/06/2013,Professional Services Other,Teachers Group,PROLOG,Commercial,Interpretations and translation services,4000131314,"5,900"
DEPARTMENT FOR EDUCATION,DEPARTMENT FOR EDUCATION,18/06/2013,Communications,Participation and Vocational Education Group,PROLOG,Commercial,Marketing services,4000131314,39
DEPARTMENT FOR EDUCATION,DEPARTMENT FOR EDUCATION,18/06/2013,Programme costs,Curriculum and General Qualifications Reform Group,EASTERN SHIRES PURCHASING ORGANISATION,Public Sector,Funding to deliver policies (excluding consultancy) paid to third parties via a service delivery contract,4000131340,"42,906"
DEPARTMENT FOR EDUCATION,DEPARTMENT FOR EDUCATION,18/06/2013,Programme costs,Curriculum and General Qualifications Reform Group,MYSCIENCE CO LTD,Commercial,Funding to deliver policies (excluding consultancy) paid to third parties via a service delivery contract,4000131342,"68,626"
DEPARTMENT FOR EDUCATION,DEPARTMENT FOR EDUCATION,19/06/2013,Professional Services Other,Education Strategy Performance Analysis Group,NFER TRADING LIMITED INV T,Commercial,Research and evaluation activities,4000131523,"30,000"
DEPARTMENT FOR EDUCATION,DEPARTMENT FOR EDUCATION,24/06/2013,Communications,Education Strategy Performance Analysis Group,RM EDUCATION,Commercial,Marketing services,4000132064,"75,178"
DEPARTMENT FOR EDUCATION,DEPARTMENT FOR EDUCATION,24/06/2013,Communications,Education Strategy Performance Analysis Group,J P ASSOCIATES,Commercial,Marketing services,4000132110,"54,523"
DEPARTMENT FOR EDUCATION,DEPARTMENT FOR EDUCATION,24/06/2013,ICT,Education Strategy Performance Analysis Group,ATKINS LTD,Commercial,ICT Services,4000132119,"120,966"
DEPARTMENT FOR EDUCATION,DEPARTMENT FOR EDUCATION,24/06/2013,Programme costs,Curriculum and General Qualifications Reform Group,EDGE HILL UNIVERSITY,Public Sector,Funding to deliver policies (excluding consultancy) paid to third parties via a service delivery contract,4000132144,"156,763"
DEPARTMENT FOR EDUCATION,DEPARTMENT FOR EDUCATION,24/06/2013,Professional Services Other,Participation and Vocational Education Group,NFER TRADING LIMITED INV T,Commercial,Research and evaluation activities,4000132146,"26,485"
DEPARTMENT FOR EDUCATION,DEPARTMENT FOR EDUCATION,25/06/2013,Programme costs,Curriculum and General Qualifications Reform Group,EASTERN SHIRES PURCHASING ORGANISATION,Public Sector,Funding to deliver policies (excluding consultancy) paid to third parties via a service delivery contract,4000132275,"354,844"
DEPARTMENT FOR EDUCATION,DEPARTMENT FOR EDUCATION,28/06/2013,ICT,Participation and Vocational Education Group,STERIA LTD,Commercial,ICT Services,4000132717,"206,545"
DEPARTMENT FOR EDUCATION,DEPARTMENT FOR EDUCATION,28/06/2013,Grants,Curriculum and General Qualifications Reform Group,ROYAL SHAKESPEARE COMPANY,Commercial,Grants to third sector organisations / not for profit organisations,4000132881,"44,941"
DEPARTMENT FOR EDUCATION,DEPARTMENT FOR EDUCATION,07/06/2013,Professional Services Consultancy and Contingent Labour,Finance and Commercial Group,CAPITA RESOURCING LTD,Commercial,Costs related to temporary workers,4000130273,"6,697"
DEPARTMENT FOR EDUCATION,DEPARTMENT FOR EDUCATION,07/06/2013,ICT,Finance and Commercial Group,BT,Commercial,Telecoms Facilities and Services,4000130274,45
DEPARTMENT FOR EDUCATION,DEPARTMENT FOR EDUCATION,07/06/2013,ICT,Finance and Commercial Group,BT,Commercial,Telecoms Facilities and Services,4000130274,45
DEPARTMENT FOR EDUCATION,DEPARTMENT FOR EDUCATION,07/06/2013,ICT,Finance and Commercial Group,BT,Commercial,Telecoms Facilities and Services,4000130274,906
DEPARTMENT FOR EDUCATION,DEPARTMENT FOR EDUCATION,07/06/2013,ICT,Finance and Commercial Group,BT,Commercial,Telecoms Facilities and Services,4000130274,45
DEPARTMENT FOR EDUCATION,DEPARTMENT FOR EDUCATION,07/06/2013,ICT,Finance and Commercial Group,BT,Commercial,Telecoms Facilities and Services,4000130274,5
DEPARTMENT FOR EDUCATION,DEPARTMENT FOR EDUCATION,07/06/2013,ICT,ALB Reform Group,BT,Commercial,Telecoms Facilities and Services,4000130274,192
DEPARTMENT FOR EDUCATION,DEPARTMENT FOR EDUCATION,07/06/2013,ICT,Finance and Commercial Group,BT,Commercial,Telecoms Facilities and Services,4000130274,22
DEPARTMENT FOR EDUCATION,DEPARTMENT FOR EDUCATION,12/06/2013,Travel,Finance and Commercial Group,REDFERN TRAVEL LTD,Commercial,"Staff business travel including air, coach, ferry, rail and taxi",4000130694,"27,261"
DEPARTMENT FOR EDUCATION,DEPARTMENT FOR EDUCATION,12/06/2013,Personnel Related,Finance and Commercial Group,REDFERN TRAVEL LTD,Commercial,Subsistence and lodging allowances for official duty,4000130694,1
DEPARTMENT FOR EDUCATION,DEPARTMENT FOR EDUCATION,12/06/2013,Travel,Finance and Commercial Group,REDFERN TRAVEL LTD,Commercial,"Staff business travel including air, coach, ferry, rail and taxi to attend training events",4000130694,3
DEPARTMENT FOR EDUCATION,DEPARTMENT FOR EDUCATION,12/06/2013,Travel,Finance and Commercial Group,REDFERN TRAVEL LTD,Commercial,"Staff business travel including air, coach, ferry, rail and taxi",4000130694,308
DEPARTMENT FOR EDUCATION,DEPARTMENT FOR EDUCATION,12/06/2013,Travel,ALB Reform Group,REDFERN TRAVEL LTD,Commercial,"Staff business travel including air, coach, ferry, rail and taxi",4000130694,"2,520"
DEPARTMENT FOR EDUCATION,DEPARTMENT FOR EDUCATION,12/06/2013,Personnel Related,ALB Reform Group,REDFERN TRAVEL LTD,Commercial,Subsistence and lodging allowances for official duty,4000130694,3
DEPARTMENT FOR EDUCATION,DEPARTMENT FOR EDUCATION,12/06/2013,Travel,Finance and Commercial Group,REDFERN TRAVEL LTD,Commercial,"Staff business travel including air, coach, ferry, rail and taxi",4000130694,754
DEPARTMENT FOR EDUCATION,DEPARTMENT FOR EDUCATION,12/06/2013,Travel,Finance and Commercial Group,REDFERN TRAVEL LTD,Commercial,"Staff business travel including air, coach, ferry, rail and taxi",4000130694,600
DEPARTMENT FOR EDUCATION,DEPARTMENT FOR EDUCATION,12/06/2013,Travel,Finance and Commercial Group,REDFERN TRAVEL LTD,Commercial,"Staff business travel including air, coach, ferry, rail and taxi",4000130694,"7,473"
DEPARTMENT FOR EDUCATION,DEPARTMENT FOR EDUCATION,14/06/2013,Communications,Finance and Commercial Group,CAPGEMINI UK PLC,Commercial,Marketing services,4000131017,"2,009"
DEPARTMENT FOR EDUCATION,DEPARTMENT FOR EDUCATION,21/06/2013,Professional Services Consultancy and Contingent Labour,Finance and Commercial Group,CAPITA RESOURCING LTD,Commercial,Costs related to temporary workers,4000131991,"11,941"
DEPARTMENT FOR EDUCATION,DEPARTMENT FOR EDUCATION,25/06/2013,ICT,Finance and Commercial Group,DWP,Central Government,ICT Software,4000132290,"51,346"
DEPARTMENT FOR EDUCATION,DEPARTMENT FOR EDUCATION,28/06/2013,Professional Services Consultancy and Contingent Labour,Finance and Commercial Group,CAPITA RESOURCING LTD,Commercial,Costs related to temporary workers,4000132808,"6,708"
DEPARTMENT FOR EDUCATION,DEPARTMENT FOR EDUCATION,27/06/2013,Facilities,Finance and Commercial Group - Property Asset Management,GVA GRIMLEY LTD,Commercial,Business Rates,1001160,"704,415"
DEPARTMENT FOR EDUCATION,DEPARTMENT FOR EDUCATION,05/06/2013,Facilities,Finance and Commercial Group - Property Asset Management,DEPARTMENT FOR COMMUNITIES AND LOCAL GOVERNMENT,Central Government,Rent,2000792,"106,981"
DEPARTMENT FOR EDUCATION,DEPARTMENT FOR EDUCATION,06/06/2013,Energy and Fuels,Finance and Commercial Group - Property Asset Management,EDF ENERGY,Commercial,Electricity supply,4000130099,"120,782"
DEPARTMENT FOR EDUCATION,DEPARTMENT FOR EDUCATION,07/06/2013,ICT,Finance and Commercial Group - Property Asset Management,BT,Commercial,Telecoms Facilities and Services,4000130274,278
DEPARTMENT FOR EDUCATION,DEPARTMENT FOR EDUCATION,07/06/2013,ICT,Finance and Commercial Group - Property Asset Management,BT,Commercial,Telecoms Facilities and Services,4000130274,91
DEPARTMENT FOR EDUCATION,DEPARTMENT FOR EDUCATION,07/06/2013,ICT,Finance and Commercial Group - Property Asset Management,BT,Commercial,Telecoms Facilities and Services,4000130274,26
DEPARTMENT FOR EDUCATION,DEPARTMENT FOR EDUCATION,07/06/2013,ICT,Finance and Commercial Group - Property Asset Management,BT,Commercial,Telecoms Facilities and Services,4000130274,91
DEPARTMENT FOR EDUCATION,DEPARTMENT FOR EDUCATION,07/06/2013,Print and Print Management,Finance and Commercial Group - Property Asset Management,THE DANWOOD GROUP LTD,Commercial,"Reprographic, photo and design goods and services (excluding photocopiers, multifunctional devices and printers)",4000130365,"5,276"
DEPARTMENT FOR EDUCATION,DEPARTMENT FOR EDUCATION,07/06/2013,Print and Print Management,Finance and Commercial Group - Property Asset Management,THE DANWOOD GROUP LTD,Commercial,"Reprographic, photo and design goods and services (excluding photocopiers, multifunctional devices and printers)",4000130365,"46,080"
DEPARTMENT FOR EDUCATION,DEPARTMENT FOR EDUCATION,12/06/2013,Travel,Finance and Commercial Group - Property Asset Management,REDFERN TRAVEL LTD,Commercial,"Staff business travel including air, coach, ferry, rail and taxi",4000130694,113
DEPARTMENT FOR EDUCATION,DEPARTMENT FOR EDUCATION,12/06/2013,Travel,Finance and Commercial Group - Property Asset Management,REDFERN TRAVEL LTD,Commercial,"Staff business travel including air, coach, ferry, rail and taxi",4000130694,"6,973"
DEPARTMENT FOR EDUCATION,DEPARTMENT FOR EDUCATION,12/06/2013,Travel,Finance and Commercial Group,REDFERN TRAVEL LTD,Commercial,"Staff business travel including air, coach, ferry, rail and taxi",4000130694,"2,188"
DEPARTMENT FOR EDUCATION,DEPARTMENT FOR EDUCATION,12/06/2013,Personnel Related,Finance and Commercial Group,REDFERN TRAVEL LTD,Commercial,Subsistence and lodging allowances for official duty,4000130694,0
DEPARTMENT FOR EDUCATION,DEPARTMENT FOR EDUCATION,12/06/2013,Travel,Finance and Commercial Group,REDFERN TRAVEL LTD,Commercial,"Staff business travel including air, coach, ferry, rail and taxi to attend training events",4000130694,0
DEPARTMENT FOR EDUCATION,DEPARTMENT FOR EDUCATION,12/06/2013,Travel,Finance and Commercial Group - Property Asset Management,REDFERN TRAVEL LTD,Commercial,"Staff business travel including air, coach, ferry, rail and taxi",4000130694,285
DEPARTMENT FOR EDUCATION,DEPARTMENT FOR EDUCATION,12/06/2013,Facilities,Finance and Commercial Group - Property Asset Management,INTERSERVE FACILITIES MANAGEMENT LTD,Commercial,"Building maintenance and repair, including repainting, replacing flooring, etc.",4000130699,"41,972"
DEPARTMENT FOR EDUCATION,DEPARTMENT FOR EDUCATION,20/06/2013,Facilities,Finance and Commercial Group - Property Asset Management,INTERSERVE FACILITIES MANAGEMENT LTD,Commercial,"Building maintenance and repair, including repainting, replacing flooring, etc.",4000131758,"309,094"
DEPARTMENT FOR EDUCATION,DEPARTMENT FOR EDUCATION,21/06/2013,Facilities,Finance and Commercial Group - Property Asset Management,GVA GRIMLEY LTD,Commercial,Rent,4000131954,"4,144,604"
DEPARTMENT FOR EDUCATION,DEPARTMENT FOR EDUCATION,24/06/2013,Facilities,Finance and Commercial Group - Property Asset Management,GVA GRIMLEY LTD,Commercial,Rent,4000132122,"155,661"
DEPARTMENT FOR EDUCATION,DEPARTMENT FOR EDUCATION,28/06/2013,Facilities,Finance and Commercial Group - Property Asset Management,INTERSERVE FACILITIES MANAGEMENT LTD,Commercial,"Building maintenance and repair, including repainting, replacing flooring, etc.",4000133056,"73,266"
DEPARTMENT FOR EDUCATION,DEPARTMENT FOR EDUCATION,28/06/2013,Facilities,Finance and Commercial Group - Property Asset Management,INTERSERVE FACILITIES MANAGEMENT LTD,Commercial,"Building maintenance and repair, including repainting, replacing flooring, etc.",4000133056,"25,973"
DEPARTMENT FOR EDUCATION,DEPARTMENT FOR EDUCATION,28/06/2013,Energy and Fuels,Finance and Commercial Group - Property Asset Management,EDF ENERGY LTD,Commercial,Electricity supply,4000133170,"123,086"
DEPARTMENT FOR EDUCATION,DEPARTMENT FOR EDUCATION,04/06/2013,Grants,Academies Delivery Group,NOTLEY HIGH SCHOOL & BRAINTREE SIXTH FORM,Public Sector,"Grants paid to organisations including agencies, arms length bodies and educational establishments",1001141,"50,000"
DEPARTMENT FOR EDUCATION,DEPARTMENT FOR EDUCATION,07/06/2013,Grants,Academies Delivery Group,WAKEFIELD CITY ACADEMY,Public Sector,"Grants paid to organisations including agencies, arms length bodies and educational establishments",1001147,"60,000"
DEPARTMENT FOR EDUCATION,DEPARTMENT FOR EDUCATION,27/06/2013,Grants,Free School Group,ASPIRATIONS ACADEMIES TRUST,Public Sector,"Grants paid to organisations including agencies, arms length bodies and educational establishments",1001158,"90,000"
DEPARTMENT FOR EDUCATION,DEPARTMENT FOR EDUCATION,27/06/2013,Grants,Academies Delivery Group,COLSTON GIRLS SCHOOL TRUST,Public Sector,"Grants paid to organisations including agencies, arms length bodies and educational establishments",1001159,"120,000"
DEPARTMENT FOR EDUCATION,DEPARTMENT FOR EDUCATION,13/06/2013,Professional Services Other,Education Funding Group,PICTURE SRL,Commercial,"Fees / expenses of professionals from the private sector, for example to implement advice or changes",3000172,"137,077"
DEPARTMENT FOR EDUCATION,DEPARTMENT FOR EDUCATION,03/06/2013,Grants,Academies Delivery Group,THE COLLABORATIVE ACADEMIES TRUST,Public Sector,"Grants paid to organisations including agencies, arms length bodies and educational establishments",4000129580,"69,458"
DEPARTMENT FOR EDUCATION,DEPARTMENT FOR EDUCATION,03/06/2013,Grants,Academies Delivery Group,HARRIS BOYS ACADEMY EAST DULWICH,Public Sector,Capital grants paid to a private sector organisation,4000129586,"144,269"
DEPARTMENT FOR EDUCATION,DEPARTMENT FOR EDUCATION,04/06/2013,Grants,Academies Delivery Group,HAMPSHIRE COUNTY COUNCIL,Public Sector,"Grants paid to organisations including agencies, arms length bodies and educational establishments",4000129689,"25,000"
DEPARTMENT FOR EDUCATION,DEPARTMENT FOR EDUCATION,04/06/2013,Grants,Academies Delivery Group,SCHOOL PARTNERSHIP TRUST ACADEMIES,Public Sector,"Grants paid to organisations including agencies, arms length bodies and educational establishments",4000129699,"43,885"
DEPARTMENT FOR EDUCATION,DEPARTMENT FOR EDUCATION,04/06/2013,Grants,Academies Delivery Group,SCHOOL PARTNERSHIP TRUST ACADEMIES,Public Sector,"Grants paid to organisations including agencies, arms length bodies and educational establishments",4000129699,"25,000"
DEPARTMENT FOR EDUCATION,DEPARTMENT FOR EDUCATION,04/06/2013,Grants,Academies Delivery Group,SAXON PRIMARY SCHOOL,Public Sector,"Grants paid to organisations including agencies, arms length bodies and educational establishments",4000129706,"65,000"
DEPARTMENT FOR EDUCATION,DEPARTMENT FOR EDUCATION,04/06/2013,Grants,Academies Delivery Group,MILFORD ON SEA CE PRIMARY SCHOOL,Public Sector,"Grants paid to organisations including agencies, arms length bodies and educational establishments",4000129733,"25,000"
DEPARTMENT FOR EDUCATION,DEPARTMENT FOR EDUCATION,04/06/2013,Grants,Academies Delivery Group,CHEAM PARK FARM NURSERY & INFANTS SCHOOL,Public Sector,"Grants paid to organisations including agencies, arms length bodies and educational establishments",4000129734,"25,000"
DEPARTMENT FOR EDUCATION,DEPARTMENT FOR EDUCATION,04/06/2013,Grants,Academies Delivery Group,HARDEN PRIMARY SCHOOL,Public Sector,"Grants paid to organisations including agencies, arms length bodies and educational establishments",4000129735,"25,000"
DEPARTMENT FOR EDUCATION,DEPARTMENT FOR EDUCATION,04/06/2013,Grants,Academies Delivery Group,HINKLER ACADEMIES TRUST,Public Sector,"Grants paid to organisations including agencies, arms length bodies and educational establishments",4000129742,"65,000"
DEPARTMENT FOR EDUCATION,DEPARTMENT FOR EDUCATION,04/06/2013,Grants,Academies Delivery Group,WOODVILLE PRIMARY SCHOOL,Public Sector,"Grants paid to organisations including agencies, arms length bodies and educational establishments",4000129743,"25,000"
DEPARTMENT FOR EDUCATION,DEPARTMENT FOR EDUCATION,04/06/2013,Grants,Academies Delivery Group,NORTH HERTFORDSHIRE STUDIO SCHOOL TRUST,Public Sector,"Grants paid to organisations including agencies, arms length bodies and educational establishments",4000129748,"90,000"
DEPARTMENT FOR EDUCATION,DEPARTMENT FOR EDUCATION,04/06/2013,Grants,Academies Delivery Group,KENT CATHOLIC SCHOOLS PARTNERSHIP,Public Sector,"Grants paid to organisations including agencies, arms length bodies and educational establishments",4000129757,"25,000"
DEPARTMENT FOR EDUCATION,DEPARTMENT FOR EDUCATION,04/06/2013,Grants,Academies Delivery Group,HARRIS FEDERATION OF SOUTH LONDON SCHOOLS,Public Sector,"Grants paid to organisations including agencies, arms length bodies and educational establishments",4000129767,"65,000"
DEPARTMENT FOR EDUCATION,DEPARTMENT FOR EDUCATION,04/06/2013,Grants,Academies Delivery Group,WALSALL  COUNCIL,Public Sector,"Grants paid to organisations including agencies, arms length bodies and educational establishments",4000129769,"25,000"
DEPARTMENT FOR EDUCATION,DEPARTMENT FOR EDUCATION,04/06/2013,Grants,Academies Delivery Group,UNIVERSITY OF CHICHESTER,Public Sector,"Grants paid to organisations including agencies, arms length bodies and educational establishments",4000129785,"65,000"
DEPARTMENT FOR EDUCATION,DEPARTMENT FOR EDUCATION,05/06/2013,Programme costs,Free School Group,PKF UK LLP,Commercial,Funding to deliver policies (excluding consultancy) paid to third parties via a service delivery contract,4000129792,"10,333"
DEPARTMENT FOR EDUCATION,DEPARTMENT FOR EDUCATION,05/06/2013,Programme costs,Free School Group,PKF UK LLP,Commercial,Funding to deliver policies (excluding consultancy) paid to third parties via a service delivery contract,4000129792,"15,799"
DEPARTMENT FOR EDUCATION,DEPARTMENT FOR EDUCATION,06/06/2013,Grants,Academies Delivery Group,PORTSMOUTH & WINCHESTER DIOCESAN ACADEMIES TRUST,Public Sector,"Grants paid to organisations including agencies, arms length bodies and educational establishments",4000130108,"60,000"
DEPARTMENT FOR EDUCATION,DEPARTMENT FOR EDUCATION,06/06/2013,Programme costs,Academies Delivery Group,TRIBAL EDUCATION LIMITED,Commercial,Funding to deliver policies (excluding consultancy) paid to third parties via a service delivery contract,4000130235,"4,593"
DEPARTMENT FOR EDUCATION,DEPARTMENT FOR EDUCATION,07/06/2013,ICT,Free School Group,BT,Commercial,Telecoms Facilities and Services,4000130274,6
DEPARTMENT FOR EDUCATION,DEPARTMENT FOR EDUCATION,07/06/2013,ICT,System Reform Group,BT,Commercial,Telecoms Facilities and Services,4000130274,75
DEPARTMENT FOR EDUCATION,DEPARTMENT FOR EDUCATION,07/06/2013,ICT,Education Funding Group,BT,Commercial,Telecoms Facilities and Services,4000130274,8
DEPARTMENT FOR EDUCATION,DEPARTMENT FOR EDUCATION,07/06/2013,ICT,Education Funding Group,BT,Commercial,Telecoms Facilities and Services,4000130274,119
DEPARTMENT FOR EDUCATION,DEPARTMENT FOR EDUCATION,07/06/2013,ICT,Education Funding Group,BT,Commercial,Telecoms Facilities and Services,4000130274,13
DEPARTMENT FOR EDUCATION,DEPARTMENT FOR EDUCATION,07/06/2013,ICT,Academies Delivery Group,BT,Commercial,Telecoms Facilities and Services,4000130274,14
DEPARTMENT FOR EDUCATION,DEPARTMENT FOR EDUCATION,07/06/2013,ICT,Office of the Schools Commissioner Group,BT,Commercial,Telecoms Facilities and Services,4000130274,29
DEPARTMENT FOR EDUCATION,DEPARTMENT FOR EDUCATION,07/06/2013,ICT,Academies Delivery Group,BT,Commercial,Telecoms Facilities and Services,4000130274,105
DEPARTMENT FOR EDUCATION,DEPARTMENT FOR EDUCATION,07/06/2013,ICT,Academies Delivery Group,BT,Commercial,Telecoms Facilities and Services,4000130274,129
DEPARTMENT FOR EDUCATION,DEPARTMENT FOR EDUCATION,07/06/2013,ICT,Free School Group,BT,Commercial,Telecoms Facilities and Services,4000130274,8
DEPARTMENT FOR EDUCATION,DEPARTMENT FOR EDUCATION,07/06/2013,ICT,Free School Group,BT,Commercial,Telecoms Facilities and Services,4000130274,272
DEPARTMENT FOR EDUCATION,DEPARTMENT FOR EDUCATION,07/06/2013,ICT,Free School Group,BT,Commercial,Telecoms Facilities and Services,4000130274,15
DEPARTMENT FOR EDUCATION,DEPARTMENT FOR EDUCATION,07/06/2013,Grants,Academies Delivery Group,SWALE ACADEMIES TRUST,Public Sector,Capital grants paid to a private sector organisation,4000130323,"140,000"
DEPARTMENT FOR EDUCATION,DEPARTMENT FOR EDUCATION,10/06/2013,Grants,Academies Delivery Group,HAMMERSMITH ACADEMY TRUST ACCOUNT,Public Sector,Capital grants paid to a private sector organisation,4000130465,"34,933"
DEPARTMENT FOR EDUCATION,DEPARTMENT FOR EDUCATION,11/06/2013,Grants,Academies Delivery Group,FOXHOLE PRIMARY SCHOOL,Public Sector,"Grants paid to organisations including agencies, arms length bodies and educational establishments",4000130532,"65,000"
DEPARTMENT FOR EDUCATION,DEPARTMENT FOR EDUCATION,11/06/2013,Grants,Academies Delivery Group,SLOUGH & EAST BERKSHIRE CE MULTI ACADEMY TRUST,Public Sector,"Grants paid to organisations including agencies, arms length bodies and educational establishments",4000130533,"65,000"
DEPARTMENT FOR EDUCATION,DEPARTMENT FOR EDUCATION,11/06/2013,Grants,Academies Delivery Group,FALMOUTH PRIMARY SCHOOL,Public Sector,"Grants paid to organisations including agencies, arms length bodies and educational establishments",4000130534,"65,000"
DEPARTMENT FOR EDUCATION,DEPARTMENT FOR EDUCATION,11/06/2013,Grants,Academies Delivery Group,RIVER BEACH PRIMARY SCHOOL,Public Sector,"Grants paid to organisations including agencies, arms length bodies and educational establishments",4000130536,"25,000"
DEPARTMENT FOR EDUCATION,DEPARTMENT FOR EDUCATION,11/06/2013,Grants,Academies Delivery Group,ASKEL VEUR DIOCESE OF TRURO ACADEMIES UMBRELLA,Public Sector,"Grants paid to organisations including agencies, arms length bodies and educational establishments",4000130538,"25,000"
DEPARTMENT FOR EDUCATION,DEPARTMENT FOR EDUCATION,11/06/2013,Grants,Academies Delivery Group,TOLLBAR MULTI ACADEMY TRUST,Public Sector,"Grants paid to organisations including agencies, arms length bodies and educational establishments",4000130548,"65,000"
DEPARTMENT FOR EDUCATION,DEPARTMENT FOR EDUCATION,11/06/2013,Grants,Academies Delivery Group,BATH & WELLS MULTI ACADEMY TRUST,Public Sector,"Grants paid to organisations including agencies, arms length bodies and educational establishments",4000130549,"65,000"
DEPARTMENT FOR EDUCATION,DEPARTMENT FOR EDUCATION,11/06/2013,Grants,Academies Delivery Group,DIVERSE ACADEMIES TRUST,Public Sector,"Grants paid to organisations including agencies, arms length bodies and educational establishments",4000130550,"90,000"
DEPARTMENT FOR EDUCATION,DEPARTMENT FOR EDUCATION,11/06/2013,Professional Services Other,System Reform Group,DLA PIPER UK LLP,Commercial,Legal services provided externally (excluding Treasury Solicitor) ,4000130574,"51,150"
DEPARTMENT FOR EDUCATION,DEPARTMENT FOR EDUCATION,11/06/2013,Grants,Academies Delivery Group,CRABTREE JUNIOR SCHOOL,Public Sector,"Grants paid to organisations including agencies, arms length bodies and educational establishments",4000130622,"25,000"
DEPARTMENT FOR EDUCATION,DEPARTMENT FOR EDUCATION,11/06/2013,Grants,Academies Delivery Group,FAKENHAM HIGH SCHOOL,Public Sector,"Grants paid to organisations including agencies, arms length bodies and educational establishments",4000130623,"25,000"
DEPARTMENT FOR EDUCATION,DEPARTMENT FOR EDUCATION,11/06/2013,Grants,Academies Delivery Group,ECHELFORD PRIMARY SCHOOL,Public Sector,"Grants paid to organisations including agencies, arms length bodies and educational establishments",4000130624,"25,000"
DEPARTMENT FOR EDUCATION,DEPARTMENT FOR EDUCATION,12/06/2013,Travel,Free School Group,REDFERN TRAVEL LTD,Commercial,"Staff business travel including air, coach, ferry, rail and taxi",4000130694,"10,565"
DEPARTMENT FOR EDUCATION,DEPARTMENT FOR EDUCATION,12/06/2013,Personnel Related,Free School Group,REDFERN TRAVEL LTD,Commercial,Subsistence and lodging allowances for official duty,4000130694,2
DEPARTMENT FOR EDUCATION,DEPARTMENT FOR EDUCATION,12/06/2013,Travel,Free School Group,REDFERN TRAVEL LTD,Commercial,"Staff business travel including air, coach, ferry, rail and taxi to attend training events",4000130694,0
DEPARTMENT FOR EDUCATION,DEPARTMENT FOR EDUCATION,12/06/2013,Travel,System Reform Group,REDFERN TRAVEL LTD,Commercial,"Staff business travel including air, coach, ferry, rail and taxi",4000130694,"2,534"
DEPARTMENT FOR EDUCATION,DEPARTMENT FOR EDUCATION,12/06/2013,Travel,Education Funding Group,REDFERN TRAVEL LTD,Commercial,"Staff business travel including air, coach, ferry, rail and taxi",4000130694,"4,216"
DEPARTMENT FOR EDUCATION,DEPARTMENT FOR EDUCATION,12/06/2013,Travel,System Reform Group,REDFERN TRAVEL LTD,Commercial,"Staff business travel including air, coach, ferry, rail and taxi",4000130694,"3,285"
DEPARTMENT FOR EDUCATION,DEPARTMENT FOR EDUCATION,12/06/2013,Travel,System Reform Group,REDFERN TRAVEL LTD,Commercial,"Staff business travel including air, coach, ferry, rail and taxi",4000130694,"1,444"
DEPARTMENT FOR EDUCATION,DEPARTMENT FOR EDUCATION,12/06/2013,Travel,System Reform Group,REDFERN TRAVEL LTD,Commercial,"Staff business travel including air, coach, ferry, rail and taxi",4000130694,"4,169"
DEPARTMENT FOR EDUCATION,DEPARTMENT FOR EDUCATION,12/06/2013,Travel,System Reform Group,REDFERN TRAVEL LTD,Commercial,"Staff business travel including air, coach, ferry, rail and taxi",4000130694,929
DEPARTMENT FOR EDUCATION,DEPARTMENT FOR EDUCATION,12/06/2013,Travel,System Reform Group,REDFERN TRAVEL LTD,Commercial,"Staff business travel including air, coach, ferry, rail and taxi",4000130694,-138
DEPARTMENT FOR EDUCATION,DEPARTMENT FOR EDUCATION,12/06/2013,Travel,System Reform Group,REDFERN TRAVEL LTD,Commercial,"Staff business travel including air, coach, ferry, rail and taxi",4000130694,179
DEPARTMENT FOR EDUCATION,DEPARTMENT FOR EDUCATION,12/06/2013,Travel,Education Funding Group,REDFERN TRAVEL LTD,Commercial,"Staff business travel including air, coach, ferry, rail and taxi",4000130694,"1,260"
DEPARTMENT FOR EDUCATION,DEPARTMENT FOR EDUCATION,12/06/2013,Travel,Education Funding Group,REDFERN TRAVEL LTD,Commercial,"Staff business travel including air, coach, ferry, rail and taxi to attend training events",4000130694,1
DEPARTMENT FOR EDUCATION,DEPARTMENT FOR EDUCATION,12/06/2013,Travel,Education Funding Group,REDFERN TRAVEL LTD,Commercial,"Staff business travel including air, coach, ferry, rail and taxi",4000130694,"4,500"
DEPARTMENT FOR EDUCATION,DEPARTMENT FOR EDUCATION,12/06/2013,Travel,Infrastructure and Funding Directorate Support,REDFERN TRAVEL LTD,Commercial,"Staff business travel including air, coach, ferry, rail and taxi",4000130694,616
DEPARTMENT FOR EDUCATION,DEPARTMENT FOR EDUCATION,12/06/2013,Travel,Education Funding Group,REDFERN TRAVEL LTD,Commercial,"Staff business travel including air, coach, ferry, rail and taxi",4000130694,"5,885"
DEPARTMENT FOR EDUCATION,DEPARTMENT FOR EDUCATION,12/06/2013,Personnel Related,Education Funding Group,REDFERN TRAVEL LTD,Commercial,Subsistence and lodging allowances for official duty,4000130694,1
DEPARTMENT FOR EDUCATION,DEPARTMENT FOR EDUCATION,12/06/2013,Travel,Education Funding Group,REDFERN TRAVEL LTD,Commercial,"Staff business travel including air, coach, ferry, rail and taxi to attend training events",4000130694,0
DEPARTMENT FOR EDUCATION,DEPARTMENT FOR EDUCATION,12/06/2013,Travel,Free School Group,REDFERN TRAVEL LTD,Commercial,"Staff business travel including air, coach, ferry, rail and taxi",4000130694,186
DEPARTMENT FOR EDUCATION,DEPARTMENT FOR EDUCATION,12/06/2013,Travel,Academies Delivery Group,REDFERN TRAVEL LTD,Commercial,"Staff business travel including air, coach, ferry, rail and taxi",4000130694,"9,757"
DEPARTMENT FOR EDUCATION,DEPARTMENT FOR EDUCATION,12/06/2013,Travel,Office of the Schools Commissioner Group,REDFERN TRAVEL LTD,Commercial,"Staff business travel including air, coach, ferry, rail and taxi",4000130694,501
DEPARTMENT FOR EDUCATION,DEPARTMENT FOR EDUCATION,12/06/2013,Travel,Academies Delivery Group,REDFERN TRAVEL LTD,Commercial,"Staff business travel including air, coach, ferry, rail and taxi",4000130694,67
DEPARTMENT FOR EDUCATION,DEPARTMENT FOR EDUCATION,12/06/2013,Travel,Academies Delivery Group,REDFERN TRAVEL LTD,Commercial,"Staff business travel including air, coach, ferry, rail and taxi",4000130694,"8,667"
DEPARTMENT FOR EDUCATION,DEPARTMENT FOR EDUCATION,12/06/2013,Travel,Academies Delivery Group,REDFERN TRAVEL LTD,Commercial,"Staff business travel including air, coach, ferry, rail and taxi",4000130694,"4,611"
DEPARTMENT FOR EDUCATION,DEPARTMENT FOR EDUCATION,12/06/2013,Travel,Academies Delivery Group,REDFERN TRAVEL LTD,Commercial,"Staff business travel including air, coach, ferry, rail and taxi to attend training events",4000130694,0
DEPARTMENT FOR EDUCATION,DEPARTMENT FOR EDUCATION,12/06/2013,Travel,Academies Delivery Group,REDFERN TRAVEL LTD,Commercial,"Staff business travel including air, coach, ferry, rail and taxi",4000130694,"3,873"
DEPARTMENT FOR EDUCATION,DEPARTMENT FOR EDUCATION,12/06/2013,Travel,Office of the Schools Commissioner Group,REDFERN TRAVEL LTD,Commercial,"Staff business travel including air, coach, ferry, rail and taxi",4000130694,"4,579"
DEPARTMENT FOR EDUCATION,DEPARTMENT FOR EDUCATION,12/06/2013,Travel,Free School Group,REDFERN TRAVEL LTD,Commercial,"Staff business travel including air, coach, ferry, rail and taxi",4000130694,"2,562"
DEPARTMENT FOR EDUCATION,DEPARTMENT FOR EDUCATION,12/06/2013,Travel,Free School Group,REDFERN TRAVEL LTD,Commercial,"Staff business travel including air, coach, ferry, rail and taxi",4000130694,333
DEPARTMENT FOR EDUCATION,DEPARTMENT FOR EDUCATION,12/06/2013,Travel,Free School Group,REDFERN TRAVEL LTD,Commercial,"Staff business travel including air, coach, ferry, rail and taxi",4000130694,352
DEPARTMENT FOR EDUCATION,DEPARTMENT FOR EDUCATION,12/06/2013,Travel,Free School Group,REDFERN TRAVEL LTD,Commercial,"Staff business travel including air, coach, ferry, rail and taxi",4000130694,739
DEPARTMENT FOR EDUCATION,DEPARTMENT FOR EDUCATION,12/06/2013,Travel,Free School Group,REDFERN TRAVEL LTD,Commercial,"Staff business travel including air, coach, ferry, rail and taxi",4000130694,-96
DEPARTMENT FOR EDUCATION,DEPARTMENT FOR EDUCATION,12/06/2013,Grants,Academies Delivery Group,ENQUIRE LEARNING TRUST,Public Sector,"Grants paid to organisations including agencies, arms length bodies and educational establishments",4000130721,"65,000"
DEPARTMENT FOR EDUCATION,DEPARTMENT FOR EDUCATION,13/06/2013,Grants,Academies Delivery Group,PORTSMOUTH & WINCHESTER DIOCESAN ACADEMIES TRUST,Public Sector,"Grants paid to organisations including agencies, arms length bodies and educational establishments",4000130840,"60,000"
DEPARTMENT FOR EDUCATION,DEPARTMENT FOR EDUCATION,13/06/2013,Grants,Academies Delivery Group,THE GOOD SHEPHERD TRUST,VCS,"Grants paid to organisations including agencies, arms length bodies and educational establishments",4000130864,"60,000"
DEPARTMENT FOR EDUCATION,DEPARTMENT FOR EDUCATION,13/06/2013,Grants,Academies Delivery Group,HARRY TAYLOR SCHOOL,Public Sector,"Grants paid to organisations including agencies, arms length bodies and educational establishments",4000130866,"60,000"
DEPARTMENT FOR EDUCATION,DEPARTMENT FOR EDUCATION,13/06/2013,Grants,Office of the Schools Commissioner Group,OUNDLE CE PRIMARY SCHOOL,Public Sector,"Grants paid to organisations including agencies, arms length bodies and educational establishments",4000130878,"103,000"
DEPARTMENT FOR EDUCATION,DEPARTMENT FOR EDUCATION,13/06/2013,Grants,Academies Delivery Group,CALUDON CASTLE SCHOOL TS ACCOUNT,Public Sector,"Grants paid to organisations including agencies, arms length bodies and educational establishments",4000130886,"120,000"
DEPARTMENT FOR EDUCATION,DEPARTMENT FOR EDUCATION,13/06/2013,Grants,Academies Delivery Group,CREATIVE EDUCATION ACADEMIES TRUST,Public Sector,"Grants paid to organisations including agencies, arms length bodies and educational establishments",4000130897,"135,500"
DEPARTMENT FOR EDUCATION,DEPARTMENT FOR EDUCATION,13/06/2013,Grants,Academies Delivery Group,THE ROCHESTER GRAMMAR SCHOOL,Public Sector,"Grants paid to organisations including agencies, arms length bodies and educational establishments",4000130945,"100,000"
DEPARTMENT FOR EDUCATION,DEPARTMENT FOR EDUCATION,13/06/2013,Grants,Academies Delivery Group,CFBT SCHOOLS TRUST,Public Sector,"Grants paid to organisations including agencies, arms length bodies and educational establishments",4000130947,"60,000"
DEPARTMENT FOR EDUCATION,DEPARTMENT FOR EDUCATION,13/06/2013,Grants,Academies Delivery Group,REACH 2 LTD,Commercial,"Grants paid to organisations including agencies, arms length bodies and educational establishments",4000130948,"120,000"
DEPARTMENT FOR EDUCATION,DEPARTMENT FOR EDUCATION,13/06/2013,Grants,Academies Delivery Group,DENBIGH HIGH SCHOOL,Public Sector,"Grants paid to organisations including agencies, arms length bodies and educational establishments",4000130960,"60,000"
DEPARTMENT FOR EDUCATION,DEPARTMENT FOR EDUCATION,13/06/2013,Grants,Academies Delivery Group,UNITED LEARNING TRUST,Public Sector,"Grants paid to organisations including agencies, arms length bodies and educational establishments",4000130961,"60,000"
DEPARTMENT FOR EDUCATION,DEPARTMENT FOR EDUCATION,13/06/2013,Grants,Academies Delivery Group,ARK SCHOOLS,Public Sector,"Grants paid to organisations including agencies, arms length bodies and educational establishments",4000130977,"60,000"
DEPARTMENT FOR EDUCATION,DEPARTMENT FOR EDUCATION,14/06/2013,Grants,Free School Group,LIVERPOOL UTC TRUST,Public Sector,"Grants paid to organisations including agencies, arms length bodies and educational establishments",4000131053,"61,980"
DEPARTMENT FOR EDUCATION,DEPARTMENT FOR EDUCATION,14/06/2013,Grants,Free School Group,WIGAN UTC,Public Sector,"Grants paid to organisations including agencies, arms length bodies and educational establishments",4000131080,"46,357"
DEPARTMENT FOR EDUCATION,DEPARTMENT FOR EDUCATION,17/06/2013,Grants,Free School Group,THE BUCKINGHAMSHIRE ACADEMY TRUST,Public Sector,"Grants paid to organisations including agencies, arms length bodies and educational establishments",4000131128,"26,889"
DEPARTMENT FOR EDUCATION,DEPARTMENT FOR EDUCATION,17/06/2013,Grants,Academies Delivery Group,OASIS COMMUNITY LEARNING,Public Sector,"Grants paid to organisations including agencies, arms length bodies and educational establishments",4000131169,"200,000"
DEPARTMENT FOR EDUCATION,DEPARTMENT FOR EDUCATION,18/06/2013,Grants,Office of the Schools Commissioner Group,PONTEFRACT ACADAMIES TRUST,Public Sector,"Grants paid to organisations including agencies, arms length bodies and educational establishments",4000131273,"95,662"
DEPARTMENT FOR EDUCATION,DEPARTMENT FOR EDUCATION,18/06/2013,Grants,Office of the Schools Commissioner Group,THE HAYESBROOK SCHOOL TS ACCOUNT,Public Sector,"Grants paid to organisations including agencies, arms length bodies and educational establishments",4000131306,"68,000"
DEPARTMENT FOR EDUCATION,DEPARTMENT FOR EDUCATION,18/06/2013,Communications,System Reform Group,PROLOG,Commercial,Marketing services,4000131314,43
DEPARTMENT FOR EDUCATION,DEPARTMENT FOR EDUCATION,18/06/2013,Communications,System Reform Group,PROLOG,Commercial,Marketing services,4000131314,296
DEPARTMENT FOR EDUCATION,DEPARTMENT FOR EDUCATION,18/06/2013,Grants,Academies Delivery Group,ACADEMY ENTERPRISE TRUST,Public Sector,"Grants paid to organisations including agencies, arms length bodies and educational establishments",4000131336,"120,156"
DEPARTMENT FOR EDUCATION,DEPARTMENT FOR EDUCATION,19/06/2013,Grants,Academies Delivery Group,ORMISTON ACADEMIES TRUST,Public Sector,"Grants paid to organisations including agencies, arms length bodies and educational establishments",4000131413,"90,000"
DEPARTMENT FOR EDUCATION,DEPARTMENT FOR EDUCATION,19/06/2013,Grants,Academies Delivery Group,THE KIRKBY-LA-THORPE CE PRIMARY SCHOOL,Public Sector,"Grants paid to organisations including agencies, arms length bodies and educational establishments",4000131421,"25,000"
DEPARTMENT FOR EDUCATION,DEPARTMENT FOR EDUCATION,19/06/2013,Grants,Academies Delivery Group,STOKE LODGE PRIMARY SCHOOL,Public Sector,"Grants paid to organisations including agencies, arms length bodies and educational establishments",4000131428,"25,000"
DEPARTMENT FOR EDUCATION,DEPARTMENT FOR EDUCATION,19/06/2013,Grants,Academies Delivery Group,BOURNE EDUCATION TRUST,Public Sector,"Grants paid to organisations including agencies, arms length bodies and educational establishments",4000131429,"155,000"
DEPARTMENT FOR EDUCATION,DEPARTMENT FOR EDUCATION,19/06/2013,Grants,Academies Delivery Group,GLASSHOUGHTON INFANT SCHOOL,Public Sector,"Grants paid to organisations including agencies, arms length bodies and educational establishments",4000131440,"25,000"
DEPARTMENT FOR EDUCATION,DEPARTMENT FOR EDUCATION,19/06/2013,Grants,Academies Delivery Group,TWICKENHAM PRIMARY SCHOOL,Public Sector,"Grants paid to organisations including agencies, arms length bodies and educational establishments",4000131441,"25,000"
DEPARTMENT FOR EDUCATION,DEPARTMENT FOR EDUCATION,19/06/2013,Grants,Academies Delivery Group,SACRED HEART CATHOLIC PRIMARY SCHOOL,Public Sector,"Grants paid to organisations including agencies, arms length bodies and educational establishments",4000131442,"25,000"
DEPARTMENT FOR EDUCATION,DEPARTMENT FOR EDUCATION,19/06/2013,Grants,Academies Delivery Group,THE ELLIOT FOUNDATION ACADEMIES TRUST,Public Sector,"Grants paid to organisations including agencies, arms length bodies and educational establishments",4000131476,"25,000"
DEPARTMENT FOR EDUCATION,DEPARTMENT FOR EDUCATION,19/06/2013,Grants,Academies Delivery Group,STAFFORDSHIRE COUNTY COUNCIL,Public Sector,"Grants paid to organisations including agencies, arms length bodies and educational establishments",4000131482,"50,000"
DEPARTMENT FOR EDUCATION,DEPARTMENT FOR EDUCATION,19/06/2013,Grants,Academies Delivery Group,FARINGDON COMMUNITY COLLEGE,Public Sector,"Grants paid to organisations including agencies, arms length bodies and educational establishments",4000131497,"25,000"
DEPARTMENT FOR EDUCATION,DEPARTMENT FOR EDUCATION,19/06/2013,Grants,Academies Delivery Group,SAMUEL WARD ARTS & TECHNOLOGY COLLEGE,Public Sector,"Grants paid to organisations including agencies, arms length bodies and educational establishments",4000131543,"40,000"
DEPARTMENT FOR EDUCATION,DEPARTMENT FOR EDUCATION,19/06/2013,Grants,Academies Delivery Group,WAKEFIELD DIOCESAN ACADEMIES TRUST,Public Sector,"Grants paid to organisations including agencies, arms length bodies and educational establishments",4000131552,"40,000"
DEPARTMENT FOR EDUCATION,DEPARTMENT FOR EDUCATION,19/06/2013,Grants,Academies Delivery Group,CHESHIRE WEST & CHESTER COUNCIL,Public Sector,"Grants paid to organisations including agencies, arms length bodies and educational establishments",4000131569,"25,000"
DEPARTMENT FOR EDUCATION,DEPARTMENT FOR EDUCATION,19/06/2013,Grants,Academies Delivery Group,FOCUS ACADEMIES TRUST UK LTD,Public Sector,"Grants paid to organisations including agencies, arms length bodies and educational establishments",4000131585,"50,000"
DEPARTMENT FOR EDUCATION,DEPARTMENT FOR EDUCATION,19/06/2013,Grants,Academies Delivery Group,DIOCESE OF BIRMINGHAM,Public Sector,"Grants paid to organisations including agencies, arms length bodies and educational establishments",4000131586,"40,000"
DEPARTMENT FOR EDUCATION,DEPARTMENT FOR EDUCATION,19/06/2013,Grants,Academies Delivery Group,SOMERSET COUNTY COUNCIL,Public Sector,"Grants paid to organisations including agencies, arms length bodies and educational establishments",4000131591,"50,000"
DEPARTMENT FOR EDUCATION,DEPARTMENT FOR EDUCATION,19/06/2013,Grants,Academies Delivery Group,WORCESTERSHIRE COUNTY COUNCIL,Public Sector,"Grants paid to organisations including agencies, arms length bodies and educational establishments",4000131595,"25,000"
DEPARTMENT FOR EDUCATION,DEPARTMENT FOR EDUCATION,20/06/2013,Professional Services Other,Education Funding Group,PINSENT MASONS LLP,Commercial,"Fees / expenses of professionals from the private sector, for example to implement advice or changes",4000131677,"77,697"
DEPARTMENT FOR EDUCATION,DEPARTMENT FOR EDUCATION,21/06/2013,Professional Services Other,Academies Delivery Group,VEREDUS C/O CAPITA RESOURCING LTD,Commercial,"Fees / expenses of professionals from the private sector, for example to implement advice or changes",4000131880,"163,357"
DEPARTMENT FOR EDUCATION,DEPARTMENT FOR EDUCATION,21/06/2013,Programme costs,Academies Delivery Group,APPLEYARDS LTD,Commercial,Funding to deliver policies (excluding consultancy) paid to third parties via a service delivery contract,4000131881,"31,147"
DEPARTMENT FOR EDUCATION,DEPARTMENT FOR EDUCATION,21/06/2013,Grants,Academies Delivery Group,OASIS COMMUNITY LEARNING,Public Sector,"Grants paid to organisations including agencies, arms length bodies and educational establishments",4000131883,"40,000"
DEPARTMENT FOR EDUCATION,DEPARTMENT FOR EDUCATION,21/06/2013,Grants,Academies Delivery Group,E ACT,Public Sector,"Grants paid to organisations including agencies, arms length bodies and educational establishments",4000131884,"27,900"
DEPARTMENT FOR EDUCATION,DEPARTMENT FOR EDUCATION,21/06/2013,Grants,Academies Delivery Group,THE KEMNAL ACADEMIES TRUST,Public Sector,"Grants paid to organisations including agencies, arms length bodies and educational establishments",4000131961,"240,000"
DEPARTMENT FOR EDUCATION,DEPARTMENT FOR EDUCATION,21/06/2013,Grants,Academies Delivery Group,WAKEFIELD CITY ACADEMY,Public Sector,"Grants paid to organisations including agencies, arms length bodies and educational establishments",4000131967,"120,000"
DEPARTMENT FOR EDUCATION,DEPARTMENT FOR EDUCATION,24/06/2013,Grants,Academies Delivery Group,CARMEL COLLEGE,Public Sector,"Grants paid to organisations including agencies, arms length bodies and educational establishments",4000132133,"100,000"
DEPARTMENT FOR EDUCATION,DEPARTMENT FOR EDUCATION,24/06/2013,Grants,Office of the Schools Commissioner Group,WHITEHILL COMMUNITY TRUST SCHOOL,Public Sector,"Grants paid to organisations including agencies, arms length bodies and educational establishments",4000132136,"50,000"
DEPARTMENT FOR EDUCATION,DEPARTMENT FOR EDUCATION,24/06/2013,Programme costs,Free School Group,NEW SCHOOL NETWORK,VCS,Funding to deliver policies (excluding consultancy) paid to third parties via a service delivery contract,4000132178,"66,365"
DEPARTMENT FOR EDUCATION,DEPARTMENT FOR EDUCATION,25/06/2013,Grants,Academies Delivery Group,ST AUGUSTINES CATHOLIC ACADEMY,Public Sector,"Grants paid to organisations including agencies, arms length bodies and educational establishments",4000132261,"34,149"
DEPARTMENT FOR EDUCATION,DEPARTMENT FOR EDUCATION,27/06/2013,Grants,Academies Delivery Group,HILLSBOROUGH PRIMARY SCHOOL,Public Sector,"Grants paid to organisations including agencies, arms length bodies and educational establishments",4000132389,"25,000"
DEPARTMENT FOR EDUCATION,DEPARTMENT FOR EDUCATION,27/06/2013,Grants,Academies Delivery Group,PENNY BRIDGE CE PRIMARY SCHOOL,Public Sector,"Grants paid to organisations including agencies, arms length bodies and educational establishments",4000132394,"25,000"
DEPARTMENT FOR EDUCATION,DEPARTMENT FOR EDUCATION,27/06/2013,Grants,Academies Delivery Group,WESTFIELD PRIMARY SCHOOL,Public Sector,"Grants paid to organisations including agencies, arms length bodies and educational establishments",4000132395,"25,000"
DEPARTMENT FOR EDUCATION,DEPARTMENT FOR EDUCATION,27/06/2013,Grants,Academies Delivery Group,FAKENHAM HIGH SCHOOL,Public Sector,"Grants paid to organisations including agencies, arms length bodies and educational establishments",4000132396,"65,000"
DEPARTMENT FOR EDUCATION,DEPARTMENT FOR EDUCATION,27/06/2013,Grants,Academies Delivery Group,THE DIOCESE OF COVENTRY,Public Sector,"Grants paid to organisations including agencies, arms length bodies and educational establishments",4000132408,"25,000"
DEPARTMENT FOR EDUCATION,DEPARTMENT FOR EDUCATION,27/06/2013,Programme costs,Academies Delivery Group,NAVIGANT CONSULTING,Commercial,Funding to deliver policies (excluding consultancy) paid to third parties via a service delivery contract,4000132436,"41,208"
DEPARTMENT FOR EDUCATION,DEPARTMENT FOR EDUCATION,27/06/2013,Grants,Academies Delivery Group,DANE COURT GRAMMAR SCHOOL,Public Sector,"Grants paid to organisations including agencies, arms length bodies and educational establishments",4000132437,"25,000"
DEPARTMENT FOR EDUCATION,DEPARTMENT FOR EDUCATION,27/06/2013,Grants,Academies Delivery Group,ESHER COFE HIGH SCHOOL,Public Sector,"Grants paid to organisations including agencies, arms length bodies and educational establishments",4000132464,"25,000"
DEPARTMENT FOR EDUCATION,DEPARTMENT FOR EDUCATION,27/06/2013,Grants,Academies Delivery Group,ORMISTON ACADEMIES TRUST,Public Sector,"Grants paid to organisations including agencies, arms length bodies and educational establishments",4000132482,"65,000"
DEPARTMENT FOR EDUCATION,DEPARTMENT FOR EDUCATION,27/06/2013,Grants,Academies Delivery Group,ST CATHERINES CATHOLIC PRIMARY SCHOOL,Public Sector,"Grants paid to organisations including agencies, arms length bodies and educational establishments",4000132514,"25,000"
DEPARTMENT FOR EDUCATION,DEPARTMENT FOR EDUCATION,27/06/2013,Grants,Office of the Schools Commissioner Group,SOUTHWELL AND NOTTINGHAM DIOCESE,Public Sector,"Grants paid to organisations including agencies, arms length bodies and educational establishments",4000132521,"97,100"
DEPARTMENT FOR EDUCATION,DEPARTMENT FOR EDUCATION,28/06/2013,Grants,Academies Delivery Group,THE STEP ACADEMY TRUST,Public Sector,"Grants paid to organisations including agencies, arms length bodies and educational establishments",4000132547,"65,000"
DEPARTMENT FOR EDUCATION,DEPARTMENT FOR EDUCATION,28/06/2013,Grants,Academies Delivery Group,MATCHBOROUGH FIRST SCHOOL,Public Sector,"Grants paid to organisations including agencies, arms length bodies and educational establishments",4000132629,"25,000"
DEPARTMENT FOR EDUCATION,DEPARTMENT FOR EDUCATION,28/06/2013,Grants,Academies Delivery Group,THEALE GREEN COMMUNITY SCHOOL,Public Sector,"Grants paid to organisations including agencies, arms length bodies and educational establishments",4000132705,"25,000"
DEPARTMENT FOR EDUCATION,DEPARTMENT FOR EDUCATION,28/06/2013,Grants,Academies Delivery Group,OXFORD DIOCESAN SCHOOL TRUST,Public Sector,"Grants paid to organisations including agencies, arms length bodies and educational establishments",4000132706,"40,000"
DEPARTMENT FOR EDUCATION,DEPARTMENT FOR EDUCATION,28/06/2013,Grants,Academies Delivery Group,THE DIOCESE OF COVENTRY,Public Sector,"Grants paid to organisations including agencies, arms length bodies and educational establishments",4000132796,"60,000"
DEPARTMENT FOR EDUCATION,DEPARTMENT FOR EDUCATION,28/06/2013,Grants,Academies Delivery Group,FYLDE COAST ACADEMY TRUST,Public Sector,"Grants paid to organisations including agencies, arms length bodies and educational establishments",4000132799,"100,000"
DEPARTMENT FOR EDUCATION,DEPARTMENT FOR EDUCATION,28/06/2013,Grants,Academies Delivery Group,MOSSBOURNE COMMUNITY ACADEMY TRUST,Public Sector,"Grants paid to organisations including agencies, arms length bodies and educational establishments",4000132800,"50,000"
DEPARTMENT FOR EDUCATION,DEPARTMENT FOR EDUCATION,28/06/2013,Grants,Academies Delivery Group,FOCUS ACADEMIES TRUST UK LTD,Public Sector,"Grants paid to organisations including agencies, arms length bodies and educational establishments",4000132806,"60,000"
DEPARTMENT FOR EDUCATION,DEPARTMENT FOR EDUCATION,28/06/2013,Grants,Academies Delivery Group,FOCUS ACADEMIES TRUST UK LTD,Public Sector,"Grants paid to organisations including agencies, arms length bodies and educational establishments",4000132806,"25,000"
DEPARTMENT FOR EDUCATION,DEPARTMENT FOR EDUCATION,28/06/2013,Grants,Academies Delivery Group,LION ACADEMY TRUST,Public Sector,"Grants paid to organisations including agencies, arms length bodies and educational establishments",4000132836,"60,000"
DEPARTMENT FOR EDUCATION,DEPARTMENT FOR EDUCATION,28/06/2013,Grants,Academies Delivery Group,THE DIOCESE OF GLOUCESTER ACADEMIES TRUST,Public Sector,"Grants paid to organisations including agencies, arms length bodies and educational establishments",4000132840,"40,000"
DEPARTMENT FOR EDUCATION,DEPARTMENT FOR EDUCATION,28/06/2013,Grants,Academies Delivery Group,BRADFIELD COLLEGE,Public Sector,"Grants paid to organisations including agencies, arms length bodies and educational establishments",4000132861,"65,000"
DEPARTMENT FOR EDUCATION,DEPARTMENT FOR EDUCATION,28/06/2013,Grants,Academies Delivery Group,DILKES ACADEMY,Public Sector,"Grants paid to organisations including agencies, arms length bodies and educational establishments",4000132880,"65,000"
DEPARTMENT FOR EDUCATION,DEPARTMENT FOR EDUCATION,28/06/2013,Grants,Academies Delivery Group,HASTINGS ACADEMIES TRUST,Public Sector,"Grants paid to organisations including agencies, arms length bodies and educational establishments",4000132893,"25,000"
DEPARTMENT FOR EDUCATION,DEPARTMENT FOR EDUCATION,28/06/2013,Grants,Academies Delivery Group,BIRMINGHAM CITY UNIVERSITY,Public Sector,"Grants paid to organisations including agencies, arms length bodies and educational establishments",4000132909,"40,000"
DEPARTMENT FOR EDUCATION,DEPARTMENT FOR EDUCATION,28/06/2013,Grants,Academies Delivery Group,ELMRIDGE PRIMARY SCHOOL TS ACCOUNT,Public Sector,"Grants paid to organisations including agencies, arms length bodies and educational establishments",4000132921,"60,000"
DEPARTMENT FOR EDUCATION,DEPARTMENT FOR EDUCATION,28/06/2013,Grants,Academies Delivery Group,THE GRIFFIN SCHOOLS TRUST,Public Sector,"Grants paid to organisations including agencies, arms length bodies and educational establishments",4000132923,"60,000"
DEPARTMENT FOR EDUCATION,DEPARTMENT FOR EDUCATION,28/06/2013,Grants,Academies Delivery Group,NOTLEY HIGH SCHOOL & BRAINTREE SIXTH FORM,Public Sector,"Grants paid to organisations including agencies, arms length bodies and educational establishments",4000132969,"50,000"
DEPARTMENT FOR EDUCATION,DEPARTMENT FOR EDUCATION,28/06/2013,Professional Services Other,Academies Delivery Group,VEREDUS C/O CAPITA RESOURCING LTD,Commercial,"Fees / expenses of professionals from the private sector, for example to implement advice or changes",4000133088,"86,319"
DEPARTMENT FOR EDUCATION,DEPARTMENT FOR EDUCATION,28/06/2013,Grants,Academies Delivery Group,ARK SCHOOLS,Public Sector,"Grants paid to organisations including agencies, arms length bodies and educational establishments",4000133090,"60,000"
DEPARTMENT FOR EDUCATION,DEPARTMENT FOR EDUCATION,28/06/2013,Grants,Academies Delivery Group,THE QUEEN KATHERINE SCHOOL ACADEMY TRUST,Public Sector,"Grants paid to organisations including agencies, arms length bodies and educational establishments",4000133096,"65,000"
DEPARTMENT FOR EDUCATION,DEPARTMENT FOR EDUCATION,28/06/2013,Grants,Academies Delivery Group,E ACT,Public Sector,"Grants paid to organisations including agencies, arms length bodies and educational establishments",4000133171,"65,000"
DEPARTMENT FOR EDUCATION,DEPARTMENT FOR EDUCATION,03/06/2013,Professional Services Other,Legal Advisers Office,TREASURY SOLICITOR TSOL,Central Government,Legal services provided by Treasury Solicitor ,4000129614,"1,052,627"
DEPARTMENT FOR EDUCATION,DEPARTMENT FOR EDUCATION,12/06/2013,Travel,Legal Advisers Office,REDFERN TRAVEL LTD,Commercial,"Staff business travel including air, coach, ferry, rail and taxi",4000130694,943
DEPARTMENT FOR EDUCATION,NATIONAL COLLEGE FOR SCHOOL LEADERSHIP AGENCY,05/06/2013,Programme costs,Membership Directorate,THE NEC GROUP,Commercial,Funding to deliver policies (excluding consultancy) paid to third parties via a service delivery contract,4000129958,"86,400"
DEPARTMENT FOR EDUCATION,NATIONAL COLLEGE FOR SCHOOL LEADERSHIP AGENCY,05/06/2013,Programme costs,School Business Management and Efficiency,SERCO LTD,Commercial,Funding to deliver policies (excluding consultancy) paid to third parties via a service delivery contract,4000130062,"42,169"
DEPARTMENT FOR EDUCATION,NATIONAL COLLEGE FOR SCHOOL LEADERSHIP AGENCY,06/06/2013,Professional Services Other,Licenced Provision Directorate,FUTURE LEADERS LTD,Public Sector,"Fees / expenses of professionals from the private sector, for example to implement advice or changes",4000130149,"690,000"
DEPARTMENT FOR EDUCATION,NATIONAL COLLEGE FOR SCHOOL LEADERSHIP AGENCY,07/06/2013,ICT,National College Admin,BT,Commercial,Telecoms Facilities and Services,4000130274,62
DEPARTMENT FOR EDUCATION,NATIONAL COLLEGE FOR SCHOOL LEADERSHIP AGENCY,07/06/2013,ICT,Information Technology Facilities Management and Commercial Directorate,BT,Commercial,Telecoms Facilities and Services,4000130274,644
DEPARTMENT FOR EDUCATION,NATIONAL COLLEGE FOR SCHOOL LEADERSHIP AGENCY,07/06/2013,ICT,Membership Directorate,BT,Commercial,Telecoms Facilities and Services,4000130274,108
DEPARTMENT FOR EDUCATION,NATIONAL COLLEGE FOR SCHOOL LEADERSHIP AGENCY,07/06/2013,ICT,International Business Unit,BT,Commercial,Telecoms Facilities and Services,4000130274,155
DEPARTMENT FOR EDUCATION,NATIONAL COLLEGE FOR SCHOOL LEADERSHIP AGENCY,07/06/2013,ICT,Design and Development Directorate,BT,Commercial,Telecoms Facilities and Services,4000130274,36
DEPARTMENT FOR EDUCATION,NATIONAL COLLEGE FOR SCHOOL LEADERSHIP AGENCY,07/06/2013,ICT,Design and Development Directorate,BT,Commercial,Telecoms Facilities and Services,4000130274,562
DEPARTMENT FOR EDUCATION,NATIONAL COLLEGE FOR SCHOOL LEADERSHIP AGENCY,07/06/2013,ICT,Early Years,BT,Commercial,Telecoms Facilities and Services,4000130274,104
DEPARTMENT FOR EDUCATION,NATIONAL COLLEGE FOR SCHOOL LEADERSHIP AGENCY,07/06/2013,ICT,Licenced Provision Directorate,BT,Commercial,Telecoms Facilities and Services,4000130274,135
DEPARTMENT FOR EDUCATION,NATIONAL COLLEGE FOR SCHOOL LEADERSHIP AGENCY,07/06/2013,ICT,Licenced Provision Directorate,BT,Commercial,Telecoms Facilities and Services,4000130274,51
DEPARTMENT FOR EDUCATION,NATIONAL COLLEGE FOR SCHOOL LEADERSHIP AGENCY,07/06/2013,ICT,Licenced Provision Directorate,BT,Commercial,Telecoms Facilities and Services,4000130274,26
DEPARTMENT FOR EDUCATION,NATIONAL COLLEGE FOR SCHOOL LEADERSHIP AGENCY,07/06/2013,ICT,Licenced Provision Directorate,BT,Commercial,Telecoms Facilities and Services,4000130274,379
DEPARTMENT FOR EDUCATION,NATIONAL COLLEGE FOR SCHOOL LEADERSHIP AGENCY,07/06/2013,ICT,Licenced Provision Directorate,BT,Commercial,Telecoms Facilities and Services,4000130274,446
DEPARTMENT FOR EDUCATION,NATIONAL COLLEGE FOR SCHOOL LEADERSHIP AGENCY,07/06/2013,ICT,Licenced Provision Directorate,BT,Commercial,Telecoms Facilities and Services,4000130274,128
DEPARTMENT FOR EDUCATION,NATIONAL COLLEGE FOR SCHOOL LEADERSHIP AGENCY,07/06/2013,ICT,Primary School Leadership Directorate,BT,Commercial,Telecoms Facilities and Services,4000130274,26
DEPARTMENT FOR EDUCATION,NATIONAL COLLEGE FOR SCHOOL LEADERSHIP AGENCY,07/06/2013,ICT,School Business Management and Efficiency,BT,Commercial,Telecoms Facilities and Services,4000130274,26
DEPARTMENT FOR EDUCATION,NATIONAL COLLEGE FOR SCHOOL LEADERSHIP AGENCY,07/06/2013,ICT,School Business Management and Efficiency,BT,Commercial,Telecoms Facilities and Services,4000130274,"2,714"
DEPARTMENT FOR EDUCATION,NATIONAL COLLEGE FOR SCHOOL LEADERSHIP AGENCY,07/06/2013,ICT,System Leadership Directorate,BT,Commercial,Telecoms Facilities and Services,4000130274,7
DEPARTMENT FOR EDUCATION,NATIONAL COLLEGE FOR SCHOOL LEADERSHIP AGENCY,07/06/2013,ICT,Supply Directorate,BT,Commercial,Telecoms Facilities and Services,4000130274,70
DEPARTMENT FOR EDUCATION,NATIONAL COLLEGE FOR SCHOOL LEADERSHIP AGENCY,07/06/2013,ICT,Supply Directorate,BT,Commercial,Telecoms Facilities and Services,4000130274,26
DEPARTMENT FOR EDUCATION,NATIONAL COLLEGE FOR SCHOOL LEADERSHIP AGENCY,07/06/2013,ICT,Regional Strategy Directorate,BT,Commercial,Telecoms Facilities and Services,4000130274,302
DEPARTMENT FOR EDUCATION,NATIONAL COLLEGE FOR SCHOOL LEADERSHIP AGENCY,07/06/2013,ICT,School Improvement Directorate,BT,Commercial,Telecoms Facilities and Services,4000130274,26
DEPARTMENT FOR EDUCATION,NATIONAL COLLEGE FOR SCHOOL LEADERSHIP AGENCY,07/06/2013,ICT,School Improvement Directorate,BT,Commercial,Telecoms Facilities and Services,4000130274,69
DEPARTMENT FOR EDUCATION,NATIONAL COLLEGE FOR SCHOOL LEADERSHIP AGENCY,07/06/2013,ICT,School Improvement Directorate,BT,Commercial,Telecoms Facilities and Services,4000130274,47
DEPARTMENT FOR EDUCATION,NATIONAL COLLEGE FOR SCHOOL LEADERSHIP AGENCY,07/06/2013,ICT,School Improvement Directorate,BT,Commercial,Telecoms Facilities and Services,4000130274,122
DEPARTMENT FOR EDUCATION,NATIONAL COLLEGE FOR SCHOOL LEADERSHIP AGENCY,07/06/2013,ICT,School Improvement Directorate,BT,Commercial,Telecoms Facilities and Services,4000130274,26
DEPARTMENT FOR EDUCATION,NATIONAL COLLEGE FOR SCHOOL LEADERSHIP AGENCY,07/06/2013,ICT,School Improvement Directorate,BT,Commercial,Telecoms Facilities and Services,4000130274,68
DEPARTMENT FOR EDUCATION,NATIONAL COLLEGE FOR SCHOOL LEADERSHIP AGENCY,07/06/2013,ICT,Teaching Schools Directorate,BT,Commercial,Telecoms Facilities and Services,4000130274,76
DEPARTMENT FOR EDUCATION,NATIONAL COLLEGE FOR SCHOOL LEADERSHIP AGENCY,07/06/2013,ICT,Performance and Evaluation Directorate,BT,Commercial,Telecoms Facilities and Services,4000130274,625
DEPARTMENT FOR EDUCATION,NATIONAL COLLEGE FOR SCHOOL LEADERSHIP AGENCY,07/06/2013,ICT,Design and Development Directorate,BT,Commercial,Telecoms Facilities and Services,4000130274,619
DEPARTMENT FOR EDUCATION,NATIONAL COLLEGE FOR SCHOOL LEADERSHIP AGENCY,07/06/2013,ICT,Licenced Provision Directorate,BT,Commercial,Telecoms Facilities and Services,4000130274,51
DEPARTMENT FOR EDUCATION,NATIONAL COLLEGE FOR SCHOOL LEADERSHIP AGENCY,07/06/2013,Programme costs,School Business Management and Efficiency,SERCO LTD,Commercial,Funding to deliver policies (excluding consultancy) paid to third parties via a service delivery contract,4000130350,"54,354"
DEPARTMENT FOR EDUCATION,NATIONAL COLLEGE FOR SCHOOL LEADERSHIP AGENCY,07/06/2013,Programme costs,School Business Management and Efficiency,SERCO LTD,Commercial,Funding to deliver policies (excluding consultancy) paid to third parties via a service delivery contract,4000130350,"200,292"
DEPARTMENT FOR EDUCATION,NATIONAL COLLEGE FOR SCHOOL LEADERSHIP AGENCY,07/06/2013,Professional Services Other,Licenced Provision Directorate,TEACHING LEADERS,Public Sector,"Fees / expenses of professionals from the private sector, for example to implement advice or changes",4000130367,"381,607"
DEPARTMENT FOR EDUCATION,NATIONAL COLLEGE FOR SCHOOL LEADERSHIP AGENCY,07/06/2013,Programme costs,School Business Management and Efficiency,ANGLIA RUSKIN UNIVERSITY,Public Sector,Funding to deliver policies (excluding consultancy) paid to third parties via a service delivery contract,4000130381,"79,948"
DEPARTMENT FOR EDUCATION,NATIONAL COLLEGE FOR SCHOOL LEADERSHIP AGENCY,07/06/2013,Programme costs,School Business Management and Efficiency,ANGLIA RUSKIN UNIVERSITY,Public Sector,Funding to deliver policies (excluding consultancy) paid to third parties via a service delivery contract,4000130381,"56,691"
DEPARTMENT FOR EDUCATION,NATIONAL COLLEGE FOR SCHOOL LEADERSHIP AGENCY,07/06/2013,Programme costs,Membership Directorate,CREATIVE CHOICE,Public Sector,Funding to deliver policies (excluding consultancy) paid to third parties via a service delivery contract,4000130385,"9,960"
DEPARTMENT FOR EDUCATION,NATIONAL COLLEGE FOR SCHOOL LEADERSHIP AGENCY,07/06/2013,Print and Print Management,Research and Development Directorate,CREATIVE CHOICE,Public Sector,Printing and binding services,4000130385,500
DEPARTMENT FOR EDUCATION,NATIONAL COLLEGE FOR SCHOOL LEADERSHIP AGENCY,07/06/2013,Communications,School Business Management and Efficiency,CREATIVE CHOICE,Public Sector,Marketing services,4000130385,"7,344"
DEPARTMENT FOR EDUCATION,NATIONAL COLLEGE FOR SCHOOL LEADERSHIP AGENCY,07/06/2013,Communications,Supply Directorate,CREATIVE CHOICE,Public Sector,Marketing services,4000130385,"4,683"
DEPARTMENT FOR EDUCATION,NATIONAL COLLEGE FOR SCHOOL LEADERSHIP AGENCY,07/06/2013,Programme costs,Supply Directorate,CREATIVE CHOICE,Public Sector,Funding to deliver policies (excluding consultancy) paid to third parties via a service delivery contract,4000130385,"5,899"
DEPARTMENT FOR EDUCATION,NATIONAL COLLEGE FOR SCHOOL LEADERSHIP AGENCY,07/06/2013,Facilities,Information Technology Facilities Management and Commercial Directorate,RUDDINGTON BUILD CO LTD,Commercial,Building Management,4000130386,"81,600"
DEPARTMENT FOR EDUCATION,NATIONAL COLLEGE FOR SCHOOL LEADERSHIP AGENCY,10/06/2013,Professional Services Other,Membership Directorate,GOOD PRACTICE LTD,Commercial,"Fees / expenses of professionals from the private sector, for example to implement advice or changes",4000130432,"172,320"
DEPARTMENT FOR EDUCATION,NATIONAL COLLEGE FOR SCHOOL LEADERSHIP AGENCY,11/06/2013,Professional Services Other,Licenced Provision Directorate,TEACHING LEADERS,Public Sector,"Fees / expenses of professionals from the private sector, for example to implement advice or changes",4000130582,"397,407"
DEPARTMENT FOR EDUCATION,NATIONAL COLLEGE FOR SCHOOL LEADERSHIP AGENCY,12/06/2013,Travel,Strategic Leadership,REDFERN TRAVEL LTD,Commercial,"Staff business travel including air, coach, ferry, rail and taxi",4000130694,"1,214"
DEPARTMENT FOR EDUCATION,NATIONAL COLLEGE FOR SCHOOL LEADERSHIP AGENCY,12/06/2013,Travel,International Business Unit,REDFERN TRAVEL LTD,Commercial,"Staff business travel including air, coach, ferry, rail and taxi",4000130694,"3,595"
DEPARTMENT FOR EDUCATION,NATIONAL COLLEGE FOR SCHOOL LEADERSHIP AGENCY,12/06/2013,Travel,International Business Unit,REDFERN TRAVEL LTD,Commercial,"Staff business travel including air, coach, ferry, rail and taxi",4000130694,"14,294"
DEPARTMENT FOR EDUCATION,NATIONAL COLLEGE FOR SCHOOL LEADERSHIP AGENCY,12/06/2013,Travel,Early Years,REDFERN TRAVEL LTD,Commercial,"Staff business travel including air, coach, ferry, rail and taxi",4000130694,72
DEPARTMENT FOR EDUCATION,NATIONAL COLLEGE FOR SCHOOL LEADERSHIP AGENCY,12/06/2013,Professional Services Consultancy and Contingent Labour,Early Years,REDFERN TRAVEL LTD,Commercial,"Fees / expenses of professionals from the private sector such as auditors, accountants, lawyers, etc. engaged to provide advice or opinion on how to affect something",4000130694,0
DEPARTMENT FOR EDUCATION,NATIONAL COLLEGE FOR SCHOOL LEADERSHIP AGENCY,12/06/2013,Travel,Licenced Provision Directorate,REDFERN TRAVEL LTD,Commercial,"Staff business travel including air, coach, ferry, rail and taxi",4000130694,-25
DEPARTMENT FOR EDUCATION,NATIONAL COLLEGE FOR SCHOOL LEADERSHIP AGENCY,12/06/2013,Travel,Research and Development Directorate,REDFERN TRAVEL LTD,Commercial,"Staff business travel including air, coach, ferry, rail and taxi",4000130694,44
DEPARTMENT FOR EDUCATION,NATIONAL COLLEGE FOR SCHOOL LEADERSHIP AGENCY,12/06/2013,Travel,School Business Management and Efficiency,REDFERN TRAVEL LTD,Commercial,"Staff business travel including air, coach, ferry, rail and taxi",4000130694,249
DEPARTMENT FOR EDUCATION,NATIONAL COLLEGE FOR SCHOOL LEADERSHIP AGENCY,12/06/2013,Travel,School Business Management and Efficiency,REDFERN TRAVEL LTD,Commercial,"Staff business travel including air, coach, ferry, rail and taxi to attend training events",4000130694,1
DEPARTMENT FOR EDUCATION,NATIONAL COLLEGE FOR SCHOOL LEADERSHIP AGENCY,12/06/2013,Travel,Supply Directorate,REDFERN TRAVEL LTD,Commercial,"Staff business travel including air, coach, ferry, rail and taxi",4000130694,-14
DEPARTMENT FOR EDUCATION,NATIONAL COLLEGE FOR SCHOOL LEADERSHIP AGENCY,12/06/2013,Travel,Regional Strategy Directorate,REDFERN TRAVEL LTD,Commercial,"Staff business travel including air, coach, ferry, rail and taxi",4000130694,"2,225"
DEPARTMENT FOR EDUCATION,NATIONAL COLLEGE FOR SCHOOL LEADERSHIP AGENCY,12/06/2013,Travel,School Improvement Directorate,REDFERN TRAVEL LTD,Commercial,"Staff business travel including air, coach, ferry, rail and taxi",4000130694,51
DEPARTMENT FOR EDUCATION,NATIONAL COLLEGE FOR SCHOOL LEADERSHIP AGENCY,12/06/2013,Travel,School Improvement Directorate,REDFERN TRAVEL LTD,Commercial,"Staff business travel including air, coach, ferry, rail and taxi",4000130694,186
DEPARTMENT FOR EDUCATION,NATIONAL COLLEGE FOR SCHOOL LEADERSHIP AGENCY,12/06/2013,Travel,System Leadership Directorate,REDFERN TRAVEL LTD,Commercial,"Staff business travel including air, coach, ferry, rail and taxi",4000130694,-195
DEPARTMENT FOR EDUCATION,NATIONAL COLLEGE FOR SCHOOL LEADERSHIP AGENCY,12/06/2013,Travel,Performance and Evaluation Directorate,REDFERN TRAVEL LTD,Commercial,"Staff business travel including air, coach, ferry, rail and taxi",4000130694,"1,484"
DEPARTMENT FOR EDUCATION,NATIONAL COLLEGE FOR SCHOOL LEADERSHIP AGENCY,12/06/2013,Travel,Design and Development Directorate,REDFERN TRAVEL LTD,Commercial,"Staff business travel including air, coach, ferry, rail and taxi",4000130694,"6,414"
DEPARTMENT FOR EDUCATION,NATIONAL COLLEGE FOR SCHOOL LEADERSHIP AGENCY,12/06/2013,Travel,Licenced Provision Directorate,REDFERN TRAVEL LTD,Commercial,"Staff business travel including air, coach, ferry, rail and taxi",4000130694,-75
DEPARTMENT FOR EDUCATION,NATIONAL COLLEGE FOR SCHOOL LEADERSHIP AGENCY,12/06/2013,Travel,System Leadership Directorate,REDFERN TRAVEL LTD,Commercial,"Staff business travel including air, coach, ferry, rail and taxi",4000130694,"4,419"
DEPARTMENT FOR EDUCATION,NATIONAL COLLEGE FOR SCHOOL LEADERSHIP AGENCY,12/06/2013,Communications,Membership Directorate,M4C,Commercial, Marketing services,4000130833,"1,051"
DEPARTMENT FOR EDUCATION,NATIONAL COLLEGE FOR SCHOOL LEADERSHIP AGENCY,13/06/2013,Facilities,Information Technology Facilities Management and Commercial Directorate,SODEXO LTD,Commercial,Non specified facilities related expenditure,4000130924,"20,350"
DEPARTMENT FOR EDUCATION,NATIONAL COLLEGE FOR SCHOOL LEADERSHIP AGENCY,13/06/2013,Facilities,Information Technology Facilities Management and Commercial Directorate,SODEXO LTD,Commercial,"Building maintenance and repair, including repainting, replacing flooring, etc.",4000130924,"131,413"
DEPARTMENT FOR EDUCATION,NATIONAL COLLEGE FOR SCHOOL LEADERSHIP AGENCY,13/06/2013,ICT,Performance and Evaluation Directorate,BT GLOBAL SERVICES,Commercial,ICT Services,4000130985,"146,712"
DEPARTMENT FOR EDUCATION,NATIONAL COLLEGE FOR SCHOOL LEADERSHIP AGENCY,18/06/2013,Programme costs,International Business Unit,PROLOG,Commercial,Funding to external organisations to deliver policies (excluding consultancy),4000131314,359
DEPARTMENT FOR EDUCATION,NATIONAL COLLEGE FOR SCHOOL LEADERSHIP AGENCY,18/06/2013,Programme costs,Licenced Provision Directorate,PROLOG,Commercial,Funding to deliver policies (excluding consultancy) paid to third parties via a service delivery contract,4000131314,363
DEPARTMENT FOR EDUCATION,NATIONAL COLLEGE FOR SCHOOL LEADERSHIP AGENCY,18/06/2013,Office Solutions,Performance and Evaluation Directorate,PROLOG,Commercial,Office Supplies,4000131314,"2,709"
DEPARTMENT FOR EDUCATION,NATIONAL COLLEGE FOR SCHOOL LEADERSHIP AGENCY,18/06/2013,Communications,Membership Directorate,PROLOG,Commercial,Digital media and web production,4000131314,600
DEPARTMENT FOR EDUCATION,NATIONAL COLLEGE FOR SCHOOL LEADERSHIP AGENCY,20/06/2013,Professional Services Other,Licenced Provision Directorate,TEACHING LEADERS,Public Sector,"Fees / expenses of professionals from the private sector, for example to implement advice or changes",4000131641,"381,607"
DEPARTMENT FOR EDUCATION,NATIONAL COLLEGE FOR SCHOOL LEADERSHIP AGENCY,20/06/2013,Grants,Supply Directorate,SCHOOL DEVELOPMENT SUPPORT AGENCY,Public Sector,Grants to third sector organisations / not for profit organisations,4000131800,"34,100"
DEPARTMENT FOR EDUCATION,NATIONAL COLLEGE FOR SCHOOL LEADERSHIP AGENCY,20/06/2013,Programme costs,School Business Management and Efficiency,SERCO LTD,Commercial,Funding to deliver policies (excluding consultancy) paid to third parties via a service delivery contract,4000131821,228
DEPARTMENT FOR EDUCATION,NATIONAL COLLEGE FOR SCHOOL LEADERSHIP AGENCY,20/06/2013,Programme costs,School Business Management and Efficiency,SERCO LTD,Commercial,Funding to deliver policies (excluding consultancy) paid to third parties via a service delivery contract,4000131821,"107,649"
DEPARTMENT FOR EDUCATION,NATIONAL COLLEGE FOR SCHOOL LEADERSHIP AGENCY,20/06/2013,Programme costs,Research and Development Directorate,CUREE & THE PACCTS CONSULTANCY,Commercial,Funding to deliver policies (excluding consultancy) paid to third parties via a service delivery contract,4000131848,"90,504"
DEPARTMENT FOR EDUCATION,NATIONAL COLLEGE FOR SCHOOL LEADERSHIP AGENCY,28/06/2013,Programme costs,School Business Management and Efficiency,ANGLIA RUSKIN UNIVERSITY,Public Sector,Funding to deliver policies (excluding consultancy) paid to third parties via a service delivery contract,4000132691,"56,690"
DEPARTMENT FOR EDUCATION,NATIONAL COLLEGE FOR SCHOOL LEADERSHIP AGENCY,28/06/2013,Programme costs,School Business Management and Efficiency,ANGLIA RUSKIN UNIVERSITY,Public Sector,Funding to deliver policies (excluding consultancy) paid to third parties via a service delivery contract,4000132691,"1,090"
DEPARTMENT FOR EDUCATION,DEPARTMENT FOR EDUCATION,07/06/2013,ICT,Private Office,BT,Commercial,Telecoms Facilities and Services,4000130274,45
DEPARTMENT FOR EDUCATION,DEPARTMENT FOR EDUCATION,07/06/2013,ICT,Private Office,BT,Commercial,Telecoms Facilities and Services,4000130274,7
DEPARTMENT FOR EDUCATION,DEPARTMENT FOR EDUCATION,12/06/2013,Travel,Private Office,REDFERN TRAVEL LTD,Commercial,"Staff business travel including air, coach, ferry, rail and taxi",4000130694,503
DEPARTMENT FOR EDUCATION,DEPARTMENT FOR EDUCATION,12/06/2013,Travel,Private Office,REDFERN TRAVEL LTD,Commercial,"Staff business travel including air, coach, ferry, rail and taxi",4000130694,278
DEPARTMENT FOR EDUCATION,DEPARTMENT FOR EDUCATION,12/06/2013,Travel,Private Office,REDFERN TRAVEL LTD,Commercial,"Staff business travel including air, coach, ferry, rail and taxi",4000130694,29
DEPARTMENT FOR EDUCATION,DEPARTMENT FOR EDUCATION,12/06/2013,Personnel Related,Private Office,REDFERN TRAVEL LTD,Commercial,Subsistence and lodging allowances for official duty,4000130694,0
DEPARTMENT FOR EDUCATION,DEPARTMENT FOR EDUCATION,12/06/2013,Travel,Private Office,REDFERN TRAVEL LTD,Commercial,"Staff business travel including air, coach, ferry, rail and taxi",4000130694,129
DEPARTMENT FOR EDUCATION,DEPARTMENT FOR EDUCATION,12/06/2013,Travel,Private Office,REDFERN TRAVEL LTD,Commercial,"Staff business travel including air, coach, ferry, rail and taxi",4000130694,646
DEPARTMENT FOR EDUCATION,DEPARTMENT FOR EDUCATION,12/06/2013,Travel,Private Office,REDFERN TRAVEL LTD,Commercial,"Staff business travel including air, coach, ferry, rail and taxi",4000130694,630
DEPARTMENT FOR EDUCATION,DEPARTMENT FOR EDUCATION,12/06/2013,Travel,Private Office,REDFERN TRAVEL LTD,Commercial,"Staff business travel including air, coach, ferry, rail and taxi",4000130694,122
DEPARTMENT FOR EDUCATION,STANDARDS AND TESTING AGENCY,07/06/2013,ICT,Standards and Testing Agency Admin,BT,Commercial,Telecoms Facilities and Services,4000130274,90
DEPARTMENT FOR EDUCATION,STANDARDS AND TESTING AGENCY,07/06/2013,ICT,Test Development Division,BT,Commercial,Telecoms Facilities and Services,4000130274,746
DEPARTMENT FOR EDUCATION,STANDARDS AND TESTING AGENCY,07/06/2013,ICT,Test Support Division,BT,Commercial,Telecoms Facilities and Services,4000130274,88
DEPARTMENT FOR EDUCATION,STANDARDS AND TESTING AGENCY,07/06/2013,ICT,Test Support Division,BT,Commercial,Telecoms Facilities and Services,4000130274,261
DEPARTMENT FOR EDUCATION,STANDARDS AND TESTING AGENCY,07/06/2013,ICT,Test Operation Division,BT,Commercial,Telecoms Facilities and Services,4000130274,372
DEPARTMENT FOR EDUCATION,STANDARDS AND TESTING AGENCY,07/06/2013,ICT,Test Development Division,BT,Commercial,Telecoms Facilities and Services,4000130274,44
DEPARTMENT FOR EDUCATION,STANDARDS AND TESTING AGENCY,12/06/2013,Travel,Standards and Testing Agency Admin,REDFERN TRAVEL LTD,Commercial,"Staff business travel including air, coach, ferry, rail and taxi",4000130694,519
DEPARTMENT FOR EDUCATION,STANDARDS AND TESTING AGENCY,12/06/2013,Personnel Related,Standards and Testing Agency Admin,REDFERN TRAVEL LTD,Commercial,Subsistence and lodging allowances for official duty,4000130694,1
DEPARTMENT FOR EDUCATION,STANDARDS AND TESTING AGENCY,12/06/2013,Travel,Test Development Division,REDFERN TRAVEL LTD,Commercial,"Staff business travel including air, coach, ferry, rail and taxi",4000130694,"5,302"
DEPARTMENT FOR EDUCATION,STANDARDS AND TESTING AGENCY,12/06/2013,Travel,Test Support Division,REDFERN TRAVEL LTD,Commercial,"Staff business travel including air, coach, ferry, rail and taxi",4000130694,"2,140"
DEPARTMENT FOR EDUCATION,STANDARDS AND TESTING AGENCY,12/06/2013,Travel,Test Operation Division,REDFERN TRAVEL LTD,Commercial,"Staff business travel including air, coach, ferry, rail and taxi",4000130694,"4,110"
DEPARTMENT FOR EDUCATION,STANDARDS AND TESTING AGENCY,12/06/2013,Travel,Test Development Division,REDFERN TRAVEL LTD,Commercial,"Staff business travel including air, coach, ferry, rail and taxi",4000130694,"2,786"
DEPARTMENT FOR EDUCATION,STANDARDS AND TESTING AGENCY,12/06/2013,Travel,Test Development Division,REDFERN TRAVEL LTD,Commercial,"Staff business travel including air, coach, ferry, rail and taxi",4000130694,449
DEPARTMENT FOR EDUCATION,STANDARDS AND TESTING AGENCY,12/06/2013,Travel,Test Support Division,REDFERN TRAVEL LTD,Commercial,"Staff business travel including air, coach, ferry, rail and taxi",4000130694,2
DEPARTMENT FOR EDUCATION,STANDARDS AND TESTING AGENCY,12/06/2013,Travel,Test Operation Division,REDFERN TRAVEL LTD,Commercial,"Staff business travel including air, coach, ferry, rail and taxi",4000130694,2
DEPARTMENT FOR EDUCATION,STANDARDS AND TESTING AGENCY,12/06/2013,Travel,Test Operation Division,REDFERN TRAVEL LTD,Commercial,"Staff business travel including air, coach, ferry, rail and taxi",4000130694,74
DEPARTMENT FOR EDUCATION,STANDARDS AND TESTING AGENCY,12/06/2013,ICT,Test Operation Division,THE STATIONERY OFFICE LTD,Commercial,ICT Software,4000130753,"2,080"
DEPARTMENT FOR EDUCATION,STANDARDS AND TESTING AGENCY,12/06/2013,Communications,Test Operation Division,THE STATIONERY OFFICE LTD,Commercial,Marketing services,4000130753,"39,150"
DEPARTMENT FOR EDUCATION,STANDARDS AND TESTING AGENCY,12/06/2013,Programme costs,Test Development Division,NFER TRADING LIMITED INV T,Commercial,Funding to deliver policies (excluding consultancy) paid to third parties via a service delivery contract,4000130832,"5,777"
DEPARTMENT FOR EDUCATION,STANDARDS AND TESTING AGENCY,12/06/2013,Programme costs,Test Development Division,NFER TRADING LIMITED INV T,Commercial,Funding to deliver policies (excluding consultancy) paid to third parties via a service delivery contract,4000130832,"350,357"
DEPARTMENT FOR EDUCATION,STANDARDS AND TESTING AGENCY,13/06/2013,ICT,Test Development Division,TEXUNA TECHNOLOGIES,Commercial,ICT Software,4000130851,"7,678"
DEPARTMENT FOR EDUCATION,STANDARDS AND TESTING AGENCY,18/06/2013,Print and Print Management,Test Operation Division,PROLOG,Commercial,Secure printing,4000131314,772
DEPARTMENT FOR EDUCATION,STANDARDS AND TESTING AGENCY,18/06/2013,Print and Print Management,Test Operation Division,PROLOG,Commercial,Secure printing,4000131314,"20,756"
DEPARTMENT FOR EDUCATION,STANDARDS AND TESTING AGENCY,27/06/2013,ICT,Test Support Division,BSS,VCS,Telecoms Facilities and Services,4000132513,"79,367"
DEPARTMENT FOR EDUCATION,STANDARDS AND TESTING AGENCY,28/06/2013,Office Solutions,Test Operation Division,GRANBY MARKETING SERVICES LTD,Commercial,Document Storage,4000133011,"421,238"
DEPARTMENT FOR EDUCATION,TEACHING AGENCY,04/06/2013,Programme costs,Quality and Priorities Division,MYSCIENCE CO LTD,Commercial,Funding to deliver policies (excluding consultancy) paid to third parties via a service delivery contract,4000129779,"41,168"
DEPARTMENT FOR EDUCATION,TEACHING AGENCY,05/06/2013,Grants,Funding Allocation and Performance Division,UNIVERSITY OF GREENWICH,Public Sector,Grants to third sector organisations / not for profit organisations,4000129798,"113,232"
DEPARTMENT FOR EDUCATION,TEACHING AGENCY,05/06/2013,Grants,Funding Allocation and Performance Division,UNIVERSITY OF GREENWICH,Public Sector,Grants to third sector organisations / not for profit organisations,4000129798,"141,704"
DEPARTMENT FOR EDUCATION,TEACHING AGENCY,05/06/2013,Grants,Funding Allocation and Performance Division,UNIVERSITY OF GREENWICH,Public Sector,Grants to third sector organisations / not for profit organisations,4000129798,"3,283"
DEPARTMENT FOR EDUCATION,TEACHING AGENCY,05/06/2013,Grants,Funding Allocation and Performance Division,EDUCATION MANAGEMENT DIRECT LTD,Commercial,Grants to third sector organisations / not for profit organisations,4000129801,"79,304"
DEPARTMENT FOR EDUCATION,TEACHING AGENCY,05/06/2013,Grants,Funding Allocation and Performance Division,EDUCATION MANAGEMENT DIRECT LTD,Commercial,Grants to third sector organisations / not for profit organisations,4000129801,"2,176"
DEPARTMENT FOR EDUCATION,TEACHING AGENCY,05/06/2013,Grants,Funding Allocation and Performance Division,UNIVERSITY OF EAST ANGLIA,Public Sector,Grants to third sector organisations / not for profit organisations,4000129807,"177,235"
DEPARTMENT FOR EDUCATION,TEACHING AGENCY,05/06/2013,Grants,Funding Allocation and Performance Division,UNIVERSITY OF EAST ANGLIA,Public Sector,Grants to third sector organisations / not for profit organisations,4000129807,"2,057"
DEPARTMENT FOR EDUCATION,TEACHING AGENCY,05/06/2013,Grants,Funding Allocation and Performance Division,UNIVERSITY OF DERBY,Public Sector,Grants to third sector organisations / not for profit organisations,4000129810,"113,373"
DEPARTMENT FOR EDUCATION,TEACHING AGENCY,05/06/2013,Grants,Funding Allocation and Performance Division,UNIVERSITY OF DERBY,Public Sector,Grants to third sector organisations / not for profit organisations,4000129810,"39,520"
DEPARTMENT FOR EDUCATION,TEACHING AGENCY,05/06/2013,Grants,Funding Allocation and Performance Division,UNIVERSITY OF DERBY,Public Sector,Grants to third sector organisations / not for profit organisations,4000129810,"20,154"
DEPARTMENT FOR EDUCATION,TEACHING AGENCY,05/06/2013,Grants,Funding Allocation and Performance Division,LEEDS METROPOLITAN UNIVERSITY,Public Sector,Grants to third sector organisations / not for profit organisations,4000129812,"208,440"
DEPARTMENT FOR EDUCATION,TEACHING AGENCY,05/06/2013,Grants,Funding Allocation and Performance Division,LEEDS METROPOLITAN UNIVERSITY,Public Sector,Grants to third sector organisations / not for profit organisations,4000129812,"36,560"
DEPARTMENT FOR EDUCATION,TEACHING AGENCY,05/06/2013,Grants,Quality and Priorities Division,LEEDS METROPOLITAN UNIVERSITY,Public Sector,Grants to third sector organisations / not for profit organisations,4000129812,"20,240"
DEPARTMENT FOR EDUCATION,TEACHING AGENCY,05/06/2013,Grants,Funding Allocation and Performance Division,LEEDS METROPOLITAN UNIVERSITY,Public Sector,Grants to third sector organisations / not for profit organisations,4000129812,"1,785"
DEPARTMENT FOR EDUCATION,TEACHING AGENCY,05/06/2013,Office Solutions,Exam Officers Support,PARCELFORCE WORLDWIDE,Commercial,Post and courier services,4000129818,"118,088"
DEPARTMENT FOR EDUCATION,TEACHING AGENCY,05/06/2013,Grants,Funding Allocation and Performance Division,NOTTINGHAMSHIRE COUNTY COUNCIL,Public Sector,Grants to third sector organisations / not for profit organisations,4000129822,"84,600"
DEPARTMENT FOR EDUCATION,TEACHING AGENCY,05/06/2013,Grants,Supply and Recruitment Division,THE UNIVERSITY OF READING,Public Sector,Grants to third sector organisations / not for profit organisations,4000129825,"4,153"
DEPARTMENT FOR EDUCATION,TEACHING AGENCY,05/06/2013,Grants,Funding Allocation and Performance Division,THE UNIVERSITY OF READING,Public Sector,Grants to third sector organisations / not for profit organisations,4000129825,"69,768"
DEPARTMENT FOR EDUCATION,TEACHING AGENCY,05/06/2013,Grants,Funding Allocation and Performance Division,THE UNIVERSITY OF READING,Public Sector,Grants to third sector organisations / not for profit organisations,4000129825,"176,419"
DEPARTMENT FOR EDUCATION,TEACHING AGENCY,05/06/2013,Grants,Funding Allocation and Performance Division,THE UNIVERSITY OF READING,Public Sector,Grants to third sector organisations / not for profit organisations,4000129825,"72,486"
DEPARTMENT FOR EDUCATION,TEACHING AGENCY,05/06/2013,Grants,Funding Allocation and Performance Division,THE UNIVERSITY OF READING,Public Sector,Grants to third sector organisations / not for profit organisations,4000129825,"42,491"
DEPARTMENT FOR EDUCATION,TEACHING AGENCY,05/06/2013,Grants,Funding Allocation and Performance Division,LONDON SOUTH BANK UNIVERSITY,Public Sector,Grants to third sector organisations / not for profit organisations,4000129826,"48,919"
DEPARTMENT FOR EDUCATION,TEACHING AGENCY,05/06/2013,Grants,Funding Allocation and Performance Division,LONDON SOUTH BANK UNIVERSITY,Public Sector,Grants to third sector organisations / not for profit organisations,4000129826,"50,864"
DEPARTMENT FOR EDUCATION,TEACHING AGENCY,05/06/2013,Grants,Funding Allocation and Performance Division,LONDON SOUTH BANK UNIVERSITY,Public Sector,Grants to third sector organisations / not for profit organisations,4000129826,"4,372"
DEPARTMENT FOR EDUCATION,TEACHING AGENCY,05/06/2013,Grants,Supply and Recruitment Division,UNIVERSITY OF SOUTHAMPTON,Public Sector,Grants to third sector organisations / not for profit organisations,4000129827,"4,672"
DEPARTMENT FOR EDUCATION,TEACHING AGENCY,05/06/2013,Grants,Funding Allocation and Performance Division,UNIVERSITY OF SOUTHAMPTON,Public Sector,Grants to third sector organisations / not for profit organisations,4000129827,"10,557"
DEPARTMENT FOR EDUCATION,TEACHING AGENCY,05/06/2013,Grants,Funding Allocation and Performance Division,UNIVERSITY OF SOUTHAMPTON,Public Sector,Grants to third sector organisations / not for profit organisations,4000129827,"210,402"
DEPARTMENT FOR EDUCATION,TEACHING AGENCY,05/06/2013,Grants,Funding Allocation and Performance Division,UNIVERSITY OF SOUTHAMPTON,Public Sector,Grants to third sector organisations / not for profit organisations,4000129827,"23,155"
DEPARTMENT FOR EDUCATION,TEACHING AGENCY,05/06/2013,Grants,Funding Allocation and Performance Division,UNIVERSITY OF SOUTHAMPTON,Public Sector,Grants to third sector organisations / not for profit organisations,4000129827,"5,114"
DEPARTMENT FOR EDUCATION,TEACHING AGENCY,05/06/2013,Grants,Funding Allocation and Performance Division,UNIVERSITY OF WINCHESTER,Public Sector,Grants to third sector organisations / not for profit organisations,4000129829,"257,958"
DEPARTMENT FOR EDUCATION,TEACHING AGENCY,05/06/2013,Grants,Funding Allocation and Performance Division,UNIVERSITY OF WINCHESTER,Public Sector,Grants to third sector organisations / not for profit organisations,4000129829,"50,769"
DEPARTMENT FOR EDUCATION,TEACHING AGENCY,05/06/2013,Grants,Funding Allocation and Performance Division,UNIVERSITY OF BATH,Public Sector,Grants to third sector organisations / not for profit organisations,4000129834,"86,480"
DEPARTMENT FOR EDUCATION,TEACHING AGENCY,05/06/2013,Grants,Funding Allocation and Performance Division,ESSEX COUNTY COUNCIL,Public Sector,Grants to third sector organisations / not for profit organisations,4000129836,"54,192"
DEPARTMENT FOR EDUCATION,TEACHING AGENCY,05/06/2013,Grants,Funding Allocation and Performance Division,LIVERPOOL JOHN MOORES UNIVERSITY,Public Sector,Grants to third sector organisations / not for profit organisations,4000129849,"163,001"
DEPARTMENT FOR EDUCATION,TEACHING AGENCY,05/06/2013,Grants,Funding Allocation and Performance Division,LIVERPOOL JOHN MOORES UNIVERSITY,Public Sector,Grants to third sector organisations / not for profit organisations,4000129849,"203,698"
DEPARTMENT FOR EDUCATION,TEACHING AGENCY,05/06/2013,Grants,Quality and Priorities Division,LIVERPOOL JOHN MOORES UNIVERSITY,Public Sector,Grants to third sector organisations / not for profit organisations,4000129849,"45,540"
DEPARTMENT FOR EDUCATION,TEACHING AGENCY,05/06/2013,Grants,Funding Allocation and Performance Division,LIVERPOOL JOHN MOORES UNIVERSITY,Public Sector,Grants to third sector organisations / not for profit organisations,4000129849,"78,947"
DEPARTMENT FOR EDUCATION,TEACHING AGENCY,05/06/2013,Grants,Funding Allocation and Performance Division,BIRMINGHAM CITY UNIVERSITY,Public Sector,Grants to third sector organisations / not for profit organisations,4000129850,"165,699"
DEPARTMENT FOR EDUCATION,TEACHING AGENCY,05/06/2013,Grants,Funding Allocation and Performance Division,BIRMINGHAM CITY UNIVERSITY,Public Sector,Grants to third sector organisations / not for profit organisations,4000129850,"169,891"
DEPARTMENT FOR EDUCATION,TEACHING AGENCY,05/06/2013,Grants,Quality and Priorities Division,BIRMINGHAM CITY UNIVERSITY,Public Sector,Grants to third sector organisations / not for profit organisations,4000129850,"10,120"
DEPARTMENT FOR EDUCATION,TEACHING AGENCY,05/06/2013,Grants,Funding Allocation and Performance Division,BIRMINGHAM CITY UNIVERSITY,Public Sector,Grants to third sector organisations / not for profit organisations,4000129850,"15,068"
DEPARTMENT FOR EDUCATION,TEACHING AGENCY,05/06/2013,Grants,Funding Allocation and Performance Division,UNIVERSITY OF WARWICK,Public Sector,Grants to third sector organisations / not for profit organisations,4000129856,"183,963"
DEPARTMENT FOR EDUCATION,TEACHING AGENCY,05/06/2013,Grants,Funding Allocation and Performance Division,UNIVERSITY OF WARWICK,Public Sector,Grants to third sector organisations / not for profit organisations,4000129856,"10,720"
DEPARTMENT FOR EDUCATION,TEACHING AGENCY,05/06/2013,Grants,Quality and Priorities Division,UNIVERSITY OF WARWICK,Public Sector,Grants to third sector organisations / not for profit organisations,4000129856,"144,210"
DEPARTMENT FOR EDUCATION,TEACHING AGENCY,05/06/2013,Grants,Funding Allocation and Performance Division,UNIVERSITY OF WARWICK,Public Sector,Grants to third sector organisations / not for profit organisations,4000129856,"1,305"
DEPARTMENT FOR EDUCATION,TEACHING AGENCY,05/06/2013,Grants,Funding Allocation and Performance Division,UNIVERSITY OF HULL,Public Sector,Grants to third sector organisations / not for profit organisations,4000129863,"99,833"
DEPARTMENT FOR EDUCATION,TEACHING AGENCY,05/06/2013,Grants,Funding Allocation and Performance Division,UNIVERSITY OF HULL,Public Sector,Grants to third sector organisations / not for profit organisations,4000129863,"165,100"
DEPARTMENT FOR EDUCATION,TEACHING AGENCY,05/06/2013,Grants,Funding Allocation and Performance Division,UNIVERSITY OF HULL,Public Sector,Grants to third sector organisations / not for profit organisations,4000129863,"20,713"
DEPARTMENT FOR EDUCATION,TEACHING AGENCY,05/06/2013,Grants,Funding Allocation and Performance Division,UNIVERSITY OF CAMBRIDGE,Public Sector,Grants to third sector organisations / not for profit organisations,4000129865,"258,976"
DEPARTMENT FOR EDUCATION,TEACHING AGENCY,05/06/2013,Grants,Funding Allocation and Performance Division,UNIVERSITY OF BEDFORDSHIRE,Public Sector,Grants to third sector organisations / not for profit organisations,4000129870,"223,497"
DEPARTMENT FOR EDUCATION,TEACHING AGENCY,05/06/2013,Grants,Funding Allocation and Performance Division,UNIVERSITY OF BEDFORDSHIRE,Public Sector,Grants to third sector organisations / not for profit organisations,4000129870,"102,688"
DEPARTMENT FOR EDUCATION,TEACHING AGENCY,05/06/2013,Grants,Funding Allocation and Performance Division,UNIVERSITY OF BEDFORDSHIRE,Public Sector,Grants to third sector organisations / not for profit organisations,4000129870,"9,862"
DEPARTMENT FOR EDUCATION,TEACHING AGENCY,05/06/2013,Grants,Funding Allocation and Performance Division,UNIVERSITY OF BEDFORDSHIRE,Public Sector,Grants to third sector organisations / not for profit organisations,4000129870,"9,946"
DEPARTMENT FOR EDUCATION,TEACHING AGENCY,05/06/2013,Grants,Funding Allocation and Performance Division,LOUGHBOROUGH UNIVERSITY,Public Sector,Grants to third sector organisations / not for profit organisations,4000129871,"71,984"
DEPARTMENT FOR EDUCATION,TEACHING AGENCY,05/06/2013,Grants,Funding Allocation and Performance Division,LOUGHBOROUGH UNIVERSITY,Public Sector,Grants to third sector organisations / not for profit organisations,4000129871,"5,993"
DEPARTMENT FOR EDUCATION,TEACHING AGENCY,05/06/2013,Grants,Supply and Recruitment Division,UNIVERSITY OF BRISTOL,Public Sector,Grants to third sector organisations / not for profit organisations,4000129876,"2,076"
DEPARTMENT FOR EDUCATION,TEACHING AGENCY,05/06/2013,Grants,Funding Allocation and Performance Division,UNIVERSITY OF BRISTOL,Public Sector,Grants to third sector organisations / not for profit organisations,4000129876,"149,360"
DEPARTMENT FOR EDUCATION,TEACHING AGENCY,05/06/2013,Grants,Funding Allocation and Performance Division,KEELE UNIVERSITY,Public Sector,Grants to third sector organisations / not for profit organisations,4000129877,"145,968"
DEPARTMENT FOR EDUCATION,TEACHING AGENCY,05/06/2013,Grants,Funding Allocation and Performance Division,KEELE UNIVERSITY,Public Sector,Grants to third sector organisations / not for profit organisations,4000129877,"43,861"
DEPARTMENT FOR EDUCATION,TEACHING AGENCY,05/06/2013,Grants,Funding Allocation and Performance Division,LONDON METROPOLITAN UNIVERSITY,Public Sector,Grants to third sector organisations / not for profit organisations,4000129879,"23,808"
DEPARTMENT FOR EDUCATION,TEACHING AGENCY,05/06/2013,Grants,Funding Allocation and Performance Division,LONDON METROPOLITAN UNIVERSITY,Public Sector,Grants to third sector organisations / not for profit organisations,4000129879,"134,039"
DEPARTMENT FOR EDUCATION,TEACHING AGENCY,05/06/2013,Grants,Funding Allocation and Performance Division,LONDON METROPOLITAN UNIVERSITY,Public Sector,Grants to third sector organisations / not for profit organisations,4000129879,"30,428"
DEPARTMENT FOR EDUCATION,TEACHING AGENCY,05/06/2013,Grants,Funding Allocation and Performance Division,SUFFOLK COUNTY COUNCIL,Public Sector,Grants to third sector organisations / not for profit organisations,4000129881,"38,290"
DEPARTMENT FOR EDUCATION,TEACHING AGENCY,05/06/2013,Grants,Funding Allocation and Performance Division,LONDON BOROUGH OF HILLINGDON  COUNCIL,Public Sector,Grants to third sector organisations / not for profit organisations,4000129882,"106,665"
DEPARTMENT FOR EDUCATION,TEACHING AGENCY,05/06/2013,Grants,Funding Allocation and Performance Division,THE UNIVERSITY OF MANCHESTER,Public Sector,Grants to third sector organisations / not for profit organisations,4000129885,"291,296"
DEPARTMENT FOR EDUCATION,TEACHING AGENCY,05/06/2013,Grants,Quality and Priorities Division,THE UNIVERSITY OF MANCHESTER,Public Sector,Grants to third sector organisations / not for profit organisations,4000129885,"78,430"
DEPARTMENT FOR EDUCATION,TEACHING AGENCY,05/06/2013,Grants,Funding Allocation and Performance Division,THE UNIVERSITY OF MANCHESTER,Public Sector,Grants to third sector organisations / not for profit organisations,4000129885,"4,117"
DEPARTMENT FOR EDUCATION,TEACHING AGENCY,05/06/2013,Grants,Funding Allocation and Performance Division,BRADFORD COLLEGE,Public Sector,Grants to third sector organisations / not for profit organisations,4000129890,"93,177"
DEPARTMENT FOR EDUCATION,TEACHING AGENCY,05/06/2013,Grants,Funding Allocation and Performance Division,BRADFORD COLLEGE,Public Sector,Grants to third sector organisations / not for profit organisations,4000129890,"15,386"
DEPARTMENT FOR EDUCATION,TEACHING AGENCY,05/06/2013,Grants,Funding Allocation and Performance Division,LIVERPOOL HOPE UNIVERSITY,Public Sector,Grants to third sector organisations / not for profit organisations,4000129891,"242,811"
DEPARTMENT FOR EDUCATION,TEACHING AGENCY,05/06/2013,Grants,Funding Allocation and Performance Division,LIVERPOOL HOPE UNIVERSITY,Public Sector,Grants to third sector organisations / not for profit organisations,4000129891,"280,150"
DEPARTMENT FOR EDUCATION,TEACHING AGENCY,05/06/2013,Grants,Funding Allocation and Performance Division,LIVERPOOL HOPE UNIVERSITY,Public Sector,Grants to third sector organisations / not for profit organisations,4000129891,"14,329"
DEPARTMENT FOR EDUCATION,TEACHING AGENCY,05/06/2013,Grants,Funding Allocation and Performance Division,NOTTINGHAM TRENT UNIVERSITY,Public Sector,Grants to third sector organisations / not for profit organisations,4000129893,"157,435"
DEPARTMENT FOR EDUCATION,TEACHING AGENCY,05/06/2013,Grants,Funding Allocation and Performance Division,NOTTINGHAM TRENT UNIVERSITY,Public Sector,Grants to third sector organisations / not for profit organisations,4000129893,"138,996"
DEPARTMENT FOR EDUCATION,TEACHING AGENCY,05/06/2013,Grants,Funding Allocation and Performance Division,NOTTINGHAM TRENT UNIVERSITY,Public Sector,Grants to third sector organisations / not for profit organisations,4000129893,"40,295"
DEPARTMENT FOR EDUCATION,TEACHING AGENCY,05/06/2013,Grants,Funding Allocation and Performance Division,NOTTINGHAM TRENT UNIVERSITY,Public Sector,Grants to third sector organisations / not for profit organisations,4000129893,"24,130"
DEPARTMENT FOR EDUCATION,TEACHING AGENCY,05/06/2013,Grants,Supply and Recruitment Division,UNIVERSITY OF WORCESTER,Public Sector,Grants to third sector organisations / not for profit organisations,4000129894,"2,076"
DEPARTMENT FOR EDUCATION,TEACHING AGENCY,05/06/2013,Grants,Funding Allocation and Performance Division,UNIVERSITY OF WORCESTER,Public Sector,Grants to third sector organisations / not for profit organisations,4000129894,"115,209"
DEPARTMENT FOR EDUCATION,TEACHING AGENCY,05/06/2013,Grants,Funding Allocation and Performance Division,UNIVERSITY OF WORCESTER,Public Sector,Grants to third sector organisations / not for profit organisations,4000129894,"165,991"
DEPARTMENT FOR EDUCATION,TEACHING AGENCY,05/06/2013,Grants,Funding Allocation and Performance Division,UNIVERSITY OF WORCESTER,Public Sector,Grants to third sector organisations / not for profit organisations,4000129894,"33,018"
DEPARTMENT FOR EDUCATION,TEACHING AGENCY,05/06/2013,Grants,Funding Allocation and Performance Division,UNIVERSITY OF WORCESTER,Public Sector,Grants to third sector organisations / not for profit organisations,4000129894,"3,490"
DEPARTMENT FOR EDUCATION,TEACHING AGENCY,05/06/2013,Grants,Funding Allocation and Performance Division,UNIVERSITY OF HERTFORDSHIRE,Public Sector,Grants to third sector organisations / not for profit organisations,4000129895,"119,799"
DEPARTMENT FOR EDUCATION,TEACHING AGENCY,05/06/2013,Grants,Funding Allocation and Performance Division,UNIVERSITY OF HERTFORDSHIRE,Public Sector,Grants to third sector organisations / not for profit organisations,4000129895,"119,863"
DEPARTMENT FOR EDUCATION,TEACHING AGENCY,05/06/2013,Grants,Funding Allocation and Performance Division,UNIVERSITY OF HERTFORDSHIRE,Public Sector,Grants to third sector organisations / not for profit organisations,4000129895,"49,300"
DEPARTMENT FOR EDUCATION,TEACHING AGENCY,05/06/2013,Grants,Funding Allocation and Performance Division,UNIVERSITY OF HERTFORDSHIRE,Public Sector,Grants to third sector organisations / not for profit organisations,4000129895,"21,848"
DEPARTMENT FOR EDUCATION,TEACHING AGENCY,05/06/2013,Grants,Funding Allocation and Performance Division,UNIVERSITY OF NORTHUMBRIA,Public Sector,Grants to third sector organisations / not for profit organisations,4000129897,"106,947"
DEPARTMENT FOR EDUCATION,TEACHING AGENCY,05/06/2013,Grants,Funding Allocation and Performance Division,UNIVERSITY OF NORTHUMBRIA,Public Sector,Grants to third sector organisations / not for profit organisations,4000129897,"78,400"
DEPARTMENT FOR EDUCATION,TEACHING AGENCY,05/06/2013,Grants,Funding Allocation and Performance Division,UNIVERSITY OF LEICESTER,Public Sector,Grants to third sector organisations / not for profit organisations,4000129898,"162,720"
DEPARTMENT FOR EDUCATION,TEACHING AGENCY,05/06/2013,Grants,Quality and Priorities Division,UNIVERSITY OF LEICESTER,Public Sector,Grants to third sector organisations / not for profit organisations,4000129898,"20,240"
DEPARTMENT FOR EDUCATION,TEACHING AGENCY,05/06/2013,Grants,Funding Allocation and Performance Division,UNIVERSITY OF LEICESTER,Public Sector,Grants to third sector organisations / not for profit organisations,4000129898,"10,301"
DEPARTMENT FOR EDUCATION,TEACHING AGENCY,05/06/2013,Grants,Funding Allocation and Performance Division,EDGE HILL UNIVERSITY,Public Sector,Grants to third sector organisations / not for profit organisations,4000129899,"523,728"
DEPARTMENT FOR EDUCATION,TEACHING AGENCY,05/06/2013,Grants,Funding Allocation and Performance Division,EDGE HILL UNIVERSITY,Public Sector,Grants to third sector organisations / not for profit organisations,4000129899,"371,801"
DEPARTMENT FOR EDUCATION,TEACHING AGENCY,05/06/2013,Grants,Funding Allocation and Performance Division,EDGE HILL UNIVERSITY,Public Sector,Grants to third sector organisations / not for profit organisations,4000129899,"16,723"
DEPARTMENT FOR EDUCATION,TEACHING AGENCY,05/06/2013,Grants,Funding Allocation and Performance Division,EDGE HILL UNIVERSITY,Public Sector,Grants to third sector organisations / not for profit organisations,4000129899,"82,679"
DEPARTMENT FOR EDUCATION,TEACHING AGENCY,05/06/2013,Grants,Funding Allocation and Performance Division,UNIVERSITY OF EXETER,Public Sector,Grants to third sector organisations / not for profit organisations,4000129900,"287,280"
DEPARTMENT FOR EDUCATION,TEACHING AGENCY,05/06/2013,Grants,Funding Allocation and Performance Division,UNIVERSITY OF GLOUCESTERSHIRE,Public Sector,Grants to third sector organisations / not for profit organisations,4000129904,"91,800"
DEPARTMENT FOR EDUCATION,TEACHING AGENCY,05/06/2013,Grants,Funding Allocation and Performance Division,UNIVERSITY OF GLOUCESTERSHIRE,Public Sector,Grants to third sector organisations / not for profit organisations,4000129904,"113,136"
DEPARTMENT FOR EDUCATION,TEACHING AGENCY,05/06/2013,Grants,Funding Allocation and Performance Division,UNIVERSITY OF GLOUCESTERSHIRE,Public Sector,Grants to third sector organisations / not for profit organisations,4000129904,316
DEPARTMENT FOR EDUCATION,TEACHING AGENCY,05/06/2013,Grants,Funding Allocation and Performance Division,UNIVERSITY OF SHEFFIELD,Public Sector,Grants to third sector organisations / not for profit organisations,4000129907,"109,397"
DEPARTMENT FOR EDUCATION,TEACHING AGENCY,05/06/2013,Grants,Supply and Recruitment Division,UNIVERSITY OF EAST LONDON,Public Sector,Grants to third sector organisations / not for profit organisations,4000129915,"9,344"
DEPARTMENT FOR EDUCATION,TEACHING AGENCY,05/06/2013,Grants,Funding Allocation and Performance Division,UNIVERSITY OF EAST LONDON,Public Sector,Grants to third sector organisations / not for profit organisations,4000129915,"241,268"
DEPARTMENT FOR EDUCATION,TEACHING AGENCY,05/06/2013,Grants,Funding Allocation and Performance Division,UNIVERSITY OF EAST LONDON,Public Sector,Grants to third sector organisations / not for profit organisations,4000129915,"22,195"
DEPARTMENT FOR EDUCATION,TEACHING AGENCY,05/06/2013,Grants,Funding Allocation and Performance Division,UNIVERSITY OF EAST LONDON,Public Sector,Grants to third sector organisations / not for profit organisations,4000129915,"69,047"
DEPARTMENT FOR EDUCATION,TEACHING AGENCY,05/06/2013,Grants,Funding Allocation and Performance Division,CANTERBURY CHRIST CHURCH UNIVERSITY,Public Sector,Grants to third sector organisations / not for profit organisations,4000129919,"222,196"
DEPARTMENT FOR EDUCATION,TEACHING AGENCY,05/06/2013,Grants,Funding Allocation and Performance Division,CANTERBURY CHRIST CHURCH UNIVERSITY,Public Sector,Grants to third sector organisations / not for profit organisations,4000129919,"331,313"
DEPARTMENT FOR EDUCATION,TEACHING AGENCY,05/06/2013,Grants,Funding Allocation and Performance Division,CANTERBURY CHRIST CHURCH UNIVERSITY,Public Sector,Grants to third sector organisations / not for profit organisations,4000129919,"106,175"
DEPARTMENT FOR EDUCATION,TEACHING AGENCY,05/06/2013,Grants,Quality and Priorities Division,CANTERBURY CHRIST CHURCH UNIVERSITY,Public Sector,Grants to third sector organisations / not for profit organisations,4000129919,"301,070"
DEPARTMENT FOR EDUCATION,TEACHING AGENCY,05/06/2013,Grants,Funding Allocation and Performance Division,CANTERBURY CHRIST CHURCH UNIVERSITY,Public Sector,Grants to third sector organisations / not for profit organisations,4000129919,"45,580"
DEPARTMENT FOR EDUCATION,TEACHING AGENCY,05/06/2013,Grants,Funding Allocation and Performance Division,UNIVERSITY OF THE WEST OF ENGLAND,Public Sector,Grants to third sector organisations / not for profit organisations,4000129923,"130,356"
DEPARTMENT FOR EDUCATION,TEACHING AGENCY,05/06/2013,Grants,Funding Allocation and Performance Division,UNIVERSITY OF THE WEST OF ENGLAND,Public Sector,Grants to third sector organisations / not for profit organisations,4000129923,"182,820"
DEPARTMENT FOR EDUCATION,TEACHING AGENCY,05/06/2013,Grants,Funding Allocation and Performance Division,UNIVERSITY OF THE WEST OF ENGLAND,Public Sector,Grants to third sector organisations / not for profit organisations,4000129923,"9,251"
DEPARTMENT FOR EDUCATION,TEACHING AGENCY,05/06/2013,Grants,Funding Allocation and Performance Division,UNIVERSITY OF PORTSMOUTH,Public Sector,Grants to third sector organisations / not for profit organisations,4000129925,"90,268"
DEPARTMENT FOR EDUCATION,TEACHING AGENCY,05/06/2013,Grants,Funding Allocation and Performance Division,UNIVERSITY OF PORTSMOUTH,Public Sector,Grants to third sector organisations / not for profit organisations,4000129925,"22,172"
DEPARTMENT FOR EDUCATION,TEACHING AGENCY,05/06/2013,Grants,Funding Allocation and Performance Division,UNIVERSITY OF OXFORD,Public Sector,Grants to third sector organisations / not for profit organisations,4000129927,"161,482"
DEPARTMENT FOR EDUCATION,TEACHING AGENCY,05/06/2013,Grants,Funding Allocation and Performance Division,YORK ST JOHN UNIVERSITY,Public Sector,Grants to third sector organisations / not for profit organisations,4000129930,"117,504"
DEPARTMENT FOR EDUCATION,TEACHING AGENCY,05/06/2013,Grants,Funding Allocation and Performance Division,YORK ST JOHN UNIVERSITY,Public Sector,Grants to third sector organisations / not for profit organisations,4000129930,"70,658"
DEPARTMENT FOR EDUCATION,TEACHING AGENCY,05/06/2013,Grants,Funding Allocation and Performance Division,UNIVERSITY OF YORK,Public Sector,Grants to third sector organisations / not for profit organisations,4000129943,"108,960"
DEPARTMENT FOR EDUCATION,TEACHING AGENCY,05/06/2013,Grants,Funding Allocation and Performance Division,MIDDLESEX UNIVERSITY,Public Sector,Grants to third sector organisations / not for profit organisations,4000129948,"69,890"
DEPARTMENT FOR EDUCATION,TEACHING AGENCY,05/06/2013,Grants,Funding Allocation and Performance Division,MIDDLESEX UNIVERSITY,Public Sector,Grants to third sector organisations / not for profit organisations,4000129948,"153,232"
DEPARTMENT FOR EDUCATION,TEACHING AGENCY,05/06/2013,Grants,Funding Allocation and Performance Division,MIDDLESEX UNIVERSITY,Public Sector,Grants to third sector organisations / not for profit organisations,4000129948,"14,763"
DEPARTMENT FOR EDUCATION,TEACHING AGENCY,05/06/2013,Grants,Funding Allocation and Performance Division,THE OPEN UNIVERSITY,Public Sector,Grants to third sector organisations / not for profit organisations,4000129949,"183,508"
DEPARTMENT FOR EDUCATION,TEACHING AGENCY,05/06/2013,Grants,Funding Allocation and Performance Division,THE OPEN UNIVERSITY,Public Sector,Grants to third sector organisations / not for profit organisations,4000129949,"23,478"
DEPARTMENT FOR EDUCATION,TEACHING AGENCY,05/06/2013,Grants,Funding Allocation and Performance Division,HIBERNIA COLLEGE UK,Public Sector,Grants to third sector organisations / not for profit organisations,4000129955,"9,668"
DEPARTMENT FOR EDUCATION,TEACHING AGENCY,05/06/2013,Grants,Funding Allocation and Performance Division,HIBERNIA COLLEGE UK,Public Sector,Grants to third sector organisations / not for profit organisations,4000129955,"352,165"
DEPARTMENT FOR EDUCATION,TEACHING AGENCY,05/06/2013,Grants,Supply and Recruitment Division,UNIVERSITY OF WOLVERHAMPTON,Public Sector,Grants to third sector organisations / not for profit organisations,4000129957,"4,153"
DEPARTMENT FOR EDUCATION,TEACHING AGENCY,05/06/2013,Grants,Funding Allocation and Performance Division,UNIVERSITY OF WOLVERHAMPTON,Public Sector,Grants to third sector organisations / not for profit organisations,4000129957,"79,637"
DEPARTMENT FOR EDUCATION,TEACHING AGENCY,05/06/2013,Grants,Funding Allocation and Performance Division,UNIVERSITY OF WOLVERHAMPTON,Public Sector,Grants to third sector organisations / not for profit organisations,4000129957,"165,072"
DEPARTMENT FOR EDUCATION,TEACHING AGENCY,05/06/2013,Grants,Funding Allocation and Performance Division,UNIVERSITY OF WOLVERHAMPTON,Public Sector,Grants to third sector organisations / not for profit organisations,4000129957,"60,449"
DEPARTMENT FOR EDUCATION,TEACHING AGENCY,05/06/2013,Grants,Quality and Priorities Division,UNIVERSITY OF WOLVERHAMPTON,Public Sector,Grants to third sector organisations / not for profit organisations,4000129957,"35,420"
DEPARTMENT FOR EDUCATION,TEACHING AGENCY,05/06/2013,Grants,Funding Allocation and Performance Division,UNIVERSITY OF WOLVERHAMPTON,Public Sector,Grants to third sector organisations / not for profit organisations,4000129957,"2,619"
DEPARTMENT FOR EDUCATION,TEACHING AGENCY,05/06/2013,Grants,Supply and Recruitment Division,UNIVERSITY OF DURHAM,Public Sector,Grants to third sector organisations / not for profit organisations,4000129959,"2,076"
DEPARTMENT FOR EDUCATION,TEACHING AGENCY,05/06/2013,Grants,Funding Allocation and Performance Division,UNIVERSITY OF DURHAM,Public Sector,Grants to third sector organisations / not for profit organisations,4000129959,"83,768"
DEPARTMENT FOR EDUCATION,TEACHING AGENCY,05/06/2013,Grants,Funding Allocation and Performance Division,UNIVERSITY OF DURHAM,Public Sector,Grants to third sector organisations / not for profit organisations,4000129959,"181,800"
DEPARTMENT FOR EDUCATION,TEACHING AGENCY,05/06/2013,Grants,Funding Allocation and Performance Division,UNIVERSITY OF DURHAM,Public Sector,Grants to third sector organisations / not for profit organisations,4000129959,"1,757"
DEPARTMENT FOR EDUCATION,TEACHING AGENCY,05/06/2013,Grants,Funding Allocation and Performance Division,LEEDS TRINITY UNIVERSITY COLLEGE,Public Sector,Grants to third sector organisations / not for profit organisations,4000129962,"182,223"
DEPARTMENT FOR EDUCATION,TEACHING AGENCY,05/06/2013,Grants,Funding Allocation and Performance Division,LEEDS TRINITY UNIVERSITY COLLEGE,Public Sector,Grants to third sector organisations / not for profit organisations,4000129962,140
DEPARTMENT FOR EDUCATION,TEACHING AGENCY,05/06/2013,Grants,Funding Allocation and Performance Division,LEEDS TRINITY UNIVERSITY COLLEGE,Public Sector,Grants to third sector organisations / not for profit organisations,4000129962,"23,233"
DEPARTMENT FOR EDUCATION,TEACHING AGENCY,05/06/2013,Grants,Funding Allocation and Performance Division,NORTHUMBRIA DT PARTNERSHIP,VCS,Grants to third sector organisations / not for profit organisations,4000129964,"11,149"
DEPARTMENT FOR EDUCATION,TEACHING AGENCY,05/06/2013,Grants,Quality and Priorities Division,NORTHUMBRIA DT PARTNERSHIP,VCS,Grants to third sector organisations / not for profit organisations,4000129964,"39,215"
DEPARTMENT FOR EDUCATION,TEACHING AGENCY,05/06/2013,Grants,Supply and Recruitment Division,NEWMAN COLLEGE,Public Sector,Grants to third sector organisations / not for profit organisations,4000129967,0
DEPARTMENT FOR EDUCATION,TEACHING AGENCY,05/06/2013,Grants,Funding Allocation and Performance Division,NEWMAN COLLEGE,Public Sector,Grants to third sector organisations / not for profit organisations,4000129967,"139,732"
DEPARTMENT FOR EDUCATION,TEACHING AGENCY,05/06/2013,Grants,Funding Allocation and Performance Division,NEWMAN COLLEGE,Public Sector,Grants to third sector organisations / not for profit organisations,4000129967,"132,460"
DEPARTMENT FOR EDUCATION,TEACHING AGENCY,05/06/2013,Grants,Funding Allocation and Performance Division,NEWMAN COLLEGE,Public Sector,Grants to third sector organisations / not for profit organisations,4000129967,"49,288"
DEPARTMENT FOR EDUCATION,TEACHING AGENCY,05/06/2013,Grants,Funding Allocation and Performance Division,NEWMAN COLLEGE,Public Sector,Grants to third sector organisations / not for profit organisations,4000129967,"21,025"
DEPARTMENT FOR EDUCATION,TEACHING AGENCY,05/06/2013,Grants,Funding Allocation and Performance Division,MARCHES CONSORTIUM SCITT,Public Sector,Grants to third sector organisations / not for profit organisations,4000129972,"27,704"
DEPARTMENT FOR EDUCATION,TEACHING AGENCY,05/06/2013,Grants,Supply and Recruitment Division,MANCHESTER METROPOLITAN UNIVERSITY,Public Sector,Grants to third sector organisations / not for profit organisations,4000129973,"4,672"
DEPARTMENT FOR EDUCATION,TEACHING AGENCY,05/06/2013,Grants,Funding Allocation and Performance Division,MANCHESTER METROPOLITAN UNIVERSITY,Public Sector,Grants to third sector organisations / not for profit organisations,4000129973,"349,200"
DEPARTMENT FOR EDUCATION,TEACHING AGENCY,05/06/2013,Grants,Funding Allocation and Performance Division,MANCHESTER METROPOLITAN UNIVERSITY,Public Sector,Grants to third sector organisations / not for profit organisations,4000129973,"454,352"
DEPARTMENT FOR EDUCATION,TEACHING AGENCY,05/06/2013,Grants,Funding Allocation and Performance Division,MANCHESTER METROPOLITAN UNIVERSITY,Public Sector,Grants to third sector organisations / not for profit organisations,4000129973,"33,724"
DEPARTMENT FOR EDUCATION,TEACHING AGENCY,05/06/2013,Grants,Funding Allocation and Performance Division,UNIVERSITY OF SUNDERLAND,Public Sector,Grants to third sector organisations / not for profit organisations,4000129974,"184,876"
DEPARTMENT FOR EDUCATION,TEACHING AGENCY,05/06/2013,Grants,Funding Allocation and Performance Division,UNIVERSITY OF SUNDERLAND,Public Sector,Grants to third sector organisations / not for profit organisations,4000129974,"138,760"
DEPARTMENT FOR EDUCATION,TEACHING AGENCY,05/06/2013,Grants,Funding Allocation and Performance Division,UNIVERSITY OF SUNDERLAND,Public Sector,Grants to third sector organisations / not for profit organisations,4000129974,"18,438"
DEPARTMENT FOR EDUCATION,TEACHING AGENCY,05/06/2013,Grants,Quality and Priorities Division,UNIVERSITY OF SUNDERLAND,Public Sector,Grants to third sector organisations / not for profit organisations,4000129974,"16,445"
DEPARTMENT FOR EDUCATION,TEACHING AGENCY,05/06/2013,Grants,Funding Allocation and Performance Division,UNIVERSITY OF SUNDERLAND,Public Sector,Grants to third sector organisations / not for profit organisations,4000129974,"27,806"
DEPARTMENT FOR EDUCATION,TEACHING AGENCY,05/06/2013,Grants,Funding Allocation and Performance Division,THE UNIVERSITY OF LEEDS,Public Sector,Grants to third sector organisations / not for profit organisations,4000129976,"196,500"
DEPARTMENT FOR EDUCATION,TEACHING AGENCY,05/06/2013,Grants,Funding Allocation and Performance Division,UNIVERSITY OF HUDDERSFIELD,Public Sector,Grants to third sector organisations / not for profit organisations,4000129978,"16,065"
DEPARTMENT FOR EDUCATION,TEACHING AGENCY,05/06/2013,Grants,Funding Allocation and Performance Division,UNIVERSITY OF HUDDERSFIELD,Public Sector,Grants to third sector organisations / not for profit organisations,4000129978,"44,160"
DEPARTMENT FOR EDUCATION,TEACHING AGENCY,05/06/2013,Grants,Funding Allocation and Performance Division,YORKSHIRE & DERBYSHIRE TRAIN,VCS,Grants to third sector organisations / not for profit organisations,4000129980,"21,356"
DEPARTMENT FOR EDUCATION,TEACHING AGENCY,05/06/2013,Grants,Quality and Priorities Division,YORKSHIRE & DERBYSHIRE TRAIN,VCS,Grants to third sector organisations / not for profit organisations,4000129980,"134,090"
DEPARTMENT FOR EDUCATION,TEACHING AGENCY,05/06/2013,Grants,Funding Allocation and Performance Division,THE WEST LONDON GRADUATE TEACHER,VCS,Grants to third sector organisations / not for profit organisations,4000129984,"66,091"
DEPARTMENT FOR EDUCATION,TEACHING AGENCY,05/06/2013,Grants,Funding Allocation and Performance Division,LOUGHBOROUGH ENCOMPASS PARTNERSHIP,Public Sector,Grants to third sector organisations / not for profit organisations,4000129986,"63,391"
DEPARTMENT FOR EDUCATION,TEACHING AGENCY,05/06/2013,Grants,Funding Allocation and Performance Division,LONDON NORTH CONSORTIUM MIDDLESEX UNIVERSITY,Public Sector,Grants to third sector organisations / not for profit organisations,4000129987,"70,747"
DEPARTMENT FOR EDUCATION,TEACHING AGENCY,05/06/2013,Grants,Funding Allocation and Performance Division,LANCASHIRE CONSORTIUM,Public Sector,Grants to third sector organisations / not for profit organisations,4000129988,"30,016"
DEPARTMENT FOR EDUCATION,TEACHING AGENCY,05/06/2013,Grants,Funding Allocation and Performance Division,UNIVERSITY OF BIRMINGHAM,Public Sector,Grants to third sector organisations / not for profit organisations,4000129991,"222,424"
DEPARTMENT FOR EDUCATION,TEACHING AGENCY,05/06/2013,Grants,Funding Allocation and Performance Division,UNIVERSITY OF BIRMINGHAM,Public Sector,Grants to third sector organisations / not for profit organisations,4000129991,"10,790"
DEPARTMENT FOR EDUCATION,TEACHING AGENCY,05/06/2013,Grants,Funding Allocation and Performance Division,OXFORD BROOKES UNIVERSITY,Public Sector,Grants to third sector organisations / not for profit organisations,4000129995,"110,390"
DEPARTMENT FOR EDUCATION,TEACHING AGENCY,05/06/2013,Grants,Funding Allocation and Performance Division,OXFORD BROOKES UNIVERSITY,Public Sector,Grants to third sector organisations / not for profit organisations,4000129995,"169,848"
DEPARTMENT FOR EDUCATION,TEACHING AGENCY,05/06/2013,Grants,Funding Allocation and Performance Division,OXFORD BROOKES UNIVERSITY,Public Sector,Grants to third sector organisations / not for profit organisations,4000129995,"3,430"
DEPARTMENT FOR EDUCATION,TEACHING AGENCY,05/06/2013,Grants,Funding Allocation and Performance Division,THE UNIVERSITY OF NOTTINGHAM PARTNERSHIP,Public Sector,Grants to third sector organisations / not for profit organisations,4000129996,"18,438"
DEPARTMENT FOR EDUCATION,TEACHING AGENCY,05/06/2013,Grants,Quality and Priorities Division,THE UNIVERSITY OF NOTTINGHAM PARTNERSHIP,Public Sector,Grants to third sector organisations / not for profit organisations,4000129996,"53,130"
DEPARTMENT FOR EDUCATION,TEACHING AGENCY,05/06/2013,Grants,Funding Allocation and Performance Division,THE COLLEGE OF ST MARK & ST JOHN,Public Sector,Grants to third sector organisations / not for profit organisations,4000130000,"125,469"
DEPARTMENT FOR EDUCATION,TEACHING AGENCY,05/06/2013,Grants,Funding Allocation and Performance Division,THE COLLEGE OF ST MARK & ST JOHN,Public Sector,Grants to third sector organisations / not for profit organisations,4000130000,"322,124"
DEPARTMENT FOR EDUCATION,TEACHING AGENCY,05/06/2013,Grants,Funding Allocation and Performance Division,THE COLLEGE OF ST MARK & ST JOHN,Public Sector,Grants to third sector organisations / not for profit organisations,4000130000,"24,870"
DEPARTMENT FOR EDUCATION,TEACHING AGENCY,05/06/2013,Grants,Funding Allocation and Performance Division,THE COLLEGE OF ST MARK & ST JOHN,Public Sector,Grants to third sector organisations / not for profit organisations,4000130000,"56,273"
DEPARTMENT FOR EDUCATION,TEACHING AGENCY,05/06/2013,Grants,Funding Allocation and Performance Division,INSTITUTE OF EDUCATION U.O.L.,Public Sector,Grants to third sector organisations / not for profit organisations,4000130004,"486,962"
DEPARTMENT FOR EDUCATION,TEACHING AGENCY,05/06/2013,Grants,Funding Allocation and Performance Division,INSTITUTE OF EDUCATION U.O.L.,Public Sector,Grants to third sector organisations / not for profit organisations,4000130004,"37,876"
DEPARTMENT FOR EDUCATION,TEACHING AGENCY,05/06/2013,Grants,Quality and Priorities Division,INSTITUTE OF EDUCATION U.O.L.,Public Sector,Grants to third sector organisations / not for profit organisations,4000130004,"314,985"
DEPARTMENT FOR EDUCATION,TEACHING AGENCY,05/06/2013,Grants,Funding Allocation and Performance Division,INSTITUTE OF EDUCATION U.O.L.,Public Sector,Grants to third sector organisations / not for profit organisations,4000130004,"20,060"
DEPARTMENT FOR EDUCATION,TEACHING AGENCY,05/06/2013,Grants,Supply and Recruitment Division,GOLDSMITH COLLEGE,Public Sector,Grants to third sector organisations / not for profit organisations,4000130006,"4,672"
DEPARTMENT FOR EDUCATION,TEACHING AGENCY,05/06/2013,Grants,Funding Allocation and Performance Division,GOLDSMITH COLLEGE,Public Sector,Grants to third sector organisations / not for profit organisations,4000130006,"11,322"
DEPARTMENT FOR EDUCATION,TEACHING AGENCY,05/06/2013,Grants,Funding Allocation and Performance Division,GOLDSMITH COLLEGE,Public Sector,Grants to third sector organisations / not for profit organisations,4000130006,"216,676"
DEPARTMENT FOR EDUCATION,TEACHING AGENCY,05/06/2013,Grants,Funding Allocation and Performance Division,GOLDSMITH COLLEGE,Public Sector,Grants to third sector organisations / not for profit organisations,4000130006,"8,787"
DEPARTMENT FOR EDUCATION,TEACHING AGENCY,05/06/2013,Grants,Funding Allocation and Performance Division,ANGLIA RUSKIN UNIVERSITY,Public Sector,Grants to third sector organisations / not for profit organisations,4000130013,"70,686"
DEPARTMENT FOR EDUCATION,TEACHING AGENCY,05/06/2013,Grants,Funding Allocation and Performance Division,ANGLIA RUSKIN UNIVERSITY,Public Sector,Grants to third sector organisations / not for profit organisations,4000130013,"64,446"
DEPARTMENT FOR EDUCATION,TEACHING AGENCY,05/06/2013,Grants,Funding Allocation and Performance Division,BISHOP GROSSETESTE COLLEGE,Public Sector,Grants to third sector organisations / not for profit organisations,4000130014,"93,177"
DEPARTMENT FOR EDUCATION,TEACHING AGENCY,05/06/2013,Grants,Funding Allocation and Performance Division,BISHOP GROSSETESTE COLLEGE,Public Sector,Grants to third sector organisations / not for profit organisations,4000130014,"108,894"
DEPARTMENT FOR EDUCATION,TEACHING AGENCY,05/06/2013,Grants,Funding Allocation and Performance Division,BISHOP GROSSETESTE COLLEGE,Public Sector,Grants to third sector organisations / not for profit organisations,4000130014,"15,866"
DEPARTMENT FOR EDUCATION,TEACHING AGENCY,05/06/2013,Grants,Funding Allocation and Performance Division,BISHOP GROSSETESTE COLLEGE,Public Sector,Grants to third sector organisations / not for profit organisations,4000130014,"14,056"
DEPARTMENT FOR EDUCATION,TEACHING AGENCY,05/06/2013,Grants,Funding Allocation and Performance Division,BATH SPA UNIVERSITY,Public Sector,Grants to third sector organisations / not for profit organisations,4000130016,"248,816"
DEPARTMENT FOR EDUCATION,TEACHING AGENCY,05/06/2013,Grants,Funding Allocation and Performance Division,BATH SPA UNIVERSITY,Public Sector,Grants to third sector organisations / not for profit organisations,4000130016,"17,552"
DEPARTMENT FOR EDUCATION,TEACHING AGENCY,05/06/2013,Grants,Funding Allocation and Performance Division,UNIVERSITY OF CHICHESTER,Public Sector,Grants to third sector organisations / not for profit organisations,4000130021,"188,235"
DEPARTMENT FOR EDUCATION,TEACHING AGENCY,05/06/2013,Grants,Funding Allocation and Performance Division,UNIVERSITY OF CHICHESTER,Public Sector,Grants to third sector organisations / not for profit organisations,4000130021,"103,408"
DEPARTMENT FOR EDUCATION,TEACHING AGENCY,05/06/2013,Grants,Funding Allocation and Performance Division,UNIVERSITY OF CHICHESTER,Public Sector,Grants to third sector organisations / not for profit organisations,4000130021,"15,952"
DEPARTMENT FOR EDUCATION,TEACHING AGENCY,05/06/2013,Grants,Funding Allocation and Performance Division,UNIVERSITY OF ROEHAMPTON,Public Sector,Grants to third sector organisations / not for profit organisations,4000130022,"253,704"
DEPARTMENT FOR EDUCATION,TEACHING AGENCY,05/06/2013,Grants,Funding Allocation and Performance Division,UNIVERSITY OF ROEHAMPTON,Public Sector,Grants to third sector organisations / not for profit organisations,4000130022,"180,400"
DEPARTMENT FOR EDUCATION,TEACHING AGENCY,05/06/2013,Grants,Funding Allocation and Performance Division,UNIVERSITY OF ROEHAMPTON,Public Sector,Grants to third sector organisations / not for profit organisations,4000130022,"4,528"
DEPARTMENT FOR EDUCATION,TEACHING AGENCY,05/06/2013,Grants,Funding Allocation and Performance Division,UNIVERSITY OF CHESTER,Public Sector,Grants to third sector organisations / not for profit organisations,4000130025,"106,488"
DEPARTMENT FOR EDUCATION,TEACHING AGENCY,05/06/2013,Grants,Funding Allocation and Performance Division,UNIVERSITY OF CHESTER,Public Sector,Grants to third sector organisations / not for profit organisations,4000130025,"123,416"
DEPARTMENT FOR EDUCATION,TEACHING AGENCY,05/06/2013,Grants,Funding Allocation and Performance Division,UNIVERSITY OF CHESTER,Public Sector,Grants to third sector organisations / not for profit organisations,4000130025,"17,152"
DEPARTMENT FOR EDUCATION,TEACHING AGENCY,05/06/2013,Grants,Funding Allocation and Performance Division,UNIVERSITY OF CHESTER,Public Sector,Grants to third sector organisations / not for profit organisations,4000130025,"3,357"
DEPARTMENT FOR EDUCATION,TEACHING AGENCY,05/06/2013,Grants,Funding Allocation and Performance Division,BRUNEL UNIVERSITY,Public Sector,Grants to third sector organisations / not for profit organisations,4000130026,"23,564"
DEPARTMENT FOR EDUCATION,TEACHING AGENCY,05/06/2013,Grants,Funding Allocation and Performance Division,BRUNEL UNIVERSITY,Public Sector,Grants to third sector organisations / not for profit organisations,4000130026,"138,400"
DEPARTMENT FOR EDUCATION,TEACHING AGENCY,05/06/2013,Grants,Supply and Recruitment Division,SHEFFIELD HALLAM UNIVERSITY,Public Sector,Grants to third sector organisations / not for profit organisations,4000130033,"8,306"
DEPARTMENT FOR EDUCATION,TEACHING AGENCY,05/06/2013,Grants,Funding Allocation and Performance Division,SHEFFIELD HALLAM UNIVERSITY,Public Sector,Grants to third sector organisations / not for profit organisations,4000130033,"242,222"
DEPARTMENT FOR EDUCATION,TEACHING AGENCY,05/06/2013,Grants,Funding Allocation and Performance Division,SHEFFIELD HALLAM UNIVERSITY,Public Sector,Grants to third sector organisations / not for profit organisations,4000130033,"248,586"
DEPARTMENT FOR EDUCATION,TEACHING AGENCY,05/06/2013,Grants,Funding Allocation and Performance Division,SHEFFIELD HALLAM UNIVERSITY,Public Sector,Grants to third sector organisations / not for profit organisations,4000130033,"37,342"
DEPARTMENT FOR EDUCATION,TEACHING AGENCY,05/06/2013,Grants,Supply and Recruitment Division,UNIVERSITY OF BRIGHTON,Public Sector,Grants to third sector organisations / not for profit organisations,4000130034,"3,876"
DEPARTMENT FOR EDUCATION,TEACHING AGENCY,05/06/2013,Grants,Funding Allocation and Performance Division,UNIVERSITY OF BRIGHTON,Public Sector,Grants to third sector organisations / not for profit organisations,4000130034,"340,168"
DEPARTMENT FOR EDUCATION,TEACHING AGENCY,05/06/2013,Grants,Funding Allocation and Performance Division,UNIVERSITY OF BRIGHTON,Public Sector,Grants to third sector organisations / not for profit organisations,4000130034,"225,402"
DEPARTMENT FOR EDUCATION,TEACHING AGENCY,05/06/2013,Grants,Funding Allocation and Performance Division,UNIVERSITY OF BRIGHTON,Public Sector,Grants to third sector organisations / not for profit organisations,4000130034,"20,582"
DEPARTMENT FOR EDUCATION,TEACHING AGENCY,05/06/2013,Grants,Funding Allocation and Performance Division,UNIVERSITY OF BRIGHTON,Public Sector,Grants to third sector organisations / not for profit organisations,4000130034,"25,741"
DEPARTMENT FOR EDUCATION,TEACHING AGENCY,05/06/2013,Grants,Funding Allocation and Performance Division,UNIVERSITY OF NOTTINGHAM,Public Sector,Grants to third sector organisations / not for profit organisations,4000130035,"194,562"
DEPARTMENT FOR EDUCATION,TEACHING AGENCY,05/06/2013,Grants,Funding Allocation and Performance Division,KINGSTON UNIVERSITY,Public Sector,Grants to third sector organisations / not for profit organisations,4000130036,"84,350"
DEPARTMENT FOR EDUCATION,TEACHING AGENCY,05/06/2013,Grants,Funding Allocation and Performance Division,KINGSTON UNIVERSITY,Public Sector,Grants to third sector organisations / not for profit organisations,4000130036,"114,140"
DEPARTMENT FOR EDUCATION,TEACHING AGENCY,05/06/2013,Grants,Funding Allocation and Performance Division,HULL CITYWIDE GTP,Public Sector,Grants to third sector organisations / not for profit organisations,4000130039,"28,217"
DEPARTMENT FOR EDUCATION,TEACHING AGENCY,05/06/2013,Grants,Funding Allocation and Performance Division,UNIVERSITY OF CUMBRIA,Public Sector,Grants to third sector organisations / not for profit organisations,4000130041,"536,355"
DEPARTMENT FOR EDUCATION,TEACHING AGENCY,05/06/2013,Grants,Funding Allocation and Performance Division,UNIVERSITY OF CUMBRIA,Public Sector,Grants to third sector organisations / not for profit organisations,4000130041,"307,764"
DEPARTMENT FOR EDUCATION,TEACHING AGENCY,05/06/2013,Grants,Funding Allocation and Performance Division,UNIVERSITY OF CUMBRIA,Public Sector,Grants to third sector organisations / not for profit organisations,4000130041,"12,022"
DEPARTMENT FOR EDUCATION,TEACHING AGENCY,05/06/2013,Grants,Funding Allocation and Performance Division,UNIVERSITY OF CUMBRIA,Public Sector,Grants to third sector organisations / not for profit organisations,4000130041,"16,531"
DEPARTMENT FOR EDUCATION,TEACHING AGENCY,05/06/2013,Grants,Supply and Recruitment Division,ST MARYS UNIVERSITY COLLEGE,Public Sector,Grants to third sector organisations / not for profit organisations,4000130044,0
DEPARTMENT FOR EDUCATION,TEACHING AGENCY,05/06/2013,Grants,Funding Allocation and Performance Division,ST MARYS UNIVERSITY COLLEGE,Public Sector,Grants to third sector organisations / not for profit organisations,4000130044,"201,356"
DEPARTMENT FOR EDUCATION,TEACHING AGENCY,05/06/2013,Grants,Funding Allocation and Performance Division,ST MARYS UNIVERSITY COLLEGE,Public Sector,Grants to third sector organisations / not for profit organisations,4000130044,"194,089"
DEPARTMENT FOR EDUCATION,TEACHING AGENCY,05/06/2013,Grants,Funding Allocation and Performance Division,ST MARYS UNIVERSITY COLLEGE,Public Sector,Grants to third sector organisations / not for profit organisations,4000130044,"3,057"
DEPARTMENT FOR EDUCATION,TEACHING AGENCY,05/06/2013,Grants,Funding Allocation and Performance Division,UNIVERSITY OF NORTHAMPTON,Public Sector,Grants to third sector organisations / not for profit organisations,4000130046,"110,849"
DEPARTMENT FOR EDUCATION,TEACHING AGENCY,05/06/2013,Grants,Funding Allocation and Performance Division,UNIVERSITY OF NORTHAMPTON,Public Sector,Grants to third sector organisations / not for profit organisations,4000130046,"38,240"
DEPARTMENT FOR EDUCATION,TEACHING AGENCY,05/06/2013,Grants,Funding Allocation and Performance Division,UNIVERSITY OF NORTHAMPTON,Public Sector,Grants to third sector organisations / not for profit organisations,4000130046,"18,867"
DEPARTMENT FOR EDUCATION,TEACHING AGENCY,05/06/2013,Grants,Funding Allocation and Performance Division,UNIVERSITY OF PLYMOUTH,Public Sector,Grants to third sector organisations / not for profit organisations,4000130055,"203,337"
DEPARTMENT FOR EDUCATION,TEACHING AGENCY,05/06/2013,Grants,Funding Allocation and Performance Division,UNIVERSITY OF PLYMOUTH,Public Sector,Grants to third sector organisations / not for profit organisations,4000130055,"90,206"
DEPARTMENT FOR EDUCATION,TEACHING AGENCY,05/06/2013,Grants,Funding Allocation and Performance Division,UNIVERSITY OF PLYMOUTH,Public Sector,Grants to third sector organisations / not for profit organisations,4000130055,"34,572"
DEPARTMENT FOR EDUCATION,TEACHING AGENCY,05/06/2013,Grants,Funding Allocation and Performance Division,EAST LINCOLNSHIRE DRB,Public Sector,Grants to third sector organisations / not for profit organisations,4000130066,"39,450"
